{"text_format":"1","workbook":"xlsx","n_sheets":13,"sheets":["Cover","Intro","TSR","1. CDAR","1. CDAR Details Fields","1. TD","2. CDAR P2P","2. TD","3. PR","3. TD","4. DIR","4. TD","References"],"not_rendered":{"charts":0,"images":2,"macros":1,"external_links":3,"defined_names":20,"comments":2,"pivot_tables":0},"unopened":[],"bounds":{"document_bytes":16777216,"sheet_cells":100000,"rows_first":2000,"rows_last":500,"rows_between":2000,"halvings":0,"cell_chars":16384,"cell_head_chars":4096},"cells_cut":0,"cells_raw":0,"read":"whole","date_system":"1900"}

{"sheet":"Cover","index":0,"n_rows":43,"n_cols":5,"rows_kept":43,"cut":false,"hidden":false,"merged":[[4,2,4,5],[26,2,26,4],[27,2,27,4],[28,2,28,4],[33,2,33,4],[29,2,29,4],[35,2,35,4],[38,2,38,4],[42,2,42,4],[36,2,36,4],[39,2,39,4],[40,2,40,4]]}
[]
[]
[]
[]
[null,null,"Clinical Documents"]
[null,null,"Conformance Test Specification for CDA™ Rendering"]
[]
[null,null,"Version 1.4"]
[null,null,"2016-01-29"]
[]
[null,null,"Approved for external use"]
[null,null,"Document ID: NEHTA-2064:2016"]
[null,null,"Document owner: Director, Conformance and Assurance"]
[]
[null,null,"Product version history"]
[null,null,"Version","Date","Comments"]
[null,null,1.3,"2012-09-11","Published on nehta.gov.au"]
[null,null,1.4,"2016-01-29","Updates and additions to conformance test material"]
[null,null,1.4,"2025-05-14","The spreadsheet presentation has been enhanced to align with current branding guidelines, however the content has not been changed."]
[]
[]
[null,null,"Transition of terms "]
[null,null,"Certain terms used within the context of this document have changed.  The table provides a clear comparison of the historical terms used in text and their current equivalents for your reference."]
[null,null,"Historical term","Current Term"]
[null,null,"National eHealth Transition Authority (NEHTA)","The Australian Digital Health Agency (ADHA)"]
[null,null,"Personally controlled electronic health record (PCEHR)","My Health Record (MHR)"]
[]
[null,null,"Acknowledgements "]
[null,null,"The Australian Digital Health Agency is jointly funded by the Australian Government and all state and territory governments."]
[null,null,"This document includes excerpts of HL7TM International standards and other HL7 International material. HL7 International is the publisher and holder of copyright in the excerpts. The publication, reproduction and use of such excerpts is governed by the HL7 IP Policy (http://www.hl7.org/legal/ippolicy.cfm) and the HL7 International License Agreement. HL7 and CDA are trademarks of Health Level Seven International and are registered with the United States Patent and Trademark Office."]
[]
[]
[]
[null,null,"The Australian Digital Health Agency (“the Agency”) makes the information and other material (“Information”) in this document available in good faith but without any representation or warranty as to its accuracy or completeness. The Agency cannot accept any responsibility for the consequences of any use of the Information. As the Information is of a general nature only, it is up to any person using or relying on the Information to ensure that it is accurate, complete and suitable for the circumstances of its use."]
[]
[null,null,"Document control"]
[null,null,"This document is maintained in electronic form and is uncontrolled in printed form. It is the responsibility of the user to verify that this copy is the latest revision."]
[]
[null,null,"Copyright © 2025 Australian Digital Health Agency"]
[null,null,"This document contains information which is protected by copyright. All Rights Reserved. No part of this work may be reproduced or used in any form or by any means – graphic, electronic, or mechanical, including photocopying, recording, taping, or information storage and retrieval systems – without the permission of the Australian Digital Health Agency. All copies of this document must include the copyright and other information contained on this page."]
[]
[]
[null,null,"Australian Digital Health Agency ABN 84 425 496 912, Level 25, 175 Liverpool Street, Sydney, NSW 2000\nTelephone 1300 901 001 or email help@digitalhealth.gov.au\nwww.digitalhealth.gov.au"]

{"sheet":"Intro","index":1,"n_rows":155,"n_cols":5,"rows_kept":155,"cut":false,"hidden":false,"merged":[[96,1,96,2],[4,1,4,2],[14,1,14,2],[32,1,32,2],[48,1,48,2],[84,1,84,2],[93,1,93,2],[94,1,94,2],[95,1,95,2]]}
[]
[]
[null,null,null,"Document information"]
[null,"Introduction",null,"Owner:","Document Owner:  Director, Conformance and Assurance"]
[null,"This page describes the names and contents of the worksheets in this specification.  It also contains a glossary of abbreviations, describes the My Health Record and P2P contexts and explains the concept of \"partial conformance\".",null,"Contact for enquiries:","Australian Digital Health Agency Help Centre Help Centre\nt:  1300 901 001"]
[null,null,null,null,"e:  help@digitalhealth.gov.au"]
[null,"Table of contents"]
[1,"Test Case Worksheet Structure.……….","click here to go to section."]
[2,"Worksheet Names…………………….......","click here to go to section."]
[3,"Abbreviations…………………………………","click here to go to section."]
[4,"Context: My Health Record and P2P…","click here to go to section."]
[5,"Partial conformance……………………….","click here to go to section."]
[]
[1,"Test Case Worksheet Structure"]
[null,"Table 1 describes the column names which head the test sets in each worksheet."]
[null,"Table 1: Worksheet Structure"]
[null,"COLUMN NAME","DESCRIPTION"]
[null,"TEST CASE ID","Unique identifier which distinguishes each test case from within the entire set of test specifications.\n"]
[null,"CONFORMANCE REQUIREMENT","Displays the requirement to be met by the software being tested.\n"]
[null,"PRIORITY","Specifies whether a test is mandatory, conditional or optional.  This is done with the abbreviation:\nM for Mandatory \nC for Conditional\nO for Optional\n"]
[null,"STEP NO.","The individual test step number within a test case which has multiple steps.\n"]
[null,"TEST STEP","The evaluation required for applying the test case.\n"]
[null,"EXPECTED RESULT","The expected outcome of the Test Step.\n"]
[null,"TEST RESULT","Result of the test (Pass, Fail, N/A or TBD). \n\nPass:  The software passed the test.\nFail:    The software failed the test.\nN/A:   Not applicable - the test is not applicable for the software being tested \ni.e. the test may be for an optional requirement that is not implemented in the software, or \nthe test is conditional and the condition is not present.\nTBD:   To be determined - the test result is still to be determined.\n"]
[null,"TESTER COMMENTS","Comments in support of the test result.\n"]
[null,"NEHTA TEST DATA","Data that has been created by the NEHTA and can be used by the developer to test a particular test case.\n"]
[]
[null,"Notes:","Test cases may not be defined for optional requirements with the keyword 'MAY'. \n"]
[]
[null,"Return to top"]
[]
[2,"Worksheet Names"]
[null,"Table 2 describes the name and purpose of each worksheet. "]
[null,"Table 2: Worsheet Names","`"]
[null,"WORKSHEET NAME","PURPOSE"]
[null,"1. CDAR","CDA Rendering\nTest Set Objective: To verify the correct downloading and rendering of CDA documents.\n"]
[null,"1. CDAR Details Fields","CDA Rendering Details Fields\nTest Set Objective:  To verify the test cases 'CDAR_RS_029' and 'CDAR_RS_039'.\n"]
[null,"1. TD","CDAR Rendering Systems - Required Test Data\nIf the NEHTA Test Data cannot be used, the software developer can create their own.  This worksheet describes the conditions and elements that need to be present for full test coverage.\n"]
[null,"2. CDAR P2P","CDA Rendering\nTest Set Objective: To verify the correct downloading and rendering of CDA documents.\n"]
[null,"2. TD","CDAR Rendering Systems - Required Test Data where documents are downloaded in P2P context\nIf the NEHTA  Test Data cannot be used, the software developer can create their own.  This worksheet describes the conditions and elements that need to be present for full test coverage.\n"]
[null,"3. PR","Pathology Report View\nTest Set Objective: To verify the correct rendering of requirements specific to Pathology Reports.\n"]
[null,"3. TD","Pathology Report - Required Test Data\nIf the NEHTA Test Data cannot be used, the software developer can create their own.  This worksheet describes the conditions and elements that need to be present for full test coverage.\n"]
[null,"4. DIR","Diagnostic Imaging Report\nTest Set Objective: To verify the correct rendering of requirements specific to Diagnostic Imaging Reports.\n"]
[null,"4. TD","Diagnostic Imaging Report - Required Test Data\nIf the NEHTA Test Data cannot be used, the software developer can create their own.  This worksheet describes the conditions and elements that need to be present for full test coverage.\n"]
[]
[null,"Return to top"]
[]
[3,"Abbreviations"]
[null,"Table 3 describes the abbreviations used throughout the Conformance Test Specification. "]
[null,"Table 3: Abbreviations","`"]
[null,"ABBREVIATION","FULL NAME"]
[null,"CDA","Clinical Document Architecture"]
[null,"CDAR","Clinical Document Architecture Rendering"]
[null,"CIS","Clinical Information System"]
[null,"CSP","Contracted Service Provider"]
[null,"DIR","Diagnostic Imaging Report "]
[null,"DVA","Department of Veterans' Affairs"]
[null,"GIF","Graphics Interchange Format"]
[null,"GP","General Practitioner"]
[null,"GUI","Graphical User Interface"]
[null,"HPI-I","Healthcare Provider Identifier-Individual"]
[null,"HPI-O","Healthcare Provider Identifier-Organisation"]
[null,"HTML","Hyper Text Markup Language"]
[null,"IHI","Individual Healthcare Identifer"]
[null,"IRN","Individual Reference Number"]
[null,"ITU","International Telecommunications Union"]
[null,"JPEG","Joint Photographic Experts Group"]
[null,"MB","Megabtye"]
[null,"MRN","Medical Record Number"]
[null,"NEHTA","National eHealth Transition Authority","Note: became the Australian Digital Health Agency (ADHA); old name kept for compatibility"]
[null,"OS","Operating System"]
[null,"P2P","Provider to Provider"]
[null,"PDF","Portable Document Format"]
[null,"PNG","Portable Network Graphics"]
[null,"PR","Pathology Report"]
[null,"RTF","Rich text Format"]
[null,"SVT","Software Vendor Test"]
[null,"TD","Test Data"]
[null,"TIFF","Tagged Image File Format "]
[null,"UTC","Coordinated Universal Time"]
[]
[null,"Return to top"]
[]
[4,"Context: My Health Record and P2P"]
[null,"Table 4 describes a) what the My Health Record and P2P contexts are, b) what the difference is between them, and c) how this affects the test cases and test data.\n"]
[null,"Table 4: My Health Record and P2P contexts explained"]
[null,"CAPABILITY","PURPOSE"]
[null,"My Health Record\n\n\n\n\n\n\n\n\n\n","My Health Record\nThe My Health Record system enables the sharing of information amongst health care providers to improve patient outcomes no matter where in Australia a patient presents for treatment. \nThe My Health Record system restricts the types and size of documents that are allowed to be attached to a CDA Package (see the Clinical Documents - Common Conformance Profile [NEHTA-1850:2015]).\n\nTest data: can be obtained via the My Health Record Software Vendor Test environment.\n"]
[null,"P2P","Provider-to-provider\n\nProvider-to-Provider (P2P) Document Delivery is the capability for a document package (a clinical document plus its associated attachments) to be sent from the system of the Document Issuer directly to the system operated by (or on behalf of) a Document Receiver. \n\nThis capability is in contrast to the use of a repository (for example the My Health Record repository) to support the sharing of a clinical document amongst a group of users where the members of that group are not pre-determined by the document issuer.\n\nThe P2P requirements do NOT restrict the types and size of documents that are allowed to be exchanged between providers (see the Clinical Documents - Common Conformance Profile [NEHTA-1850:2015]).\n\nTest data: can be obtained by contacting help@nehta.gov.au\n"]
[]
[null,"Return to top"]
[]
[5,"Partial conformance"]
[null,"Healthcare software which needs to be able to render any type of clinical document obtained from any source in Australia, needs to fully conform to the CDA rendering requirements, which may be determined by passing all mandatory and applicable conditional test cases in this conformance test specification."]
[null,"However, depending on the context, it may be acceptable for partial conformance to be achieved, which is where a test result of \"N/A\" (not applicable) is recorded for some mandatory test cases.\n"]
[null,"A rendering system that will only be used to display documents downloaded from the My Health Record system need not pass the tests for displaying the types of attachments that are not supported by the My Health Record system. Similarly, a rendering system intended to display a limited number of types of clinical documents need not be tested for its ability to display data components not used in those types of documents. For example, a fully conformant rendering system must be able to display the Separation Mode found in the header of a discharge summary. Separation Mode lists the type of location that a hospital patient goes to after leaving the hospital. Therefore a system that only displays prescription and dispense records need not have that ability. "]
[null,"For convenience of the tester, this conformance test specification separately lists the test cases that need not be applied to software that will only be used in the My Health Record context. For other types of partially conformant systems the tester may record \"N/A\" against a mandatory test case, along with an explanation of why the mandatory test case is not applicable for their context.\n"]
[]
[null,"Return to top"]
[]
[]
[]
[]
[]
[]
[]
[]
[]
[]
[]
[]
[]
[]
[]
[]
[]
[]
[]
[]
[]
[]
[]
[]
[]
[]
[]
[]
[]
[]
[]
[]
[]
[]
[]
[]
[]
[]
[]
[]
[]
[]
[]
[]
[]
[]
[]
[]
[]
[]
[]
[]
[null,"Pass"]
[null,"Fail"]
[null,"N/A"]
[null,"TBD"]

{"sheet":"TSR","index":2,"n_rows":28,"n_cols":9,"rows_kept":28,"cut":false,"hidden":false,"merged":[[11,1,11,2],[5,2,5,3],[7,1,7,2],[8,1,8,2],[9,1,9,2],[10,1,10,2],[27,1,28,3],[12,1,12,2],[13,1,13,2],[14,1,14,2],[15,1,15,2],[18,1,18,4]]}
[]
[]
[]
[]
[]
[null,null,"TEST SUMMARY REPORT\n"]
[]
[null,"Software developer organisation:",null,"Please complete"]
[null,"Software name:",null,"Please complete"]
[null,"Software version:",null,"Please complete"]
[null,"Software description:",null,"Please complete"]
[null,"Testing location address:",null,"Please complete"]
[null,"Date(s) of testing:",null,"Please complete"]
[null,"Name of person(s) conducting tests:",null,"Please complete"]
[null,"Operating System/Environment Configuration (name and version)",null,"Optional."]
[null,"Additional software tools and versions not subject to testing used \n(e.g. web browser)",null,"Optional."]
[null,null,null,null,null,null,null,null," "]
[]
[null,"THIS SECTION DOES NOT NEED TO BE FILLED IN - IT WILL BE AUTOMATICALLY CALCULATED USING A MACRO. PRESS <F9> IF YOU HAVE MACROS DISABLED."]
[null,null,"Test Case Worksheet ","% Success Rate","Number of \"N/A\" test results for mandatory tests"]
[null,1,"Tests for CDA Rendering",{"$f":"'1. CDAR'!I221","v":0},{"$f":"SUM('1. CDAR'!J:J)","v":{"$error":"#NAME?"}}]
[null,2,"Tests for CDAR Details Fields",{"$f":"'1. CDAR Details Fields'!I264","v":0},{"$f":"SUM('1. CDAR Details Fields'!J:J)","v":{"$error":"#NAME?"}}]
[null,3,"Tests for CDAR P2P",{"$f":"'2. CDAR P2P'!I25","v":0},{"$f":"SUM('2. CDAR P2P'!J:J)","v":{"$error":"#NAME?"}}]
[null,4,"Tests for Pathology Report",{"$f":"'3. PR'!I22","v":0},{"$f":"SUM('3. PR'!J:J)","v":{"$error":"#NAME?"}}]
[null,5,"Tests for Diagnostic Imaging Report",{"$f":"'4. DIR'!I23","v":0},{"$f":"SUM('4. DIR'!J:J)","v":{"$error":"#NAME?"}}]
[]
[]
[null,{"$f":"IF(OR(ISERROR(E21),ISERROR(E25)),\"WARNING: You must enable macros for this workbook.\",IF(SUM(E21:E25)>0,\"WARNING: A test result of N/A (not applicable) has been selected for one or more mandatory test cases. The only appropriate test results for a mandatory test are Pass or Fail. Please review and update the test results.\",\"\"))","v":"WARNING: You must enable macros for this workbook."}]

{"sheet":"1. CDAR","index":3,"n_rows":221,"n_cols":11,"rows_kept":221,"cut":false,"hidden":false,"merged":[[21,1,24,1],[25,1,26,1],[29,0,32,0],[29,1,32,1],[0,3,0,5],[1,3,3,5],[9,1,9,4],[16,1,16,4],[19,0,20,0],[19,1,20,1],[38,1,38,4],[39,1,39,4],[44,1,44,4],[48,1,51,1],[54,0,55,0],[54,1,55,1],[60,1,60,4],[62,1,62,4],[63,0,66,0],[63,1,66,1],[67,1,67,4],[149,0,153,0],[149,1,153,1],[154,1,155,1],[134,0,135,0],[134,1,135,1],[142,0,144,0],[142,1,144,1]]}
["Test Set:","CDA Rendering Systems",null,"TEST DATA INFORMATION",null,null,"Software name: version:\n"]
["Derivation:","1. NEHTA-1199:2012 Clinical Documents - CDA Rendering Specification v1.0\n2. NEHTA-1850:2015 Clinical Documents - Common Conformance Profile v1.6\n3. NEHTA-1299:2012 PCEHR Connecting Systems - Conformance Test Specification v1.6\n4. Individual PCEHR Conformance Profiles (see References worksheet for full list)\n5. NEHTA-1294:2012 PCEHR Connecting Systems - Conformance Assessment Scheme v1.1\n6. NEHTA-1297:2012 PCEHR Connecting Systems - Conformance Requirements v1.5\n7. NEHTA-2188:2015 Clinical Terminology - Guidance for Use of Medical Nomenclatures in Information Exchange v1.1\n8. HL7CDAR2 HL7 CDA, Release 2.0\n9. ITU-T2001 - Notion for national and international telephone numbers, e-mail addresses and Web addresses\n",null,"Test data to apply the CDA Rendering test cases can be obtained from the My Health Record SVT environment.\n\nTO ACCESS NEHTA My Health Record TEST DATA, USE:\n● Patient 1 - Ludwig HOBBS  IHI: 8003608333345684  Medicare Card: 2950345681  IRN: 1  Sex: Male  DOB: 26/04/1995  Address: 76 Hung CCT, Deakin, ACT, 2600\n\n   Refer to the '1. TD' worksheet for details of the documents in this record.\n\nIF NEHTA TEST DATA CANNOT BE USED TO TEST, PLEASE CREATE YOUR OWN.",null,null,"Software supplier:"]
["Test Set Objective:","To verify the correct downloading and rendering of CDA documents where those documents can be downloaded from the My Health Record system.",null,null,null,null,"Tester:"]
["Prerequisites:","1. Access to the My Health Record SVT (System Vendor Test) environment.\n2. Access to NEHTA's test data in the SVT that supports the CDA rendering test cases in the My Health Record context. \nIf unable to access the My Health Record SVT environment, contact help@nehta.gov.au\n",null,null,null,null,"Date:"]
[]
["THIS HEADER CAN BE COLLAPSED BY CLICKING THE '-' SYMBOL ON THE LEFT."]
["TEST CASE ID","CONFORMANCE REQUIREMENT","PRIORITY\n(Mandatory, Optional, Conditional)\n","STEP NO.","TEST STEP","EXPECTED RESULT","TEST RESULT","TESTER COMMENTS","CALC.","MANDATORY AND N/A","NEHTA TEST DATA"]
["Clinical Documentation - CDA Rendering Specification"]
["START: Rendering systems - General requirements"]
[null,"The following group of tests apply to Section 2.1.2 of the CDA Rendering Specification [NEHTA-1199:2012].\nThese address general conformance requirements for behaviour and responsibilities of the rendering system, independent of the contents of the clinical document."]
["CDAR-RS-005","CDA-RS 5\nRendering Systems SHALL display CDA documents according to the conformance requirements for rendering systems contained in this specification. \n\nNOTE:  \"this specification\" refers to the NEHTA-1199:2012 Clinical Documents - CDA Rendering Specification v1.0.\n","M",1,"No test case has been defined for this requirement as it will pass conformance if all other rendering test cases are passed.","\n","\n","\n","\n","\n","N/A"]
["CDAR-RS-007","CDA-RS 7\nWhen rendering a nested section of the CDA Body, Rendering Systems SHOULD clearly indicate the relationship between the sections.","O",1,"Mark the test N/A if conformance to this requirement is not being asserted.\n\nPass the test if for each nested section, the relationship between the sections is clearly indicated.\nElse, Fail the test.\n\nNOTE TO TESTER:\nA nested section is where a <section> element is contained within another <section> element, e.g. in the Discharge Summary, there is a <section> for 'Problems/Diagnoses This Visit' which is contained within the 'Event' <section>.","Each nested section within the clinical document has the relationship between the sections clearly indicated.",null,null,{"$f":"IF(G12=\"Pass\",1,IF(G12=\"N/A\",1,0))","v":0},{"$f":"IF(AND(BGCol(C12)=48,G12=\"N/A\"),1,0)","v":{"$error":"#NAME?"}},"TD07"]
["CDAR-RS-009","CDA-RS 9\nRendering Systems MAY provide a document rendering view title (not the CDA document title) as part of the rendering of the CDA document (e.g. the title in the header of an HTML document, or a window title in Microsoft Windows or Apple OS X).\n","O",1,"No test case has been defined for this requirement.",null,null,null,null,null,"N/A"]
["CDAR-RS-010","CDA-RS 10\nRendering Systems SHALL clearly indicate the beginning and end of the CDA document when displaying it.\n","M",1,"Pass the test where the beginning and end of the clinical document are clearly indicated.\nElse, Fail the test.\n","The beginning and end of the clinical document are clearly indicated.",null,null,{"$f":"IF(G14=\"Pass\",1,IF(G14=\"N/A\",1,0))","v":0},{"$f":"IF(AND(BGCol(C14)=48,G14=\"N/A\"),1,0)","v":{"$error":"#NAME?"}},"Any"]
["CDAR-RS-012","CDA-RS 12\nRendering Systems SHOULD ensure they have a display capable of displaying 24 bit colour and that they are capable of inline rendering of images up to 1 megabyte in size.","O",1,"Mark the step N/A where conformance to this requirement is not asserted.\n\nWhere the clinical document contains a 24 bit colour image:\n\nPass the step if:\na) there is no visible banding as you move from left to right across the image, and\nb) there are no abrupt changes in colour shading, or gradation.\nElse, Fail the step.","The display renders a 24 bit colour image with:\na) no visible banding as you move from left to right across the image, and\nb) no abrupt changes in banding.",null,null,{"$f":"IF(G15=\"Pass\",1,IF(G15=\"N/A\",1,0))","v":0},{"$f":"IF(AND(BGCol(C15)=48,G15=\"N/A\"),1,0)","v":{"$error":"#NAME?"}},"TD01"]
[null,null,null,2,"Mark the step N/A where conformance to this requirement is not asserted.\n\nWhere the clinical document contains an image file up to 1 megabytes in size:\n\nPass the step if the display correctly renders the image inline .\nElse, Fail the step.\n\nNOTE TO TESTER:\na) Inlined rendering in this context refers to the display of an image that is rendered as part of the CDA document and not displayed as a link. \nb) Inline rendering of images was only intended to apply to the types of images mentioned in the CDA Rendering specification (i.e. PNG, JPEG, GIF). There is no expectation of inline rendering of other types of images, such as TIFF. \n","The display correctly renders inline images up to 1 megabyte in size.",null,null,{"$f":"IF(G16=\"Pass\",1,IF(G16=\"N/A\",1,0))","v":0},{"$f":"IF(AND(BGCol(C16)=48,G16=\"N/A\"),1,0)","v":{"$error":"#NAME?"}},"TD05"]
[null,"The following group of tests apply to Section 2.2 of the CDA Rendering Specification [NEHTA-1199:2012].\nThese conformance requirements address the presentation of specific types of data items, and apply to the CDA Header, for both the Banner and the Details."]
["CDAR-RS-013","CDA-RS 13\nHI Service identifiers (e.g. IHI, HPI-O and HPI-I) values SHALL be formatted as four groups of four digits with a space separating each four-digit group (e.g. 8300 0000 0000 0000).\n","M",1,"Pass the test if each displayed HI Service Identifier is formatted as four groups of four digits with a space separating each four-digit group (e.g. 8300 6000 0000 0000).\nElse, Fail the test.","All rendered HI Service Identifiers are displayed as four groups of four digits with a space separating each four-digit group (e.g. 8300 6000 0000 0000).",null,null,{"$f":"IF(G18=\"Pass\",1,IF(G18=\"N/A\",1,0))","v":0},{"$f":"IF(AND(BGCol(C18)=48,G18=\"N/A\"),1,0)","v":{"$error":"#NAME?"}},"TD01"]
["CDAR-RS-014","CDA-RS 14\nTime values SHALL be formatted with a one-digit or two-digit hour and two-digit minute separated by a colon, using a 24 hour clock (e.g. 13:00 for 1:00pm or 1:00 for 1:00am).","M",1,"Pass the test if each time value is formatted with a one-digit or two-digit hour and two-digit minute separated by a colon using a 24 hour clock.\nElse, Fail the test.\n\nNOTE TO TESTER:\nExamples of 24 hour clock are 13:00 for 1:00pm or 1:00 for 1:00am.\n","Each of the time values is formatted with a one-digit or two-digit hour and two-digit minute separated by a colon using a 24 hour clock.",null,null,{"$f":"IF(G19=\"Pass\",1,IF(G19=\"N/A\",1,0))","v":0},{"$f":"IF(AND(BGCol(C19)=48,G19=\"N/A\"),1,0)","v":{"$error":"#NAME?"}},"TD01"]
["CDAR-RS-015","CDA-RS 15\nTime zone values SHALL be formatted as follows:\n\na. If a time zone is required, it SHALL be formatted using a plus (+) or minus (-) sign immediately after the time, followed by the number of hours and minutes ahead or behind UTC time respectively.\nb. The hours and the minutes for the time zone SHALL both be two-digit values with no other characters separating the number of hours and minutes (e.g. 13:00+1000 or 1:00-0600).","M",1,"From the rendered clinical document containing time zone values:\n\nPass the step if  each time zone value is formatted using a plus (+) or minus (-) sign immediately after the time, followed by the number of hours and minutes, if the time zone is ahead or behind of UTC time respectively.\nElse, Fail the step.\n\nNOTE TO TESTER:\nExamples of valid time zone value separator values are: 13:00+1000 or 1:00-0600.\n","Each of the time zone values is formatted using a plus (+) or minus (-) sign immediately after the time, followed by the number of hours and minutes, if the time zone is ahead or behind of UTC time respectively.",null,null,0,{"$f":"IF(AND(BGCol(C20)=48,G20=\"N/A\"),1,0)","v":{"$error":"#NAME?"}},"TD01 "]
[null,null,null,2,"From the rendered clinical document containing time zone values:\n\nPass the step if the hours and minutes of each time zone value are two-digit values with no other characters separating the number of hours and minutes.\nElse, Fail the step.\n\nNOTE TO TESTER:\nExamples of valid time zone values are: 13:00+1000 or 1:00-0600.\n","The hours and minutes of each time zone value are two-digit values with no other characters separating the number of hours and minutes.",null,null,0,{"$f":"IF(AND(BGCol(C21)=48,G21=\"N/A\"),1,0)","v":{"$error":"#NAME?"}},"TD01"]
["CDAR-RS-016","CDA-RS 16\nDate values containing day, month and year SHALL be formatted as follows:\n\na. Date values containing day, month and year SHALL be formatted with a one-digit or two-digit day, three-character month, and four-digit year.\n\nb. The three-character month SHALL be the first three characters of the month with the first letter capitalised.\n\nc. The day, month and year SHALL be separated with a separator which SHALL be either a single space or a single dash (e.g. “10 Jul 2010” or “1-Jan-2011”).\n\nd. Separators SHALL NOT be used interchangeably within a single date i.e. 1-Jan 2012 is NOT ALLOWED due to a space and a dash being used as a separator character.","M",1,"Pass the step if each date value has one-digit or two-digits for the day, three characters for the month and four digits for the year. \nElse, Fail the step.\n","Each date value has one-digit or two-digits for the day, three characters for the month and four digits for the year. ",null,null,0,{"$f":"IF(AND(BGCol(C22)=48,G22=\"N/A\"),1,0)","v":{"$error":"#NAME?"}},"TD01"]
[null,null,null,2,"Pass the step if each date value has the month represented by the first three letters of the month, with the first letter capitalised.\nElse, Fail the step.\n","Each date value has the month represented by the first three letters of the month, with the first letter capitalised.",null,null,0,{"$f":"IF(AND(BGCol(C23)=48,G23=\"N/A\"),1,0)","v":{"$error":"#NAME?"}},"TD01"]
[null,null,null,3,"Pass the step if each date value has the day, month and year separated only by either a single space or a single dash.\nElse, Fail the step.\n\nNOTE TO TESTER:\nExamples of valid date values are: “10 Jul 2010” or “1-Jan-2011”.\n","Each date value has the day, month and year separated only by either a single space or a single dash.",null,null,0,{"$f":"IF(AND(BGCol(C24)=48,G24=\"N/A\"),1,0)","v":{"$error":"#NAME?"}},"TD01"]
[null,null,null,4,"Pass the step if for each date value the same separator value (space or dash) is used within the date, and that the separator values are not used interchangeably within a single date (i.e. 1-Jan 2000 is not valid). \nElse, Fail the step.\n\nNOTE TO TESTER:\na) Examples of valid date values are: \"01-Jan-2000\" or \"01 Jan 2000\"'.\nb) Examples of invalid date values are: \"01-Jan 2000\" or \"01 Jan-2000\".\n","Each date value has the same separator value (space or dash) and they are not used interchangeably within a single date",null,null,0,{"$f":"IF(AND(BGCol(C25)=48,G25=\"N/A\"),1,0)","v":{"$error":"#NAME?"}},"TD01"]
["CDAR-RS-017","CDA-RS 17\nDate and time values made up of a date value and time value SHALL be formatted as follows:\n\na. Date and time values made up of a date value and time value SHALL be formatted with the date first followed by the time with a space between the two.\nb. The individual date and individual time values SHALL be formatted as described in this document (e.g. \"10 Jul 2010 1:00\" or \"1 Jul 2010 1:00+1000\").\n","M",1,"Pass the step if each date value which is made up of a date value and a time value has the date value first followed by the time value, which are separated by a space between the two values.\nElse, Fail the step.\n","Each date value which is made up of a date value and a time value has the date value first followed by the time value, which are separated by a space between the two values.",null,null,0,{"$f":"IF(AND(BGCol(C26)=48,G26=\"N/A\"),1,0)","v":{"$error":"#NAME?"}},"TD01"]
[null,null,null,2,"Pass this step if each date and time value is formatted as described in the CDA Rendering Specification [NEHTA-1199:2012].\nE.g. \"10 Jul 2010 1:00\" or \"1 Jul 2010 1:00+1000\".\n","No test result is required as this requirement is asserted in test cases:\nCDA-RS-014, \nCDA-RS-015 and \nCDA-RS-016.\n",null,null,null,null,"N/A"]
["CDAR-RS-018","CDA-RS 18\nPerson name values SHALL be formatted in the following order: Name Title(s), Given Name(s), Family Name(s), Name Suffix(es) (e.g. “Prof Sir John Gregory CITIZEN III MP”).","M",1,"Pass the test if all person name values are formatted in the following order: \n1. Name Title(s) (if present) followed by \n2. Given Name(s) (if present) followed by \n3. Family Name(s) followed by \n4. Name Suffix(es) (if present) \n\nNOTE TO TESTER:\na) An example of a person name value is: “Prof Sir John Gregory CITIZEN III MP”.\nb) Where a name value has multiple occurrences (e.g. <prefix>Prof</prefix><prefix>Sir</prefix>).\nc) It is not mandatory that non-patient family names appear in uppercase letters.\n","All person names are presented  in the order of: Name Title(s), Given Name(s), Family Name(s), Name Suffix(es).",null,null,{"$f":"IF(G28=\"Pass\",1,IF(G28=\"N/A\",1,0))","v":0},{"$f":"IF(AND(BGCol(C28)=48,G28=\"N/A\"),1,0)","v":{"$error":"#NAME?"}},"TD01"]
["CDAR-RS-019","CDA-RS 19\nPatient family name values SHALL be formatted in uppercase letters as part of their name (e.g. “Mr Fred CITIZEN”).\n","M",1,"Pass the test if all of the patient's Family Name values are written in uppercase letters.\n\nNOTE TO TESTER:\nAn example of a patient name is: “Mr Fred CITIZEN”.\n","All patient's Family Name values are written in uppercase letters.",null,null,0,{"$f":"IF(AND(BGCol(C29)=48,G29=\"N/A\"),1,0)","v":{"$error":"#NAME?"}},"TD01"]
["CDAR-RS-020","CDA-RS 20\nSex values SHALL be formatted in full with no abbreviations (e.g. “Male”, “Female”, “Intersex or Indeterminate”, “Not stated / Inadequately described”).","M",1,"Pass the step if all male Sex values are displayed in full as \"Male\".\nElse, Fail the step.\n","All male Sex values are displayed in full as \"Male\".",null,null,0,{"$f":"IF(AND(BGCol(C30)=48,G30=\"N/A\"),1,0)","v":{"$error":"#NAME?"}},"TD02\n(Male)"]
[null,null,null,2,"Pass the step if all female Sex values are displayed in full as \"Female\".\nElse, Fail the step.\n","All female Sex values are displayed in full as \"Female\".",null,null,0,{"$f":"IF(AND(BGCol(C31)=48,G31=\"N/A\"),1,0)","v":{"$error":"#NAME?"}},"TD7\n(Female)"]
[null,null,null,3,"Pass the step if all the intersex or indeterminate Sex values are displayed in full as \"Intersex or Indeterminate\".\nElse, Fail the step.\n","All intersex or indeterminate Sex values are displayed in full as \"Intersex or Indeterminate\".",null,null,0,{"$f":"IF(AND(BGCol(C32)=48,G32=\"N/A\"),1,0)","v":{"$error":"#NAME?"}},"TD01 \n(Intersex or Indeterminate)"]
[null,null,null,4,"Pass the step if all Sex values which are not stated or which have not been adequately described are displayed in full as \"Not stated / Inadequately described\".\nElse, Fail the step.\n","All Sex values which are not stated or which have not been adequately described are displayed in full as \"Not stated / Inadequately described\".",null,null,0,{"$f":"IF(AND(BGCol(C33)=48,G33=\"N/A\"),1,0)","v":{"$error":"#NAME?"}},"TD03 \n(Not Stated/Inadequately Described)"]
["CDAR-RS-021","CDA-RS 21\nNational and International phone number values SHOULD be formatted according to the ITU-T E.123 standard [ITU-T2001] e.g. (07) 1234 5678 and +44 208 123 4567.","O",1,"CONDITION: The clinical document contains a <telecom> element where the value of the 'value' attribute commences with \"tel:\". \n\nPass the test if a national or international phone number is rendered, and that it is formatted as per ITU-T E.123 standard, e.g. (07) 1234 5678 and +44 208 123 4567.\nElse, Mark the test N/A.\n","National or international phone numbers are formatted as per ITU-T E.123 standard.",null,null,0,{"$f":"IF(AND(BGCol(C34)=48,G34=\"N/A\"),1,0)","v":{"$error":"#NAME?"}},"TD01"]
["CDAR-RS-022","CDA-RS 22\nEmail address values SHALL be formatted according to the ITU-T E.123 standard [ITU-T2001] e.g. fred@example.com.\n","M",1,"Pass the test if each email address is formatted as per ITU-T E.123 standard (e.g. \"fred@example.com\").\nElse, Fail the test.\n","All email addresses are formatted as per ITU-T E.123 standard.",null,null,0,{"$f":"IF(AND(BGCol(C35)=48,G35=\"N/A\"),1,0)","v":{"$error":"#NAME?"}},"TD01"]
["END: Rendering systems - General requirements"]
[]
["START: Rendering requirements for CDA Header"]
[null,"This group of tests applies to Section 3.2.2 of the CDA Rendering Specification [NEHTA-1199:2012].\nThese conformance requirements address the presentation of the CDA Header by referring to two groups of information: The Banner and the Details.\n"]
[null,"The following group of tests apply to the Banner. \nThe Banner is a summary of information that is always required to appear when the document is displayed. It consists of the fields specified in Table 1 in Section 3.3.1 of the CDA Rendering Specification [NEHTA-1199:2012]."]
["CDAR-RS-027","CDA-RS 27\nRendering Systems SHALL either display the Banner as part of the document display (e.g. when viewed as a single document in a web browser) or in the parts of the application that surround the document (e.g. a separate graphics panel in a graphical user interface [GUI] application).\n","M",1,"From the rendered clinical document:\n\nPass the test if a banner is displayed as either:\na) a part of the document display when viewed in a browser, or\nb) in the parts of the application GUI that displays the document.\nElse, Fail the test.\n\nNOTE TO TESTER:\nThe Banner is a group of data which is defined in requirement CDA-RS 28 and CDA-RS 29 (a), and its contents tested in test case CDA-RS-028.  \n","The Rendering System displays the Banner for the clinical document as part of the document display or in the parts of the application that surround the document.",null,null,{"$f":"IF(G41=\"Pass\",1,IF(G41=\"N/A\",1,0))","v":0},{"$f":"IF(AND(BGCol(C41)=48,G41=\"N/A\"),1,0)","v":{"$error":"#NAME?"}},"Any"]
["CDAR-RS-028","CDA-RS 28\nWhen displaying the Banner, Rendering Systems SHALL display all the fields of the Banner present in the CDA document.\n\nNote: \na) The fields required to be displayed in the Banner are specified in Section 3.3, Table 1 of Clinical Documentation - CDA Rendering Specification  [NEHTA-1199:2012]\nb) Conformance requirement CDA-RS 29 (a) states \"Rendering Systems MAY omit the display of local identifiers for the patient (e.g. MRNs) and Healthcare Provider Identifiers (e.g. HPI-I and HPI-O)\".","M",1,"Pass the test if all of the following fields are correctly displayed in the Banner:\n    - CDA Document Title\n    - Patient Name\n    - Patient Sex\n    - Patient Date of Birth\n    - Patient IHI\nElse, Fail the test.\n\nNOTE TO TESTER: \na)  The method for determining the value of the document title is specified in requirement CDA-RS 31 (b), and applied in test case CDA-RS-031.\nb) The Local Patient Identifier is specified as a Banner field, but conformance requirement CDA-RS 29 (a) states \"Rendering Systems MAY omit the display of local identifiers for the patient (e.g. MRNs) and Healthcare Provider Identifiers (e.g. HPI-I and HPI-O)\".\nc) Other fields which have not been specified for the Banner may also be displayed.\n","The Rendering System displays the following minimum information in the Banner for the clinical document:\n    - CDA Document Title\n    - Patient Name\n    - Patient Sex\n    - Patient Date of Birth\n    - Patient IHI",null,null,0,{"$f":"IF(AND(BGCol(C42)=48,G42=\"N/A\"),1,0)","v":{"$error":"#NAME?"}},"TD04"]
["CDAR-RS-035","CDA-RS 35\nThe Banner has fixed content based on the content of the CDA document, though Rendering Systems MAY choose colours and exact sizes appropriate for their own context.\n","O","N/A","No test case is defined for this requirement.",null,null,null,null,null,"N/A"]
["CDAR-RS-036","CDA-RS 36\nWhen fields of the Banner in the CDA document have multiplicity (e.g. multiple names or MRNs) Rendering Systems SHALL display the first instance of each when displaying the Banner.\n\nNote: An MRN is a Medical Record Number, a term generally used in healthcare organisations to identify a patient. In a clinical document this takes the form of the 'Local Patient Identifier'.\n","M",1,"Pass the test if only the first instances of the multiple occurrence of the patient name and local patient identifier are displayed in the Banner.\nElse, Fail the test.","Only the first instances of the multiple occurrence of the patient name and local patient identifier are displayed in the Banner.",null,null,{"$f":"IF(G44=\"Pass\",1,IF(G44=\"N/A\",1,0))","v":0},{"$f":"IF(AND(BGCol(C44)=48,G44=\"N/A\"),1,0)","v":{"$error":"#NAME?"}},"TD04"]
[null,"The following group of tests apply to the Details. \nThe Details are additional information about the clinical document that are rendered in the clinical document. They consist of the fields specified in Table 2 in Section 3.3.2 of the CDA Rendering Specification [NEHTA-1199:2012]."]
["CDAR-RS-029","CDA-RS 29\nWhen displaying the Details:\n\na. Rendering Systems MAY omit the display of local identifiers for the patient (e.g. MRNs) and Healthcare Provider Identifiers (e.g. HPI-I and HPI-O).\n\nb. Rendering Systems SHALL display all other fields of the Details present in the CDA document.","M",1,"Pass the test if all test results in the \"CDAR Details Fields\" worksheet are marked either \"Pass\" or \"N/A\". \n\nNOTE  TO TESTER:\na) It is optional to display local identifiers for a healthcare recipient, healthcare provider organisations and healthcare provider individuals. It is also optional to display the national healthcare identifiers for healthcare provider organisations and healthcare provider individuals.\nb) A \"N/A\" result may be recorded when either:\ni) the data element is NOT present in the types of clinical document supported by the rendering system,  or\nii) the rendering system does not render local identifiers for a patient or a healthcare provider individual or organisation, or a national identifier for a healthcare provider individual or organisation.\n\n","All relevant header Details fields are displayed in the clinical document.\n\nNote: The Test Result is calculated from the results of the CDAR Details Fields worksheet.",null,null,{"$f":"IF(G46=\"Pass\",1,IF(G46=\"N/A\",1,0))","v":0},{"$f":"IF(AND(BGCol(C46)=48,G46=\"N/A\"),1,0)","v":{"$error":"#NAME?"}},"See CDAR Details Fields worksheet"]
["CDAR-RS-030","CDA-RS 30\nCDA document type:\n\na. The root attribute value of <templateId> header elements SHALL be used to determine the CDA Implementation Guide upon which the document is based and thus the corresponding document type (e.g. “Discharge Summary”).\nb. Rendering Systems SHALL display the CDA document type as part of the Details.","M",1,"CONDITION: A clinical document where the <title> header element is not provided.\n\nPass the step if the document type is displayed as part of the Details in the clinical document and is derived from the 'root' attribute value of the <templateId> header element.\nElse, Fail the step.\n\nNOTE TO TESTER:\nThe value of the document type displayed should be a reasonable semantic representation of the clinical document title, as asserted in test case CDAR-RS-031 (requirement CDA-RS 31), e.g. “Diagnostic Imaging Report” and “eHealth Diagnostic Imaging Report” etc., have the same meaning.\n","The document type is based on the value of the root attribute of the <templateId> header element and is displayed in the Details of the clinical document.",null,null,0,{"$f":"IF(AND(BGCol(C47)=48,G47=\"N/A\"),1,0)","v":{"$error":"#NAME?"}},"TD01"]
["CDAR-RS-011","CDA-RS 11\nRendering Systems SHOULD use the CDA document title (see more below) as the document rendering view title.\n","O",1,"No test case has been defined as the rendering of the document view title is covered in:\nTest Case CDAR-RS-031.","\n",null,null,null,null,"N/A"]
["CDAR-RS-031","CDA-RS 31\nCDA document title:\n\na. Rendering Systems SHALL display the CDA document type as part of the Details. \nb. The CDA document title SHALL be determined as follows:\n- If the CDA document’s <title> header element has a value, then this value is the CDA document title.\n- If a <title> header element is not present, the CDA document type (see above) is the CDA document title (e.g. “Discharge Summary”).\n- If a <title> header element is not provided, and the <templateId> header element cannot be resolved, the value of the displayName attribute of the <code> header element is the CDA document title.\n\n\n","M",1,"Pass the step if the Rendering System displays the correct document type as part of the Details.\n","No test result is defined as this requirement is covered in:\nRequirement: CDA-RS 30\nTest Case CDAR-RS-030.\n",null,null,null,null,"N/A"]
[null,null,null,2,"PREREQUISITE: A clinical document where the <title> header element is present and has a value that differs from the document type and from the displayName for the document code:\n\nPass the step if the value of the <title> header element is displayed. \nElse, Fail the step.","The value of the <title> header element is displayed.",null,null,{"$f":"IF(G50=\"Pass\",1,IF(G50=\"N/A\",1,0))","v":0},{"$f":"IF(AND(BGCol(C50)=48,G50=\"N/A\"),1,0)","v":{"$error":"#NAME?"}},"TD02"]
[null,null,null,3,"PREREQUISITE: A clinical document which has no <title> element or value, and where the <templateId> element can be resolved:\n\nPass the step if the title displayed corresponds to the clinical document type.\nElse, Fail the step.\n\nNOTE TO TESTER:\nThe document type is derived from the value of the 'root' attribute of the 'templateId' element, and is defined in the related CDA IG. \n E.g. <templateId root>=\"1.2.36.1.2001.1001.101.100.1002.120\"  is rendered as \"Shared Health Summary\".\n","The title displayed corresponds to the clinical document type.",null,null,0,{"$f":"IF(AND(BGCol(C51)=48,G51=\"N/A\"),1,0)","v":{"$error":"#NAME?"}},"TD01"]
[null,null,null,4,"PREREQUISITE: A clinical document which has no <title> element and where the <templateId> header element has a value that cannot be resolved by the application:\n\nPass the step if the value in the 'displayName' attribute of the <code> header element is displayed as the clinical document title.\nElse, Fail the step.\n","The 'displayName' attribute of the <code> header element is displayed as the clinical document title.",null,null,0,{"$f":"IF(AND(BGCol(C52)=48,G52=\"N/A\"),1,0)","v":{"$error":"#NAME?"}},"TD11"]
["CDAR-RS-032","CDA-RS 32\nIf the CDA document being rendered contains a <relatedDocument> header element which indicates that the document replaces a previous one, Rendering Systems SHALL clearly indicate that this document replaces a previous one when displaying the Details.\n","M",1,"PREREQUISITE: The clinical document contains a <relatedDocument> header element, indicating that the document replaces a previous one:\n\nPass the test if it is clearly displayed that the document has replaced a previous document.\nElse, Fail the test.\n\n","It is clearly indicated that the document replaces a previous document.",null,null,0,{"$f":"IF(AND(BGCol(C53)=48,G53=\"N/A\"),1,0)","v":{"$error":"#NAME?"}},"TD07"]
["CDAR-RS-033","CDA-RS 33\nIf the CDA document being rendered contains an <ext:completionCode> header element which indicates that the document has been withdrawn, Rendering Systems SHALL clearly indicate that this document has been withdrawn when displaying the Details.","M",1,"PREREQUISITE: The clinical document contains a <ext:completionCode> header element where the code attribute has the value of \"W\":\n\nPass the test if the status as \"Withdrawn\" is displayed in the Clinical Document Details.\nElse, Fail the test.\n","It is clearly indicated that the document has been \"Withdrawn\".",null,null,0,{"$f":"IF(AND(BGCol(C54)=48,G54=\"N/A\"),1,0)","v":{"$error":"#NAME?"}},"TD03"]
["CDAR-RS-033","CDA-RS 33\nIf the CDA document being rendered contains an <ext:completionCode> header element which indicates that the document has been withdrawn, Rendering Systems SHALL clearly indicate that this document has been withdrawn when displaying the Details.","M",1,"PREREQUISITE: The clinical document contains a <ext:completionCode> header element where the code attribute has the value of \"W\" and the 'displayName' attribute is present:\n\nPass the test if the status of \"Withdrawn\" is displayed in the Clinical Document Details.\nElse, Fail the test.\n","It is clearly indicated that the document has been \"Withdrawn\".",null,null,0,{"$f":"IF(AND(BGCol(C55)=48,G55=\"N/A\"),1,0)","v":{"$error":"#NAME?"}},"TD03"]
[null,null,null,2,"PREREQUISITE: The clinical document contains a <ext:completionCode> header element where the code attribute has the value of \"W\" and the 'displayName' attribute is NOT present:\n\nPass the test if the status of \"Withdrawn\" is displayed in the Clinical Document Details.\nElse, Fail the test.\n","It is clearly indicated that the document has been \"Withdrawn\".",null,null,0,{"$f":"IF(AND(BGCol(C56)=48,G56=\"N/A\"),1,0)","v":{"$error":"#NAME?"}},"TD06"]
["CDAR-RS-034","CDA-RS 34\nWhen rendering electronic communication details contained in <telecom> header elements, Rendering Systems SHALL ensure that, when present in the CDA document, the medium (part of the value attribute e.g. mobile phone, email) and the usage (contained in the use attribute, such as Business, Personal, or Both) are clearly displayed along with the associated address.","M",1,"PREREQUISITE: The clinical document contains <telecom> header element/s:\n\nPass the test if the Medium, Usage and associated Address are all clearly displayed for all <telecom> header elements.\nElse, Fail the test.\n\nNOTE TO TESTER:\na) The display value for the telecom 'Medium' is derived from the initial data encoded in the 'value' attribute of the <telecom> element. The allowed values are the HL7 URL Scheme Codes, as documented in the CDA IG section 10.8 “AS 5017-2006: Health Care Client Electronic Communication Medium”, and the related displayed information is the corresponding HL7 URL Scheme Name (or reasonable representation), e.g. if the code is “tel” then the name is “Telephone” (or \"Phone\").\nb) The display value for the telecom 'Usage' is derived from the 'use' attribute of the <telecom> element. The allowed values are the HL7 TAU Codes, as documented in CDA IG section 10.9 “AS 5017-2006: Health Care Client Electronic Communication Usage Code”, and the related displayed information is the corresponding HL7 TAU Name (or reasonable representation), e.g. if the code is “WP” then the name is “Work place” (or \"Workplace\").\nc) The 'Address' is the data within the 'value' attribute which provides that telecommunications identifier (e.g. the phone number).\n","The Medium, Usage and associated Address are all clearly displayed for all <telecom> header elements.",null,null,0,{"$f":"IF(AND(BGCol(C57)=48,G57=\"N/A\"),1,0)","v":{"$error":"#NAME?"}},"TD01"]
["CDAR-RS-037","CDA-RS 37\nWhen fields of the Details in the CDA document have multiplicity (e.g. multiple names or communication details for an individual) Rendering Systems SHALL display all of these instances when displaying the Details.","M",1,"Pass the test if all instances of the multiple occurrences of fields of the Details are displayed.\nElse, Fail the test.\n\nNOTE TO TESTER:\na) The fields to be displayed in the Details of the Header are provided in Table 2 of the CDA Rendering Specification - Clinical Documentation [NEHTA-1199:2012].\nb) The fields in the Details that have multiplicity can be determined from their cardinality within the CDA Implementation Guides.","All instances of the multiple occurrences of fields of the Details are displayed.",null,null,0,{"$f":"IF(AND(BGCol(C58)=48,G58=\"N/A\"),1,0)","v":{"$error":"#NAME?"}},"TD04"]
["CDAR-RS-038","CDA-RS 38\nUnlike the Banner, the Details do not need to be visible at all times; Rendering Systems MAY elect to hide them after they have been displayed, as long as users have a clearly marked and easy to use option to hide and reveal the Details.\n","O","N/A","No test case is defined for this requirement.",null,null,null,null,null,"N/A"]
["CDAR-RS-039","CDA-RS 39\nRendering Systems SHALL ensure that the fields of the Details are displayed by default until the user chooses otherwise.","M",1,"Pass the test if all of the Details fields applicable to the clinical document are displayed by default. \nElse, Fail the test.\n\nNOTE TO TESTER:\nComplete the test results in the \"CDAR Details Fields\" worksheet in this document.  If all the tests are marked either  \"Pass\" or \"N/A\" then this test case can be set to Pass. (Table 2 of the Clinical Documentation - CDA Rendering Specification [NEHTA-1199:2012] documents the Details fields).\n","All of the Details fields are displayed by default.\n\nNote: The Test Result is calculated from the results of the CDAR Details Fields worksheet.",null,null,{"$f":"IF(G60=\"Pass\",1,IF(G60=\"N/A\",1,0))","v":0},{"$f":"IF(AND(BGCol(C60)=48,G60=\"N/A\"),1,0)","v":{"$error":"#NAME?"}},"See CDAR Details Fields worksheet"]
[null,"The following test applies to the rendering of clinical information within the document header. \nThe requirement is derived from the Guidance for Use of Medical Nomenclatures in Information Exchange v1.0 [NEHTA-2188:2015]."]
["CDAR-020652","020652 \nDisplaying the stored concepts extracted from an inbound CDA document [NEHTA-2188:2015]\n\nIf the healthcare software system supports displaying concepts extracted from inbound CDA documents, it SHALL display the original text, associated with each concept while maintaining the original intended semantic context. If the original text (originalText equivalent) is not available, it SHALL display the concept description instead (displayName equivalent). Where the healthcare software system displays the concept description along with the original text, it SHALL be clearly labelled accordingly so the user clearly distinguishes between the original text and the description.\n",null,null,"Conformance to this requirement is satisfied by the following tests within the '1. CDAR Details Fields' worksheet:\n\nCDAR-DF-014 (all Steps) for Document Author Role\nCDAR-DF-022 (Steps 1, 2 and 3) for Separation Mode\nCDAR-DF-046 (all Steps) for Recipient's Occupation\n",null,null,null,null,null,"N/A"]
[null,"The following test applies if the rendering system supports printing."]
["CDAR-RS-040","CDA-RS 40-a\nIf the Rendering System supports printing:\n\na. The Banner SHALL be printed at the top of each resulting page.\nb. The Details SHALL be printed. \nc. When printing a document, every page SHOULD include a “Page N of T” marker, to allow document integrity to be easily assessed.\n\n",null,null,"CONDITION: The Rendering System supports printing of the clinical document.\n\nMark the following steps N/A where the rendering system does not support printing.\nElse, Print the clinical document.\n\nNOTE TO TESTER:\nTests reveal that printing CDA documents in XPS format and printing CDA documents on paper produce identical results. Assessors can request to demonstrate this requirement by printing to an XPS document.\n",null,null,null,null,null,"N/A"]
[null,null,"C",1,"Pass the step if the Banner is printed at the top of each page and each subsequent page. \nElse, Fail the step.\n","The Banner is printed at the top of the first page and each subsequent page.",null,null,{"$f":"IF(G65=\"Pass\",1,IF(G65=\"N/A\",1,0))","v":0},{"$f":"IF(AND(BGCol(C65)=48,G65=\"N/A\"),1,0)","v":{"$error":"#NAME?"}},"Any"]
[null,null,null,2,"Pass the step if the Details are printed. \nElse, Fail the step.\n","The Details are printed.",null,null,0,{"$f":"IF(AND(BGCol(C66)=48,G66=\"N/A\"),1,0)","v":{"$error":"#NAME?"}},"Any"]
[null,null,"O",3,"Mark the step N/A if page numbering of “Page N of T” is not employed.\n\nPass the step if every page includes page numbering as “Page N of T”.\nElse, Fail the step.\n\nNOTE TO TESTER:\nIn the page numbering: \nN is the current page number, and\nT is the total number of pages in the printed document.\n","Every page includes page numbering as “Page N of T”.",null,null,0,{"$f":"IF(AND(BGCol(C67)=48,G67=\"N/A\"),1,0)","v":{"$error":"#NAME?"}},"Any"]
[null,"The following test applies to the rendering of information additional to that specified for the Banner and the Details."]
["CDAR-RS-041","CDA-RS 41\nRendering Systems MAY display other information from the CDA Header which is not present in the Banner or the Details.\n","O","N/A","No test case is defined for this requirement.",null,null,null,null,null,"N/A"]
["END: Rendering requirements for CDA Header"]
[]
["START: Rendering requirements for CDA Body"]
["CDAR-RS-058","CDA-RS 58\nRendering Systems SHALL display the section title if present in sections of the CDA Body.\n","M",1,"Pass the test if each section title is displayed.\nElse, Fail the test.","Each section title is displayed",null,null,{"$f":"IF(G73=\"Pass\",1,IF(G73=\"N/A\",1,0))","v":0},{"$f":"IF(AND(BGCol(C73)=48,G73=\"N/A\"),1,0)","v":{"$error":"#NAME?"}},"TD07"]
["CDAR-RS-008","CDA-RS 8\nRendering Systems SHALL support all the narrative block elements, attributes, style codes and rendering features defined in this specification.\n","M",1,"The assertion of conformance to this requirement is met by:\nRequirement: CDA-RS 59 and \nTest Case: CDAR-RS-059.\n","\n",null,null,null,null,"N/A"]
["CDAR-RS-059","CDA-RS 59\nRendering Systems SHALL support all the narrative block elements, attributes, and style codes available to Authoring Systems above irrespective of their being mandatory or optional for Authoring Systems.","M",null,"The following tests assert the conformance of elements used in the clinical document and the rendering of the contents they represent.\n",null,null,null,null,null,"N/A"]
[null,null,null,1,"Pass the step if the text contained within each <paragraph> element is displayed in the clinical document, and is separated from the preceding text by a line break and a blank line.\nElse, Fail the step.\n","The text contained within each <paragraph> element is displayed in the clinical document, and is separated from the preceding text by a line break and a blank line.",null,null,{"$f":"IF(G76=\"Pass\",1,IF(G76=\"N/A\",1,0))","v":0},{"$f":"IF(AND(BGCol(C76)=48,G76=\"N/A\"),1,0)","v":{"$error":"#NAME?"}},"TD02"]
[null,null,null,2,"Pass the step if the value of each <caption> element which is contained within a <paragraph> element, is displayed in the clinical document, and at the commencement of the text represented by the <paragraph> element in which it is contained.\nElse, Fail the step.\n","The value of each <caption> element is displayed in the clinical document, and at the commencement of the text represented by the <paragraph> element in which it is contained.",null,null,0,{"$f":"IF(AND(BGCol(C77)=48,G77=\"N/A\"),1,0)","v":{"$error":"#NAME?"}},"TD02"]
[null,null,null,3,"Pass the step if the information contained within each <table> element is displayed in the clinical document in a set of row/s and column/s.\nElse, Fail the step.\n","The information contained within each <table> element is displayed in the clinical document in a set of row/s and column/s.",null,null,0,{"$f":"IF(AND(BGCol(C78)=48,G78=\"N/A\"),1,0)","v":{"$error":"#NAME?"}},"TD01"]
[null,null,null,4,"Pass the step if the value of each <caption> element which is contained within a <table> element, is displayed in the clinical document, and at the commencement of the table represented by the <table> element in which it is contained.\nElse, Fail the step.\n","The value of each <caption> element is displayed in the clinical document, and at the commencement of the table represented by the <table> element in which it is contained.",null,null,0,{"$f":"IF(AND(BGCol(C79)=48,G79=\"N/A\"),1,0)","v":{"$error":"#NAME?"}},"TD01"]
[null,null,null,5,"Pass the step if the information contained within each <thead> element is displayed in the clinical document as the heading of the table represented by the <table> element in which it is contained.\nElse, Fail the step.\n","The information contained within each <thead> element is displayed in the clinical document as the heading of the table represented by the <table> element in which it is contained.",null,null,0,{"$f":"IF(AND(BGCol(C80)=48,G80=\"N/A\"),1,0)","v":{"$error":"#NAME?"}},"TD01"]
[null,null,null,6,"Pass the step if the information contained in each <tbody> element is displayed in the clinical document as a group of row/s and column/s within the table represented by the <table> element in which it is contained.\nElse, Fail the step.\n","The information contained within each <tbody> element is displayed in the clinical document as a group of row/s and column/s within the table represented by the <table> element in which it is contained.\n",null,null,0,{"$f":"IF(AND(BGCol(C81)=48,G81=\"N/A\"),1,0)","v":{"$error":"#NAME?"}},"TD02"]
[null,null,null,7,"Pass the step if the information contained in each <tr> element is displayed in the clinical document as a row within a table represented by the <table> element in which it is contained.\nElse, Fail the step.\n","The information contained in each <tr> element is displayed in the clinical document as a row within a table represented by the <table> element in which it is contained.\n",null,null,0,{"$f":"IF(AND(BGCol(C82)=48,G82=\"N/A\"),1,0)","v":{"$error":"#NAME?"}},"TD01"]
[null,null,null,8,"Pass the step if the value of each <th> element is displayed in the clinical document as a column heading within a table represented by the <table> element in which it is contained.\nElse, Fail the step.\n","The value of each <th> element is displayed in the clinical document as a column heading within a table represented by the <table> element in which it is contained.\n",null,null,0,{"$f":"IF(AND(BGCol(C83)=48,G83=\"N/A\"),1,0)","v":{"$error":"#NAME?"}},"TD01"]
[null,null,null,9,"Pass the step if the value of each <td> element is displayed in the clinical document as the contents of a row within a table represented by the <table> element in which it is contained.\nElse, Fail the step.\n","The value of each <td> element is displayed in the clinical document as the contents of a row within a table represented by the <table> element in which it is contained.\n",null,null,0,{"$f":"IF(AND(BGCol(C84)=48,G84=\"N/A\"),1,0)","v":{"$error":"#NAME?"}},"TD01"]
[null,null,null,10,"Pass the step if the value of each <caption> element which is contained within a <td> element, is displayed in the clinical document, and at the commencement of the table data represented by the <td> element in which it is contained.\nElse, Fail the step.","No test case has been defined for this requirement as the use of the <content> element within a data item (i.e. <td> element) does not pass the CDA schema validation.",null,null,null,null,"N/A"]
[null,null,null,11,"Pass the step if the value of each <title> element is displayed in the clinical document at the start of a distinct group of information representing the <section> element within which it is contained.\nElse, Fail the step.\n","The value of each <title> element is displayed in the clinical document at the start of a distinct group of information representing the <section> element within which it is contained.\n",null,null,0,{"$f":"IF(AND(BGCol(C86)=48,G86=\"N/A\"),1,0)","v":{"$error":"#NAME?"}},"TD07"]
[null,null,null,12,"Pass the step if the value of each <content> element is displayed in the clinical document.\nElse, Fail the step.\n","The value of each <content> element is displayed in the clinical document.\n",null,null,0,{"$f":"IF(AND(BGCol(C87)=48,G87=\"N/A\"),1,0)","v":{"$error":"#NAME?"}},"TD03"]
[null,null,null,13,"Pass the step if the value of each <content> element which contains the 'revised' attribute, is displayed in the clinical document, and the value of each <content> element where the value of the 'revised' attribute is '\"delete\" is either visually distinguished or suppressed.\nElse, Fail the step.\n","No test case has been defined for this requirement as the use of the <content> element to manage tracking changes has been prohibited.",null,null,null,null,"N/A"]
[null,null,null,14,"Pass the step if the information contained in each <list> element is displayed in the clinical document as set of consecutive items presented one below the other.\nElse, Fail the step.\n\nNOTE TO TESTER:\nUnordered lists are typically rendered with bullets, whereas ordered lists are typically rendered with numbers or letters, although this is not a requirement. The testing of conformance of the style codes for the <list> element is done in subsequent test cases.\n","The information contained in each <list> element is displayed in the clinical document as set of consecutive items presented one below the other.\n",null,null,0,{"$f":"IF(AND(BGCol(C89)=48,G89=\"N/A\"),1,0)","v":{"$error":"#NAME?"}},"TD01"]
[null,null,null,15,"Pass the step if the value of each <caption> element which is contained within a <list> element, is displayed in the clinical document, and at the commencement of the list represented by the <list> element in which it is contained.\nElse, Fail the step.\n","The value of each <caption> element is displayed in the clinical document, and at the commencement of the list represented by the <list> element in which it is contained.",null,null,0,{"$f":"IF(AND(BGCol(C90)=48,G90=\"N/A\"),1,0)","v":{"$error":"#NAME?"}},"TD01"]
[null,null,null,16,"Pass the step if the value of each <sub> element is displayed in 'subscript' text in the clinical document.\nElse, Fail the step.\n","The value of each <sub> element is displayed in 'subscript' text in the clinical document.\n",null,null,0,{"$f":"IF(AND(BGCol(C91)=48,G91=\"N/A\"),1,0)","v":{"$error":"#NAME?"}},"TD02"]
[null,null,null,17,"Pass the step if the value of each <sup> element is displayed in 'superscript' text in the clinical document.\nElse, Fail the step.\n","The value of each <sup> element is displayed in 'superscript' text in the clinical document.\n",null,null,0,{"$f":"IF(AND(BGCol(C92)=48,G92=\"N/A\"),1,0)","v":{"$error":"#NAME?"}},"TD02"]
[null,null,null,18,"Pass the step if the text following each  <br> element is displayed in the clinical document on a new line to the preceding text.\nElse, Fail the step.\n\nNOTE TO TESTER:\nThe CDA <br/> element is used to indicate a hard line break. It differs from the CDA <paragraph> element in that the <br/> element has no content, and typically is rendered without an intervening blank line.\n","The text following each  <br> element is displayed in the clinical document on a new line to the preceding text.",null,null,0,{"$f":"IF(AND(BGCol(C93)=48,G93=\"N/A\"),1,0)","v":{"$error":"#NAME?"}},"TD02"]
[null,null,null,19,"Pass the step if the value of each <item> element is displayed in the clinical document as an individual member of the list of items represented by the <list> element in which it is contained .\nElse, Fail the step.\n","The value of each <item> element is displayed in the clinical document as an individual member of the list of items represented by the <list> element in which it is contained .",null,null,0,{"$f":"IF(AND(BGCol(C94)=48,G94=\"N/A\"),1,0)","v":{"$error":"#NAME?"}},"TD01"]
[null,null,null,20,"Pass the step if the value of each <caption> element which is contained within an <item> element, is displayed in the clinical document, and at the commencement of the item represented by the <item> element in which it is contained.\nElse, Fail the step.\n","The value of each <caption> element is displayed in the clinical document, and at the commencement of the item represented by the <item> element in which it is contained.",null,null,0,{"$f":"IF(AND(BGCol(C95)=48,G95=\"N/A\"),1,0)","v":{"$error":"#NAME?"}},"TD01"]
[null,null,null,21,"Pass the step if the information contained within each <footnote> element is displayed inline in the clinical document.\nElse, Fail the step.\n\nNOTE TO TESTER:\nReceivers are required to interpret these elements when rendering by visually distinguishing footnoted text. The exact rendition is at the discretion of the recipient, and might include a mark at the location of the footnote with a hyperlink to the footnoted text, a simple demarcation (such as \"This is the text [this is the footnote] that is being footnoted\"), etc.\n","The information contained within each <footnote> element is displayed inline in the clinical document.",null,null,0,{"$f":"IF(AND(BGCol(C96)=48,G96=\"N/A\"),1,0)","v":{"$error":"#NAME?"}},"TD01"]
[null,null,null,22,"Pass the step if the <footnoteRef> element displays a mark or reference in the clinical document that facilitates navigation to the related footnote.\nElse, Fail the step.\n\nNOTE TO TESTER:\nReceivers are required to interpret these elements when rendering by visually distinguishing footnoted text. The exact rendition is at the discretion of the recipient, and might include a mark at the location of the footnote with a hyperlink to the footnoted text, a simple demarcation (such as \"This is the text [this is the footnote] that is being footnoted\"), etc.\n","The <footnoteRef> element displays a mark or reference in the clinical document that facilitates navigation to the related footnote.",null,null,0,{"$f":"IF(AND(BGCol(C97)=48,G97=\"N/A\"),1,0)","v":{"$error":"#NAME?"}},"TD01"]
[null,null,null,null,"The following tests assert the conformance of attachments and links within the narrative block.\n\nNote: \na) The <renderMultiMedia> element references external multimedia that is integral to a document, and part of the attestable content of the document, and serves to show where the referenced multimedia is to be rendered [HL7CDAR2].\n\nb) As test case CDAR-RS-060 specifically tests the ability to render HTML, PDF, RTF and plain text attachments then CDAR-RS-059 can be restricted to just test GIF, JPEG, PNG images.\n"]
[null,null,null,23,"Pass the step if the GIF file referenced in the 'referencedObject' attribute of the <renderMultiMedia> element is displayed in the clinical document at the point of reference.\nElse, Fail the step.","The GIF file referenced in the 'referencedObject' attribute of the <renderMultimedia> element is displayed in the clinical document at the point of reference.\n",null,null,{"$f":"IF(G99=\"Pass\",1,IF(G99=\"N/A\",1,0))","v":0},{"$f":"IF(AND(BGCol(C99)=48,G99=\"N/A\"),1,0)","v":{"$error":"#NAME?"}},"TD01"]
[null,null,null,24,"Pass the step if the JPEG file referenced in the 'referencedObject' attribute of the <renderMultiMedia> element is displayed in the clinical document at the point of reference.\nElse, Fail the step.","The JPEG file referenced in the 'referencedObject' attribute of the <renderMultiMedia> element is displayed in the clinical document at the point of reference.",null,null,0,{"$f":"IF(AND(BGCol(C100)=48,G100=\"N/A\"),1,0)","v":{"$error":"#NAME?"}},"TD04"]
[null,null,null,25,"Pass the step if the PNG file referenced in the 'referencedObject' attribute of the <renderMultiMedia> element is displayed in the clinical document at the point of reference.\nElse, Fail the step.\n\n","The PNG file referenced in the 'referencedObject' attribute of the <renderMultiMedia> element is displayed in the clinical document at the point of reference.",null,null,0,{"$f":"IF(AND(BGCol(C101)=48,G101=\"N/A\"),1,0)","v":{"$error":"#NAME?"}},"TD04"]
[null,null,null,26,"Pass the step if the value of the <caption> element which is contained within a <renderMultiMedia> element, is displayed in the clinical document at the point where the related image is referenced.\nElse, Fail the step.\n","The value of the <caption> element which is contained within a <renderMultiMedia> element, is displayed in the clinical document at the point where the related image is referenced.",null,null,0,{"$f":"IF(AND(BGCol(C102)=48,G102=\"N/A\"),1,0)","v":{"$error":"#NAME?"}},"TD01"]
[null,null,null,27,"Pass the step if the text value of each <linkHtml> element is displayed in the clinical document as a selectable link or as plain text (that is, without the appearance of a selectable link).\nElse, Fail the step.\n\nNOTE TO TESTER:\nThere is no requirement that a receiver of a clinical document render an internal or external link, or the target of an external link [HL7CDAR2]. A <linkHtml> is used to reference an object that is not a fundamental component of the narrative, so it is optional whether or not the object it references is displayed. A <linkHtml> has a reference attribute ('href') which describes the location of linked item, and text value. Regardless of whether the reference is included the text is to be displayed.\n","The text value of each <linkHtml> element is displayed in the clinical document as a selectable link or as plain text.",null,null,0,{"$f":"IF(AND(BGCol(C103)=48,G103=\"N/A\"),1,0)","v":{"$error":"#NAME?"}},"TD03"]
[null,null,"C",28,"CONDITION: The following test step is conditional upon claiming to have the capability of rendering a <regionOfInterest> component.\n\nMark the step N/A where conformance to rendering a <regionOfInterest> component is NOT being asserted.\n\nPass the step if the overlay shape of each <regionOfInterest> referenced from a <renderMultiMedia> element is displayed atop the multimedia image of the related <observationMedia> element.\nElse, Fail the step. \n\nNOTE TO TESTER:\nA <regionOfItnerest> component is an extension to NEHTA specifications, and therefore it may be used, but there is no obligation on any rendering system to be able to render it. This is covered by requirement 023725 of the Common Conformance Profile [NEHTA-1850-2015] states that \"If the producer includes additional elements, they SHALL be included so that the consumer is not obliged to interpret or take any action with regard to these elements beyond that identified in the normative specifications.\"","The overlay shape of each <regionOfInterest> referenced from a <renderMultiMedia> element is displayed atop the multimedia image of the related <observationMedia> element.",null,null,0,{"$f":"IF(AND(BGCol(C104)=48,G104=\"N/A\"),1,0)","v":{"$error":"#NAME?"}},"No NEHTA test data available"]
[null,null,"C",null,"CONDITION: The following test steps are conditional upon asserting conformance to the style hints provided by the style codes.\n\nMark the steps N/A where conformance to the style hints provided by the style codes is NOT being asserted.\n\nNote: The styleCode attribute is used within the CDA Narrative Block to give the author the ability to suggest rendering characteristics of the nested character data. Receivers are not required to render documents using the style hints provided and can present stylized text in accordance with their local style conventions.\n"]
[null,null,null,29,"Pass the step if each \"Bold\" style code contained within any <content>, <item>, <th>,  <td> or <paragraph> element displays the value of the element in which it is contained in bold font. \nElse, Fail the step.\n","The \"Bold\" style code displays the value of the element in which it is contained in bold font. ",null,null,{"$f":"IF(G106=\"Pass\",1,IF(G106=\"N/A\",1,0))","v":0},{"$f":"IF(AND(BGCol(C106)=48,G106=\"N/A\"),1,0)","v":{"$error":"#NAME?"}},"TD06"]
[null,null,null,30,"Pass the step if each \"Underline\" style code contained within any <content>, <item>, <th>,  <td> or <paragraph> element displays the value of the element it is contained within as underlined text. \nElse, Fail the step.\n","The \"Underline\" style code displays the value of the element it is contained within as underlined text.",null,null,0,{"$f":"IF(AND(BGCol(C107)=48,G107=\"N/A\"),1,0)","v":{"$error":"#NAME?"}},"TD06"]
[null,null,null,31,"Pass the step if each \"Italics\" style code contained within any <content>, <item>, <th>,  <td> or <paragraph> element displays the value of the element it is contained within in italics . \nElse, Fail the step.\n\n","The \"Italics\" style code displays in italics the value of the element it is contained within. ",null,null,0,{"$f":"IF(AND(BGCol(C108)=48,G108=\"N/A\"),1,0)","v":{"$error":"#NAME?"}},"TD06"]
[null,null,null,32,"Pass the step if each \"Emphasis\" style code contained within any <content>, <item>, <th>,  <td> or <paragraph> element displays the value of the element it is contained within in upper case.\nElse, Fail the step.\n","The \"Emphasis\" style code displays the value of the element it is contained within in upper case.",null,null,0,{"$f":"IF(AND(BGCol(C109)=48,G109=\"N/A\"),1,0)","v":{"$error":"#NAME?"}},"TD03"]
[null,null,null,33,"Pass the step if each \"xFixed\" style code contained within any <content>, <item>, <th>,  <td> or <paragraph> element displays the value of the element in which it is contained in a monospace font.\nElse, Fail the step.\n\nNOTE TO TESTER:\nA monospaced font, also called a fixed-pitch, fixed-width, or non-proportional font, is a font whose letters and characters each occupy the same amount of horizontal space. This contrasts with variable-width fonts, where the letters and spacings have different widths.\n","The \"xFixed\" style code displays the value of the element in which it is contained in a monospace font.",null,null,0,{"$f":"IF(AND(BGCol(C110)=48,G110=\"N/A\"),1,0)","v":{"$error":"#NAME?"}},"TD06"]
[null,null,null,34,"Pass the step if each \"xPre\" style code contained within any <content>, <item>, <th>,  <td> or <paragraph> element displays the value of the element in which it is contained with white space and carriage returns.\nElse, Fail the step.\n\nNOTE TO TESTER:\nWhite space and carriage returns are normally removed from the display of textual data, however the \"xPre\" style code will preserve these within the display.\n","The \"xPre\" style code displays the value of the element in which it is contained with white space and carriage returns.",null,null,0,{"$f":"IF(AND(BGCol(C111)=48,G111=\"N/A\"),1,0)","v":{"$error":"#NAME?"}},"TD06"]
[null,null,null,35,"Pass the step if each \"xBgColourHHHHHH\" style code contained within any <content>, <item>, <th>,  <td> or <paragraph> element displays the value of the element in which it is contained with the background colour represented by the hex value of the \"HHHHHH\" component of the style code.\nElse, Fail the step.\n\nNOTE TO TESTER:\nThe background colour would be presented as the colour of the non-value part of area defined by the element in which the style code is present.\n","The \"xBgColourHHHHHH\" style code displays the value of the element in which it is contained with the background colour represented by the hex value of the \"HHHHHH\" component of the style code.",null,null,0,{"$f":"IF(AND(BGCol(C112)=48,G112=\"N/A\"),1,0)","v":{"$error":"#NAME?"}},"TD06"]
[null,null,null,36,"Pass the step if each \"xFgColourHHHHHH\" style code contained within any <content>, <item>, <th>,  <td> or <paragraph> element displays the value of the element in which it is contained with the foreground colour represented by the hex value of the \"HHHHHH\" component of the style code.\nElse, Fail the step.\n\nNOTE TO TESTER:\nThe foreground colour would be presented as the colour of the value of the element in which the style code is present.\n","The \"xFgColourHHHHHH\" style code displays the value of the element in which it is contained with the foreground colour represented by the hex value of the \"HHHHHH\" component of the style code.",null,null,0,{"$f":"IF(AND(BGCol(C113)=48,G113=\"N/A\"),1,0)","v":{"$error":"#NAME?"}},"TD06"]
[null,null,null,37,"Pass the step if each \"xFontSizeEmZ\" style code contained within any <content>, <item>, <th>,  <td> or <paragraph> element displays the value of the element in which it is contained with the font size in \"ems\" specified by the value of the \"Z\"  component of the style code.\nElse, Fail the step.\n\n","The \"xFontSizeEmZ\" style code displays the value of the element in which it is contained with the font size in \"ems\" specified by the value of the \"Z\"  component of the style code.",null,null,0,{"$f":"IF(AND(BGCol(C114)=48,G114=\"N/A\"),1,0)","v":{"$error":"#NAME?"}},"TD06"]
[null,null,null,38,"Pass the step if each \"xFontSizePxZ\" style code contained within any <content>, <item>, <th>,  <td> or <paragraph> element displays the value of the element in which it is contained with the font size in \"pixels\" specified by the value of the \"Z\"  component of the style code.\nElse, Fail the step.\n\n","The \"xFontSizePxZ\" style code displays the value of the element in which it is contained with the font size in \"pixels\" specified by the value of the \"Z\"  component of the style code.",null,null,0,{"$f":"IF(AND(BGCol(C115)=48,G115=\"N/A\"),1,0)","v":{"$error":"#NAME?"}},"TD06"]
[null,null,null,39,"Pass the step if each \"xColWidthPxZ\" style code contained within any <content>, <item>, <th>,  <td> or <paragraph> element displays the value of the element in which it is contained within a column width in the number of \"pixels\" specified by the value of the \"Z\"  component of the style code.\nElse, Fail the step.\n\n","The \"xColWidthPxZ\" style code displays the value of the element in which it is contained within a column width in the number of \"pixels\" specified by the value of the \"Z\"  component of the style code.",null,null,0,{"$f":"IF(AND(BGCol(C116)=48,G116=\"N/A\"),1,0)","v":{"$error":"#NAME?"}},"TD06"]
[null,null,null,40,"Pass the step if multiple style codes contained within any <content>, <item>, <th>,  <td> or <paragraph> element display the value of the element in which it is contained with each style represented. \nElse, Fail the step.\n","The multiple style codes display the value of the element in which they are contained with each style represented. ",null,null,0,{"$f":"IF(AND(BGCol(C117)=48,G117=\"N/A\"),1,0)","v":{"$error":"#NAME?"}},"TD06"]
[null,null,null,null,"The following tests assert the conformance of element style codes used with table heading and data elements within a narrative block, and which relate to the formatting of the data within the cells.\n",null,null,null,null,null,"N/A"]
[null,null,null,41,"Pass the step if each \"Lrule\" style code contained within any <th> or <td> element displays the value of the element in which it is contained ordered from the left hand side of the cell.\nElse, Fail the step.\n\n","The \"Lrule\" style code displays the value of the element in which it is contained ordered from the left hand side of the cell.",null,null,{"$f":"IF(G119=\"Pass\",1,IF(G119=\"N/A\",1,0))","v":0},{"$f":"IF(AND(BGCol(C119)=48,G119=\"N/A\"),1,0)","v":{"$error":"#NAME?"}},"TD06\n"]
[null,null,null,42,"Pass the step if each \"Rrule\" style code contained within any <th> or <td> element displays the value of the element in which it is contained ordered from the right hand side of the cell.\nElse, Fail the step.\n\n","The \"Rrule\" style code displays the value of the element in which it is contained ordered from the right hand side of the cell.",null,null,0,{"$f":"IF(AND(BGCol(C120)=48,G120=\"N/A\"),1,0)","v":{"$error":"#NAME?"}},"TD06\n"]
[null,null,null,43,"Pass the step if each \"Toprule\" style code contained within any <th> or <td> element displays the value of the element in which it is contained ordered from the top of the cell.\nElse, Fail the step.\n\n","The \"Toprule\" style code displays the value of the element in which it is contained ordered from the top of the cell.",null,null,0,{"$f":"IF(AND(BGCol(C121)=48,G121=\"N/A\"),1,0)","v":{"$error":"#NAME?"}},"TD06\n"]
[null,null,null,44,"Pass the step if each \"Botrule\" style code contained within any <th> or <td> element displays the value of the element in which it is contained ordered from the bottom of the cell.\nElse, Fail the step.\n\n","The \"Botrule\" style code displays the value of the element in which it is contained ordered from the bottom of the cell.",null,null,0,{"$f":"IF(AND(BGCol(C122)=48,G122=\"N/A\"),1,0)","v":{"$error":"#NAME?"}},"TD06\n"]
[null,null,null,null,"The following tests assert the conformance of element style codes used with table heading and data elements within a narrative block, and which relate to the display of column and row cells boundaries.\n",null,null,null,null,null,"N/A"]
[null,null,null,45,"Pass the step if each \"colspan\" attribute contained within any <th> or <td> element displays the value of that element across the number of columns represented by the value of the attribute.\nElse, Fail the step. \n","The \"colspan\" attribute displays value of the <th> or <td> element across the number of columns represented by the value of the attribute.",null,null,{"$f":"IF(G124=\"Pass\",1,IF(G124=\"N/A\",1,0))","v":0},{"$f":"IF(AND(BGCol(C124)=48,G124=\"N/A\"),1,0)","v":{"$error":"#NAME?"}},"TD03"]
[null,null,null,46,"Pass the step if each \"rowspan\" attribute contained within any <th> or <td> element displays value of that element across the number of rows represented by the value of the attribute.\nElse, Fail the step. \n","The \"rowspan\" attribute displays value of the <th> or <td> element across the number of rows represented by the value of the attribute.",null,null,0,{"$f":"IF(AND(BGCol(C125)=48,G125=\"N/A\"),1,0)","v":{"$error":"#NAME?"}},"TD03"]
[null,null,null,null,"The following tests assert the conformance of element style codes used with the <list> element within a narrative block.\n",null,null,null,null,null,"N/A"]
[null,null,null,47,"Pass the step if each \"Disc\" style code contained within any  <list> element where the value of the \"listType\" attribute is \"unordered\" displays the value of the element preceded by a solid circle bullet point.\nElse, Fail the step.\n\n","The \"Disc\" style code displays the value of the element preceded by a solid circle bullet point.",null,null,{"$f":"IF(G127=\"Pass\",1,IF(G127=\"N/A\",1,0))","v":0},{"$f":"IF(AND(BGCol(C127)=48,G127=\"N/A\"),1,0)","v":{"$error":"#NAME?"}},"TD01"]
[null,null,null,48,"Pass the step if each \"Circle\" style code contained within any  <list> element where the value of the \"listType\" attribute is \"unordered\" displays the value of the element preceded by an empty circle bullet point.\nElse, Fail the step.\n\n","The \"Circle\" style code displays the value of the element preceded by a empty circle bullet point.",null,null,0,{"$f":"IF(AND(BGCol(C128)=48,G128=\"N/A\"),1,0)","v":{"$error":"#NAME?"}},"TD01"]
[null,null,null,49,"Pass the step if each \"Square\" style code contained within any  <list> element where the value of the \"listType\" attribute is \"unordered\" displays the value of the element preceded by a square shaped bullet point.\nElse, Fail the step.\n\n","The \"Square\" style code displays the value of the element preceded by a square shaped bullet point.",null,null,0,{"$f":"IF(AND(BGCol(C129)=48,G129=\"N/A\"),1,0)","v":{"$error":"#NAME?"}},"TD01"]
[null,null,null,50,"Pass the step if each \"LittleRoman\" style code contained within any  <list> element where the value of the \"listType\" attribute is \"ordered\" displays the value of the element preceded by a lower-case Roman numeral (i.e. i, ii, iii).\nElse, Fail the step.\n","The \"LittleRoman\" style code displays the value of the element preceded by a lower-case Roman numerals.",null,null,0,{"$f":"IF(AND(BGCol(C130)=48,G130=\"N/A\"),1,0)","v":{"$error":"#NAME?"}},"TD01"]
[null,null,null,51,"Pass the step if each \"BigRoman\" style code contained within any  <list> element where the value of the \"listType\" attribute is \"ordered\" displays the value of the element preceded by an upper-case Roman numerals (i.e. I, II, III).\nElse, Fail the step.\n\n","The \"BigRoman\" style code displays the value of the element preceded by an upper-case Roman numerals.",null,null,0,{"$f":"IF(AND(BGCol(C131)=48,G131=\"N/A\"),1,0)","v":{"$error":"#NAME?"}},"TD01"]
[null,null,null,52,"Pass the step if each \"LittleAlpha\" style code contained within any  <list> element where the value of the \"listType\" attribute is \"ordered\" displays the value of the element preceded by a lower-case alphabetic letters (i.e. a, b, c).\nElse, Fail the step.\n\n","The \"LittleAlpha\" style code displays the value of the element preceded by a lower-case alphabetic letter.",null,null,0,{"$f":"IF(AND(BGCol(C132)=48,G132=\"N/A\"),1,0)","v":{"$error":"#NAME?"}},"TD01"]
[null,null,null,53,"Pass the step if each \"BigAlpha\" style code contained within any  <list> element where the value of the \"listType\" attribute is \"ordered\" displays the value of the element preceded by an upper-case alphabetic letters (i.e. A, B, C).\nElse, Fail the step.\n","The \"BigAlpha\" style code displays the value of the element preceded by an upper-case alphabetic letter.",null,null,0,{"$f":"IF(AND(BGCol(C133)=48,G133=\"N/A\"),1,0)","v":{"$error":"#NAME?"}},"TD01"]
["CDAR-RS-060","CDA-RS 60\nRendering Systems SHALL ensure they are able to present HTML, PDF, RTF and Plain Text document attachments. Such attachments are not displayed in-line as part of the narrative, but become visible when the user chooses the appropriate interface option to prompt their display (e.g. an HTML link in a web browser to be selected).\n\nNOTES:  \na) Where the clinical document contains attachments that do not conform to requirement 023741 of the Common Conformance Profile [NEHTA-1850:2015] (i.e. they are not an allowed MIME type) then these will be tested in the '2. CDAR P2P' worksheet. This applies to HTML, RTF and Plain Text attachments.\nb) Where the clinical document is a Pathology or Diagnostic Imaging Report this requirement is overridden by requirement 024886 in the eHealth Pathology Report - PCEHR Conformance Profile [NEHTA-1979:2015] and eHealth Diagnostic Imaging Report - PCEHR Conformance Profile [NEHTA-1978:2015], which allows in-line rendering of PDF attachments, and is assessed in the \"3. PR\" and \"4. DIR\" worksheets. \n\n","C",1,"CONDITION: The clinical document is not a Pathology Report or Diagnostic Imaging Report.\n\nMark the test N/A where the the clinical document is not a Pathology Report or Diagnostic Imaging Report\n\nPass the test if:\na) the value of the <caption> element which is contained within a <renderMultiMedia> element where the object of the 'referencedObject' attribute is a PDF document, is displayed in the clinical document as a selectable link at the point where the object is referenced, and\nb) the referenced object becomes visible when the link is selected.\nElse, Fail the test.\n","The value of the <caption> element which is contained within a <renderMultiMedia> element, is displayed as a selectable link at  the point where the related image is referenced, and referenced document is displayed when the attachment link is selected.",null,null,0,{"$f":"IF(AND(BGCol(C134)=48,G134=\"N/A\"),1,0)","v":{"$error":"#NAME?"}},"TD02"]
["CDAR-RS-062","CDA-RS 62\nRendering Systems MAY support additional attachment types not required in this specification.","O",null,"If conformance to this requirement is not being asserted then mark the Test Result as 'N/A'.\n\nFor documents able to be downloaded from the PCEHR, only those with a TIFF file type attachment satisfies this requirement, as per requirement 023741 of the Common Conformance Profile [NEHTA-1850:2015]. These could be included in the clinical document using either a <linkHtml> or <renderMultiMedia> element. If additional attachment types are included via a <linkHtml> element, this test is performed in test case CDAR-RS-059 step 21.\n\nA rendering system may display these as in-line with the primary CDA document, or as a selectable link at the point where the object is referenced, with the object becoming visible when the link is selected.\n\nOther attachment file types, which are not allowed in the PCEHR context, are tested in the '2.CDAR P2P' worksheet.\n",null,null,null,null,null,"N/A"]
[null,null,null,1,"Pass the test if:\na) the value of the <caption> element which is contained within a <renderMultiMedia> element where the object of the 'referencedObject' attribute is a TIFF document, is displayed in the clinical document as a selectable link at the point where the object is referenced, and\nb) the referenced object becomes visible when the link is selected, \nor\nc) the attachment is displayed in-line within the rendered document.\nElse, Fail the test.\n","Either the value of the <caption> element which is contained within a <renderMultiMedia> element, is displayed as a selectable link at the point where the related image is referenced, and \nthe referenced document is displayed when the attachment link is selected, or\nthe attachment is displayed in-line within the rendered document.",null,null,{"$f":"IF(G136=\"Pass\",1,IF(G136=\"N/A\",1,0))","v":0},{"$f":"IF(AND(BGCol(C136)=48,G136=\"N/A\"),1,0)","v":{"$error":"#NAME?"}},"TD04\n"]
["CDAR-RS-063","CDA-RS 63\nRendering Systems MAY render the <nonXMLBody> element.\n","O","N/A","No test case is defined for this requirement.",null,null,null,null,null,"N/A"]
["END: Rendering requirements for CDA Body"]
[]
["START: Version Management"]
["CDAR-RS-006","CDA-RS 6\nA CDA Implementation Guide can mandate that a minimum version of this specification is required. If Rendering Systems need to display these documents, they SHOULD ensure that the version of this specification to which they comply is greater than or equal to the minimum version required by the CDA Implementation Guide.\n","O ",1,"The assertion of conformance to this requirement is met by:\nRequirement: CDA-RS 68 and \nTest Case: CDAR-RS-068.","\n",null,null,null,null,"N/A"]
["CDAR-RS-068","CDA-RS 68\nRendering Systems SHALL support at least the version of this specification required in a specific CDA Implementation Guide for rendering of that specific type of CDA document.","M",1,"Pass the test where the version of the Rendering Specification used is either:\na) greater than or equal to the minimum version required by the clinical document's Implementation Guide, or\nb) where the clinical document's Implementation Guide does not specify a version, the version applicable to this specification (i.e. version 1.0) [NEHTA-1199:2012].\nElse, Fail the test.\n","The Rendering Systems support at least the version of this specification required in a specific CDA Implementation Guide for rendering of that specific type of CDA document.",null,null,{"$f":"IF(G142=\"Pass\",1,IF(G142=\"N/A\",1,0))","v":0},{"$f":"IF(AND(BGCol(C142)=48,G142=\"N/A\"),1,0)","v":{"$error":"#NAME?"}},"TD01"]
["CDAR-RS-069","CDA-RS 69\nWhen displaying a CDA document:\n\na. Rendering Systems SHALL check the CDA Rendering Specification version in the <templateId> header element of the CDA document.\nb. Rendering Systems SHALL display a clear warning if they are not compliant with the Rendering Specification version asserted in the CDA document being displayed.\nc. Rendering Systems SHALL require users to acknowledge the warning before viewing the content.\n","M",null,"Display a clinical document which contains a version of the Rendering Specification which is greater than the version used by the rendering system.\n",null,null,null,null,null,"N/A"]
[null,null,null,1,"Pass the step if the rendering system displays a clear warning that it is not compliant with the version required by the clinical document.\nElse, Fail the step.\n","A clear warning message is displayed informing that the rendering system is not compliant with the version required by the clinical document.",null,null,{"$f":"IF(G144=\"Pass\",1,IF(G144=\"N/A\",1,0))","v":0},{"$f":"IF(AND(BGCol(C144)=48,G144=\"N/A\"),1,0)","v":{"$error":"#NAME?"}},"TD05"]
[null,null,null,2,"Pass the step if an acknowledgement to the warning is required.\nElse, Fail this step.\n","An acknowledgement to the warning is required.",null,null,0,{"$f":"IF(AND(BGCol(C145)=48,G145=\"N/A\"),1,0)","v":{"$error":"#NAME?"}},"TD05"]
["END: Version management"]
[]
["START: Common Conformance Requirements for Consumers > Clinical Document rendering requirements"]
["CDAR-CCP-024688","024688\nClinical document consumer conforms to Common Conformance Profile\n\nA clinical document consumer SHALL conform to the requirements in the Common Conformance Profile for Clinical Documents, and any specific conformance profile for the relevant type of clinical document. Requirements in the specific conformance profile take precedence over requirements in the Common Conformance Profile.\n","M",null,"This requirement is met by the completion of test cases which satisfy the requirements documented in the Clinical Documentation - Common Conformance Profile [NEHTA-1850:2015].","No result required as this step is a satisfied with the completion of other test cases within this worksheet."]
["CDAR-CCP-023738","023738\nConform to rendering requirements for the display of the clinical document\n\nClinical document Consumers SHALL conform to the rendering requirements from the CDA Rendering Specification [NEHTA-1199:2012] for the display of the clinical document.\n\nNote:\nAlthough this requirement is general, and can be satisfied by the test cases executed for the CDA Rendering Specification [NEHTA-1199:2012], additional tests have been included which fall within the coverage of this requirement. Steps 2 & 3 support the Authoring requirement 023876 (f) of the Common Conformance Profile which states that a local ID can be used instead of a national identifier (HPI-I).",null,null,"This requirement is met by the completion of other test cases in this worksheet which satisfy the requirements documented in the Clinical Documentation - CDA Rendering Specification [NEHTA-1199:2012].","No result required as this step is a satisfied with the completion of test cases for the rendering specification requirements."]
[null,null,"C",1,"PREREQUISITE: \na) HPI-I relaxation is being used and a local identifier is provided instead of a national identifier, and\nb) conformance to requirement CDA-RS 29 (a) is not being asserted (omission from display of local identifiers), and\nc) the document author has a HPI-O based local identifier.\n\nPass the step if the rendering system displays the healthcare provider local identifier.\nElse, Fail the step.\n","The healthcare provider local identifier is displayed.",null,null,{"$f":"IF(G151=\"Pass\",1,IF(G151=\"N/A\",1,0))","v":0},{"$f":"IF(AND(BGCol(C151)=48,G151=\"N/A\"),1,0)","v":{"$error":"#NAME?"}},"TD15"]
[null,null,"C",2,"PREREQUISITE: \na) HPI-I relaxation is being used and a local identifier is provided instead of a national identifier, and\nb) conformance to requirement CDA-RS 29 (a) is not being asserted (omission from display of local identifiers), and\nc) the document author has a non-HPI-O based local identifier.\n\nPass the step if the rendering system displays the healthcare provider local identifier.\nElse, Fail the step.\n","The healthcare provider local identifier is displayed.",null,null,0,{"$f":"IF(AND(BGCol(C152)=48,G152=\"N/A\"),1,0)","v":{"$error":"#NAME?"}},"TD16"]
[null,null,"M",3,"Pass the step if an incomplete but conformant date of format 'yyyymm' is successfully displayed.\nElse, Fail the step.\n","The incomplete date is displayed.",null,null,0,{"$f":"IF(AND(BGCol(C153)=48,G153=\"N/A\"),1,0)","v":{"$error":"#NAME?"}},"TD06"]
[null,null,"M",4,"Pass the step if an incomplete but conformant date of format 'yyyy' is successfully displayed.\nElse, Fail the step.\n\n","The incomplete date is displayed.",null,null,0,{"$f":"IF(AND(BGCol(C154)=48,G154=\"N/A\"),1,0)","v":{"$error":"#NAME?"}},"TD08"]
["CDAR-CCP-023739","023739\nCapability to render all supported CDA levels of clinical documents\n\nThe Consumer SHALL have the capability to render all CDA levels of clinical documents of the type supported by the Consumer.\n","C",null,"If the rendering system is designed to display the Shared Health Summary [NEHTA-1838:2015] then perform steps 1 and 2, \nElse, Mark steps 1 and 2 as N/A.\n"]
[null,null,null,1,"Pass the step if a Shared Health Summary conformant to Level 3A is rendered.\nElse, Fail the step.\n","The Shared Health Summary is displayed.",null,null,{"$f":"IF(G156=\"Pass\",1,IF(G156=\"N/A\",1,0))","v":0},{"$f":"IF(AND(BGCol(C156)=48,G156=\"N/A\"),1,0)","v":{"$error":"#NAME?"}},"TD25"]
[null,null,null,2,"Pass the step if a Shared Health Summary conformant to Level 3B is rendered.\nElse, Fail the step.\n","The Shared Health Summary is displayed.",null,null,0,{"$f":"IF(AND(BGCol(C157)=48,G157=\"N/A\"),1,0)","v":{"$error":"#NAME?"}},"TD26"]
[null,null,null,null,"If the rendering system is designed to display the Event Summary [NEHTA-1844:2015] then perform steps 3 and 4, \nElse, Mark steps 3 and 4 as N/A.\n"]
[null,null,null,3,"Pass the step if an Event Summary conformant to Level 3A is rendered.\nElse, Fail the step.\n","The Event Summary is displayed.",null,null,{"$f":"IF(G159=\"Pass\",1,IF(G159=\"N/A\",1,0))","v":0},{"$f":"IF(AND(BGCol(C159)=48,G159=\"N/A\"),1,0)","v":{"$error":"#NAME?"}},"TD27"]
[null,null,null,4,"Pass the step if an Event Summary conformant to Level 3B is rendered.\nElse, Fail the step.\n","The Event Summary is displayed.",null,null,0,{"$f":"IF(AND(BGCol(C160)=48,G160=\"N/A\"),1,0)","v":{"$error":"#NAME?"}},"TD28"]
[null,null,null,null,"If the rendering system is designed to display the Discharge Summary [NEHTA-1448:2013] then perform steps 5 through to 9, \nElse, Mark steps 5 through to 9 as N/A.\n"]
[null,null,null,5,"Pass the step if a Discharge Summary conformant to Level 1A is rendered.\nElse, Fail the step.\n","The Discharge Summary is displayed.",null,null,{"$f":"IF(G162=\"Pass\",1,IF(G162=\"N/A\",1,0))","v":0},{"$f":"IF(AND(BGCol(C162)=48,G162=\"N/A\"),1,0)","v":{"$error":"#NAME?"}},"TD29"]
[null,null,null,6,"Pass the step if a Discharge Summary conformant to Level 1B is rendered.\nElse, Fail the step.\n","The Discharge Summary is displayed.",null,null,0,{"$f":"IF(AND(BGCol(C163)=48,G163=\"N/A\"),1,0)","v":{"$error":"#NAME?"}},"TD30"]
[null,null,null,7,"Pass the step if a Discharge Summary conformant to Level 2 is rendered.\nElse, Fail the step.\n","The Discharge Summary is displayed.",null,null,0,{"$f":"IF(AND(BGCol(C164)=48,G164=\"N/A\"),1,0)","v":{"$error":"#NAME?"}},"TD31"]
[null,null,null,8,"Pass the step if a Discharge Summary conformant to Level 3A is rendered.\nElse, Fail the step.\n","The Discharge Summary is displayed.",null,null,0,{"$f":"IF(AND(BGCol(C165)=48,G165=\"N/A\"),1,0)","v":{"$error":"#NAME?"}},"TD32"]
[null,null,null,9,"Pass the step if a Discharge Summary conformant to Level 3B is rendered.\nElse, Fail the step.\n","The Discharge Summary is displayed.",null,null,0,{"$f":"IF(AND(BGCol(C166)=48,G166=\"N/A\"),1,0)","v":{"$error":"#NAME?"}},"TD33"]
[null,null,null,null,"If the rendering system is designed to display the eReferral [NEHTA-1449:2013] then perform steps 10 through to 14, \nElse, Mark steps 10 through to 14 as N/A.\n"]
[null,null,null,10,"Pass the step if an eReferral conformant to Level 1A is rendered.\nElse, Fail the step.\n","The eReferral is displayed.",null,null,{"$f":"IF(G168=\"Pass\",1,IF(G168=\"N/A\",1,0))","v":0},{"$f":"IF(AND(BGCol(C168)=48,G168=\"N/A\"),1,0)","v":{"$error":"#NAME?"}},"TD34"]
[null,null,null,11,"Pass the step if an eReferral conformant to Level 1B is rendered.\nElse, Fail the step.\n","The eReferral is displayed.",null,null,0,{"$f":"IF(AND(BGCol(C169)=48,G169=\"N/A\"),1,0)","v":{"$error":"#NAME?"}},"TD35"]
[null,null,null,12,"Pass the step if an eReferral conformant to Level 2 is rendered.\nElse, Fail the step.\n","The eReferral is displayed.",null,null,0,{"$f":"IF(AND(BGCol(C170)=48,G170=\"N/A\"),1,0)","v":{"$error":"#NAME?"}},"TD36"]
[null,null,null,13,"Pass the step if an eReferral conformant to Level 3A is rendered.\nElse, Fail the step.\n","The eReferral is displayed.",null,null,0,{"$f":"IF(AND(BGCol(C171)=48,G171=\"N/A\"),1,0)","v":{"$error":"#NAME?"}},"TD37"]
[null,null,null,14,"Pass the step if an eReferral conformant to Level 3B is rendered.\nElse, Fail the step.\n","The eReferral is displayed.",null,null,0,{"$f":"IF(AND(BGCol(C172)=48,G172=\"N/A\"),1,0)","v":{"$error":"#NAME?"}},"TD38"]
[null,null,null,null,"If the rendering system is designed to display the Specialist Letter [NEHTA-1800:2014] then perform steps 15 through to 19, \nElse, Mark steps 15 through to 19 as N/A.\n"]
[null,null,null,15,"Pass the step if a Specialist Letter conformant to Level 1A is rendered.\nElse, Fail the step.\n","The Specialist Letter is displayed.",null,null,{"$f":"IF(G174=\"Pass\",1,IF(G174=\"N/A\",1,0))","v":0},{"$f":"IF(AND(BGCol(C174)=48,G174=\"N/A\"),1,0)","v":{"$error":"#NAME?"}},"TD39"]
[null,null,null,16,"Pass the step if a Specialist Letter conformant to Level 2A is rendered.\nElse, Fail the step.\n","The Specialist Letter is displayed.",null,null,0,{"$f":"IF(AND(BGCol(C175)=48,G175=\"N/A\"),1,0)","v":{"$error":"#NAME?"}},"TD40"]
[null,null,null,17,"Pass the step if a Specialist Letter conformant to Level 2 is rendered.\nElse, Fail the step.\n","The Specialist Letter is displayed.",null,null,0,{"$f":"IF(AND(BGCol(C176)=48,G176=\"N/A\"),1,0)","v":{"$error":"#NAME?"}},"TD41"]
[null,null,null,18,"Pass the step if a Specialist Letter conformant to Level 3A is rendered.\nElse, Fail the step.\n","The Specialist Letter is displayed.",null,null,0,{"$f":"IF(AND(BGCol(C177)=48,G177=\"N/A\"),1,0)","v":{"$error":"#NAME?"}},"TD42"]
[null,null,null,19,"Pass the step if a Specialist Letter conformant to Level 3B is rendered.\nElse, Fail the step.\n","The Specialist Letter is displayed.",null,null,0,{"$f":"IF(AND(BGCol(C178)=48,G178=\"N/A\"),1,0)","v":{"$error":"#NAME?"}},"TD43"]
[null,null,null,null,"If the rendering system is designed to display the eHealth Prescription Record [NEHTA-1912:2015] then perform steps 20 and 21, \nElse, Mark steps 20 and 21 as N/A.\n"]
[null,null,null,20,"Pass the step if an eHealth Prescription Record conformant to Level 3A is rendered.\nElse, Fail the step.\n","The eHealth Prescription Record is displayed.",null,null,{"$f":"IF(G180=\"Pass\",1,IF(G180=\"N/A\",1,0))","v":0},{"$f":"IF(AND(BGCol(C180)=48,G180=\"N/A\"),1,0)","v":{"$error":"#NAME?"}},"TD44"]
[null,null,null,21,"Even though the Conformance Profile states that an eHealth Prescription Record for conformance level 3B is possible, in practice there are no 3B templates available and therefore it is currently not possible to upload a 3B document of this type to the PCEHR.\n\nAs such, there is no test for this type of document at this conformance level.\n"]
[null,null,null,null,"If the rendering system is designed to display the eHealth Dispense Record [NEHTA-1909:2015] then perform steps 22 and 23, \nElse, Mark steps 22 and 23 as N/A.\n"]
[null,null,null,22,"Pass the step if an eHealth Dispense Record conformant to Level 3A is rendered.\nElse, Fail the step.\n","The eHealth Dispense Record is displayed.",null,null,{"$f":"IF(G183=\"Pass\",1,IF(G183=\"N/A\",1,0))","v":0},{"$f":"IF(AND(BGCol(C183)=48,G183=\"N/A\"),1,0)","v":{"$error":"#NAME?"}},"TD46"]
[null,null,null,23,"Even though the Conformance Profile states that an eHealth Dispense Record for conformance level 3B is possible, in practice there are no 3B templates available and therefore it is currently not possible to upload a 3B document of this type to the PCEHR.\n\nAs such, there is no test for this type of document at this conformance level.\n"]
[null,null,null,null,"If the rendering system is designed to display the eHealth Pathology Report [NEHTA-1979:2015] then perform steps 24 and 25, \nElse, Mark steps 24 and 25 as N/A.\n"]
[null,null,null,24,"Pass the step if an eHealth Pathology Record conformant to Level 3A is rendered.\nElse, Fail the step.\n","The eHealth Pathology Record is displayed.",null,null,{"$f":"IF(G186=\"Pass\",1,IF(G186=\"N/A\",1,0))","v":0},{"$f":"IF(AND(BGCol(C186)=48,G186=\"N/A\"),1,0)","v":{"$error":"#NAME?"}},"TD48"]
[null,null,null,25,"Even though the Conformance Profile states that an eHealth Pathology Record for conformance level 3B is possible, in practice there are no 3B templates available and therefore it is currently not possible to upload a 3B document of this type to the PCEHR.\n\nAs such, there is no test for this type of document at this conformance level.\n"]
[null,null,null,null,"If the rendering system is designed to display the eHealth Diagnostic Imaging Report [NEHTA-1978:2015] then perform steps 26 and 27, \nElse, Mark steps 26 and 27 as N/A.\n"]
[null,null,null,26,"Pass the step if an eHealth Diagnostic Imaging Record conformant to Level 3A is rendered.\nElse, Fail the step.","The eHealth Diagnostic Imaging Record is displayed",null,null,{"$f":"IF(G189=\"Pass\",1,IF(G189=\"N/A\",1,0))","v":0},{"$f":"IF(AND(BGCol(C189)=48,G189=\"N/A\"),1,0)","v":{"$error":"#NAME?"}},"TD50"]
[null,null,null,27,"Even though the Conformance Profile states that an eHealth Diagnostic Imaging Record for conformance level 3B is possible, in practice there are no 3B templates available and therefore it is currently not possible to upload a 3B document of this type to the PCEHR.\n\nAs such, there is no test for this type of document at this conformance level.\n"]
[null,null,null,null,"If the rendering system is designed to display the Personal Health Summary (formerly the Consumer Entered Health Summary) [NEHTA-1447:2013] then perform step 28, \nElse, Mark step 28 as N/A.\n"]
[null,null,null,28,"Pass the step if a Personal Health Summary (formerly the Consumer Entered Health Summary) conformant to Level 3A is rendered.\nElse, Fail the step.","The Personal Health Summary is displayed.",null,null,{"$f":"IF(G192=\"Pass\",1,IF(G192=\"N/A\",1,0))","v":0},{"$f":"IF(AND(BGCol(C192)=48,G192=\"N/A\"),1,0)","v":{"$error":"#NAME?"}},"Available only on Consumer Portal dated 21-Jan-2013"]
[null,null,null,29,"Even though the Conformance Profile states that a Personal Health Summary for conformance level 3B is possible, in practice there are no 3B templates available and therefore it is currently not possible to upload a 3B document of this type to the My Health Record system.\n\nAs such, there is no test for this type of document at this conformance level."]
[null,null,null,null,"If the rendering system is designed to display the Advance Care Directive Custodian Record [NEHTA-1447:2013] then perform step 30, \nElse, Mark step 30 as N/A.\n"]
[null,null,null,30,"Pass the step if an Advance Care Directive Custodian Record conformant to Level 3A is rendered.\nElse, Fail the step.","The Advance Care Directive Custodian Record is displayed",null,null,{"$f":"IF(G195=\"Pass\",1,IF(G195=\"N/A\",1,0))","v":0},{"$f":"IF(AND(BGCol(C195)=48,G195=\"N/A\"),1,0)","v":{"$error":"#NAME?"}},"Available only on Consumer Portal dated 10-Jul-2014"]
[null,null,null,31,"Even though the Conformance Profile states that an Advance Care Directive Custodian Record for conformance level 3B is possible, in practice there are no 3B templates available and therefore it is currently not possible to upload a 3B document of this type to the My Health Record system.\n\nAs such, there is no test for this type of document at this conformance level."]
[null,null,null,null,"If the rendering system is designed to display the Australian Organ Donor Record [NEHTA-1855:2014] then perform step 32, \nElse, Mark step 32 as N/A.\n"]
[null,null,null,32,"Pass the step if an Australian Organ Donor Record conformant to Level 3A is rendered.\nElse, Fail the step.","The Australian Organ Donor Record is displayed.",null,null,{"$f":"IF(G198=\"Pass\",1,IF(G198=\"N/A\",1,0))","v":0},{"$f":"IF(AND(BGCol(C198)=48,G198=\"N/A\"),1,0)","v":{"$error":"#NAME?"}},"Available only on Consumer Portal dated 6-Nov-2008"]
[null,null,null,null,"If the rendering system is designed to display the Australian Childhood Immunisation Record [NEHTA-1857:2015] then perform step 33, \nElse, Mark step 33 as N/A.\n"]
[null,null,null,33,"Pass the step if an Australian Childhood Immunisation Record conformant to Level 3A is rendered.\nElse, Fail the step.","The Australian Childhood Immunisation Record is displayed.",null,null,{"$f":"IF(G200=\"Pass\",1,IF(G200=\"N/A\",1,0))","v":0},{"$f":"IF(AND(BGCol(C200)=48,G200=\"N/A\"),1,0)","v":{"$error":"#NAME?"}},"Available only on Consumer Portal dated 6-Oct-1995"]
[null,null,null,null,"If the rendering system is designed to display the Pharmaceutical Benefits Report [NEHTA-1856:2014] then perform step 34, \nElse, Mark step 34 as N/A.\n"]
[null,null,null,34,"Pass the step if a Pharmaceutical Benefits Report conformant to Level 3A is rendered.\nElse, Fail the step.\n","The Pharmaceutical Benefits Report is displayed.",null,null,{"$f":"IF(G202=\"Pass\",1,IF(G202=\"N/A\",1,0))","v":0},{"$f":"IF(AND(BGCol(C202)=48,G202=\"N/A\"),1,0)","v":{"$error":"#NAME?"}},"Available only on Consumer Portal dated 6-Nov-2008\n"]
[null,null,null,null,"If the rendering system is designed to display the Medicare DVA Benefits Report [NEHTA-1858:2015] then perform step 35, \nElse, Mark step 35 as N/A.\n"]
[null,null,null,35,"Pass the step if a Medicare DVA Benefits Report conformant to Level 3A is rendered.\nElse, Fail the step.","The Medicare DVA Benefits Report is displayed.",null,null,{"$f":"IF(G204=\"Pass\",1,IF(G204=\"N/A\",1,0))","v":0},{"$f":"IF(AND(BGCol(C204)=48,G204=\"N/A\"),1,0)","v":{"$error":"#NAME?"}},"Available only on Consumer Portal dated 6-Nov-2008\n"]
[null,null,null,null,"If the rendering system is designed to display the Medicare Overview [NEHTA-1797:2014] then perform step 36, \nElse, Mark step 36 as N/A.\n"]
[null,null,null,36,"Pass the step if a Medicare Overview conformant to Level 3A is rendered.\nElse, Fail the step.","The Medicare Overview is displayed.",null,null,0,{"$f":"IF(AND(BGCol(C206)=48,G206=\"N/A\"),1,0)","v":{"$error":"#NAME?"}},"N/A"]
[null,null,null,null,"If the rendering system is designed to display the Health Check Schedule View [NEHTA-1977:2014] then perform step 37, \nElse, Mark step 37 as N/A.\n"]
[null,null,null,37,"Pass the step if a Health Check Schedule View is rendered.\nElse, Fail the step.","The Health Check Schedule View is displayed.",null,null,{"$f":"IF(G208=\"Pass\",1,IF(G208=\"N/A\",1,0))","v":0},{"$f":"IF(AND(BGCol(C208)=48,G208=\"N/A\"),1,0)","v":{"$error":"#NAME?"}},"N/A"]
[null,null,null,null,"If the rendering system is designed to display the Observation View [NEHTA-1976:2014] then perform step 38, \nElse, Mark step 38 as N/A.\n"]
[null,null,null,38,"Pass the step if an Observation View is rendered.\nElse, Fail the step.","The Observation View is displayed.",null,null,{"$f":"IF(G210=\"Pass\",1,IF(G210=\"N/A\",1,0))","v":0},{"$f":"IF(AND(BGCol(C210)=48,G210=\"N/A\"),1,0)","v":{"$error":"#NAME?"}},"N/A"]
["CDAR-CCP-023740","023740\nObligation for valid additional narrative elements\n\nIf the Producer has included any valid additional narrative elements (beyond the normative CDA Implementation Guide, but consistent with the HL7 CDA, Release 2.0 data elements [HL7CDAR2]), then the Consumer SHALL render these narrative elements. \n\nThe Consumer SHALL NOT be obliged to interpret or take any action with regard to these additional narrative elements.\n","M",1,"Pass the test if additional narrative elements which are beyond the normative CDA Implementation Guide, but consistent with the HL7 CDA, Release 2.0 data elements [HL7CDAR2], are displayed.\nElse, Fail the test.","Additional narrative elements are displayed.",null,null,0,{"$f":"IF(AND(BGCol(C211)=48,G211=\"N/A\"),1,0)","v":{"$error":"#NAME?"}},"TD03"]
["NOTE: The following tests apply ONLY in the My Health Record context."]
["CDAR-CCP-023745","023745\nSoftware consuming a clinical document is a Clinical Information System\n\nIf the software consuming a clinical document is a clinical information system, the software SHALL conform to the mandatory requirements for the role of a CIS Consumer.\n\nNOTE: The role of CIS Consumer is defined in PCEHR Connecting Systems - Conformance Assessment Scheme [NEHTA-1294:2012]. Requirements for a CIS Consumer are described in PCEHR Connecting Systems - Conformance Requirements [NEHTA-1297:2012].\n","C",1,"CONDITION: The rendering system is a Clinical Information System:\n\nMark the test N/A if the rendering system is NOT part of a Clinical Information System.\n\nPass the test if the CIS Consumer software passes the conformance tests for all the mandatory and relevant conditional requirements in the following worksheets within the PCEHR Connecting Systems - Conformance Test Specification [NEHTA-1299:2012]:\na) UC.CIS.001  Check if an advertised PCEHR exists.\nb) UC.CIS.002.1  Gain access to PCEHR (with Access Code).\nc) UC.CIS.002.2  Gain access to PCEHR (without Access Code).\nd)  UC.CIS.002.3  Gain access to PCEHR (Emergency Access).\ne)  UC.CIS.204  Download a clinical document.\nElse, Fail the test.","All test cases within the role of a CIS Consumer and related to connecting to the My Health Record systyem and downloading a document, have passed, as indicated by a 100% success rate in the test summary report in the PCEHR Connecting Systems - Conformance Test Specification [NEHTA-1299:2012].\n",null,null,{"$f":"IF(G213=\"Pass\",1,IF(G213=\"N/A\",1,0))","v":0},{"$f":"IF(AND(BGCol(C213)=48,G213=\"N/A\"),1,0)","v":{"$error":"#NAME?"}},"N/A"]
["CDAR-CCP-023746","023746\nSoftware consuming a clinical document is a CSP system\n\nIf the software consuming a clinical document is a CSP system, the software SHALL conform to the mandatory requirements for the role of a CIS Consumer that are relevant for the scope of the CSP system.\n\nNOTE: The role of CIS Consumer is defined in PCEHR Connecting Systems - Conformance Assessment Scheme [NEHTA-1294:2012]. Requirements for a CIS Consumer are described in PCEHR Connecting Systems - Conformance Requirements [NEHTA-1297:2012].\n\n\n","C",1,"CONDITION: The rendering system is a Contracted Service Provider system:\n\nMark the test N/A if the rendering system is NOT part of a Contracted Service Provider system.\n\nPass the test if the CSP Consumer software passes the conformance tests for all the mandatory and relevant conditional requirements in the following worksheets within the PCEHR Connecting Systems - Conformance Test Specification [NEHTA-1299:2012]:\na) UC.CIS.001  Check if an advertised PCEHR exists.\nb) UC.CIS.002.1  Gain access to PCEHR (with Access Code).\nc) UC.CIS.002.2  Gain access to PCEHR (without Access Code).\nd)  UC.CIS.002.3  Gain access to PCEHR (Emergency Access).\ne)  UC.CIS.204  Download a clinical document.\nElse, Fail the test.\n","All test cases within the role of a CIS Consumer and related to connecting to the My Health Record and downloading a document, have passed, as indicated by a 100% success rate in the test summary report in the PCEHR Connecting Systems - Conformance Test Specification [NEHTA-1299:2012].\n",null,null,0,{"$f":"IF(AND(BGCol(C214)=48,G214=\"N/A\"),1,0)","v":{"$error":"#NAME?"}},"N/A"]
["CDAR-CCP-023747","023747\nConformance for downloading a clinical document from the PCEHR system\n\nA clinical document consumer downloading a clinical document from the PCEHR system SHALL conform to the requirements in the PCEHR conformance profile for that type of document.\n","C",1,"CONDITION: The rendered system has been designed to display documents downloaded from the My Health Record system.\n\nPREREQUISITE: The rendered document has additional rendering requirements in the related conformance profile:\n\nPass the test where all test cases within the related document specific worksheets either Pass or are marked as N/A.\nElse, Fail the test.\n\nNOTE TO TESTER:\nAt present, there are only 2 conformance profiles with additional rendering requirements.  These are:\n1. eHealth Diagnostic Imaging Report - PCEHR Conformance Profile [NEHTA-1978:2015], where conformance is asserted in worksheet '4. DIR', and\n2. eHealth Pathology Report - PCEHR Conformance Profile [NEHTA-1979:2015], where conformance is asserted in worksheet '3. PR'.","All the test cases in worksheets '3. PR' and '4. DIR' are either Pass or N/A.",null,null,0,{"$f":"IF(AND(BGCol(C215)=48,G215=\"N/A\"),1,0)","v":{"$error":"#NAME?"}},"N/A"]
["END: Common Conformance Requirements for Consumers > Clinical Document rendering requirements"]
[]
[null,null,null,null,null,null,"TBD","Total Steps",{"$f":"SUM(I219:I220)","v":136}]
[null,null,null,null,null,null,"Fail","Tests Not Started, Failed or TBD",{"$f":"COUNTIF(I1:I216,\"0\")","v":136}]
[null,null,null,null,null,null,"N/A","Tests Passed or N/A",{"$f":"COUNTIF(I1:I216,\"1\")","v":0}]
[null,null,null,null,null,null,"Pass","%Passed or N/A",{"$f":"SUM(I220/I218)","v":0}]

{"sheet":"1. CDAR Details Fields","index":4,"n_rows":264,"n_cols":11,"rows_kept":264,"cut":false,"hidden":false,"merged":[[187,0,187,1],[0,3,0,5],[1,3,3,5],[23,0,26,0],[23,1,26,1],[34,0,36,0],[34,1,36,1],[78,0,81,0],[78,1,81,1],[37,0,44,0],[37,1,44,1],[64,0,66,0],[64,1,66,1]]}
["Test Set:","CDA Rendering Systems - CDAR Details Fields",null,"TEST DATA INFORMATION",null,null,"Software name: version:\n"]
["Derivation:","1. NEHTA-1199:2012 Clinical Documents - CDA Rendering Specification v1.0\n2. NEHTA-2188:2015 Clinical Terminology - Guidance for Use of Medical Nomenclatures in Information Exchange v1.1\n3. NEHTA-1273:2013 NEHTA_1273_2013_Common-ContinuityofCare_FAQNullableFieldsGuidance_v1.1\n",null,"Test data to apply the CDA Rendering test cases can be obtained from the My Health Record SVT environment.\n\nTO ACCESS NEHTA My Health Record TEST DATA, USE:\n● Patient 1 - Ludwig HOBBS  IHI: 8003608333345684  Medicare Card: 2950345681  IRN: 1  Sex: Male  DOB: 26/04/1995  Address: 76 Hung CCT, Deakin, ACT, 2600\n\n   Refer to the '1. TD' worksheet for details of the documents in this record.\n",null,null,"Software supplier:"]
["Test Set Objective:","These are tests to be applied for Test Cases 'CDAR-RS-029' and 'CDAR-RS-039' from the '1. CDAR' worksheet.\n",null,null,null,null,"Tester:"]
["Prerequisites:","1. Access to the My Health Record SVT (System Vendor Test) environment.\n2. Access to NEHTA's test data in the SVT that supports the CDA rendering test cases in the My Health Record context. \n\nIf unable to access the My Health Record SVT environment, contact help@nehta.gov.au\n",null,null,null,null,"Date:"]
[]
["THIS HEADER CAN BE COLLAPSED BY CLICKING THE '-' SYMBOL ON THE LEFT."]
["CATEGORY","FIELD","PRIORITY\n(Mandatory, Optional, Conditional)\n","STEP NO.","TEST STEP & XPATH","EXPECTED RESULT","TEST RESULT","TESTER COMMENTS","CALC.","MANDATORY AND N/A","NEHTA TEST DATA"]
["START: The Details table"]
["1. CDA Document Metadata"]
["CDAR-DF-001","Document ID ","M",1,"Pass the test if the value defined by the following XPATH is rendered in the clinical document:\n/ClinicalDocument/id\n\nElse, Fail the test.\n\nNOTE TO TESTER:\nWhere provided, both the root and the extension attributes must be rendered.\n","The Document ID is rendered in the Details of the clinical document.",null,null,{"$f":"IF(G10=\"\",\"0\",IF(G10=\"Pass\",1,IF(G10=\"Fail\",0,IF(G10=\"TBD\",0,IF(G10=\"N/A\",1)))))","v":"0"},{"$f":"IF(AND(BGCol(C10)=48,G10=\"N/A\"),1,0)","v":{"$error":"#NAME?"}},"TD01"]
["CDAR-DF-002","CDA Document Type","M",1,"Pass the test if the  value defined by the following XPATH is rendered in the clinical document:\n/ClinicalDocument/templateId\n\nElse, Fail the test.\n\nNOTE TO TESTER:\nThe value of the 'root' attribute of the <templateId> element will be resolved to display the document type, e.g. <templateId root=\"1.2.36.1.2001.1001.101.100.1002.120\" extension=\"1.4\" /> will display the document type as a Shared Health Summary.\n","The CDA Document Type is rendered in the Details of the clinical document.",null,null,{"$f":"IF(G11=\"\",\"0\",IF(G11=\"Pass\",1,IF(G11=\"Fail\",0,IF(G11=\"TBD\",0,IF(G11=\"N/A\",1)))))","v":"0"},{"$f":"IF(AND(BGCol(C11)=48,G11=\"N/A\"),1,0)","v":{"$error":"#NAME?"}},"TD01"]
["CDAR-DF-003","Document Set ID","M",1,"Pass the test if the value defined by the following XPATH is rendered in the clinical document:\n/ClinicalDocument/setId\n\nElse, Fail the test.\n","The Document Set ID is rendered in the Details of the clinical document.",null,null,{"$f":"IF(G12=\"\",\"0\",IF(G12=\"Pass\",1,IF(G12=\"Fail\",0,IF(G12=\"TBD\",0,IF(G12=\"N/A\",1)))))","v":"0"},{"$f":"IF(AND(BGCol(C12)=48,G12=\"N/A\"),1,0)","v":{"$error":"#NAME?"}},"TD01"]
["CDAR-DF-004","Document Version","M",1,"Pass the test if the value defined by the following XPATH is rendered in the clinical document:\n/ClinicalDocument/versionNumber\n\nElse, Fail the test.\n","The Document Version is rendered in the Details of the clinical document.",null,null,"0",{"$f":"IF(AND(BGCol(C13)=48,G13=\"N/A\"),1,0)","v":{"$error":"#NAME?"}},"TD01"]
["CDAR-DF-005","Completion Code","M",1,"Pass the test if the value defined by the following XPATH is rendered in the clinical document:\n/ClinicalDocument/ext:completionCode\n\nElse, Fail the test.\n","The Completion Code is rendered in the Details of the clinical document.",null,null,"0",{"$f":"IF(AND(BGCol(C14)=48,G14=\"N/A\"),1,0)","v":{"$error":"#NAME?"}},"TD01"]
["CDAR-DF-006","Document Title","M",1,"Pass the test if the value defined by the following XPATH is rendered in the clinical document:\n/ClinicalDocument/title\n\nElse, Fail the test.\n","The Document Title is rendered in the Details of the clinical document.",null,null,"0",{"$f":"IF(AND(BGCol(C15)=48,G15=\"N/A\"),1,0)","v":{"$error":"#NAME?"}},"TD02"]
["CDAR-DF-007","Document Creation Time","M",1,"Pass the test if the value defined by the following XPATH is rendered in the clinical document:\n/ClinicalDocument/effectiveTime\n\nElse, Fail the test.\n","The Document Creation Time is rendered in the Details of the clinical document.",null,null,"0",{"$f":"IF(AND(BGCol(C16)=48,G16=\"N/A\"),1,0)","v":{"$error":"#NAME?"}},"TD01"]
["CDAR-DF-008","Datetime Attested","M",1,"Pass the test if the value defined by the following XPATH is rendered in the clinical document:\n/ClinicalDocument/legalAuthenticator/time\n\nElse, Fail the test.\n","The Datetime Attested is rendered in the Details of the clinical document.",null,null,"0",{"$f":"IF(AND(BGCol(C17)=48,G17=\"N/A\"),1,0)","v":{"$error":"#NAME?"}},"TD01"]
["CDAR-DF-009","Document Replacement Indicator","M",1,"Where the rendered document replaces a previous document, indicated by the following XPATH snippet:\n/ClinicalDocument/relatedDocument[@typeCode='RPLC']\n\nPass the test if the rendering system indicates that the associated identifier is the identifier of a document that has been replaced.\nElse, Fail the test.\n\nNOTE TO TESTER:\nFor example, the system should render \"Replaces Document ID\", or something similarly indicative.\n","An appropriate label is rendered in the Details of the clinical document to indicate that the associated identifier is that of document that has been replaced.",null,null,"0",{"$f":"IF(AND(BGCol(C18)=48,G18=\"N/A\"),1,0)","v":{"$error":"#NAME?"}},"TD07"]
["CDAR-DF-010","Document ID of document being replaced","M",1,"Pass the test if the value defined by the following XPATH is rendered in the clinical document:\n/ClinicalDocument/relatedDocument[@typeCode='RPLC']/parentDocument/id\n\nElse, Fail the test.\n\nNOTE TO TESTER:\nWhere provided, both the root and the extension attributes must be rendered.\n","The Replacement Document ID is rendered in the Details of the clinical document.",null,null,"0",{"$f":"IF(AND(BGCol(C19)=48,G19=\"N/A\"),1,0)","v":{"$error":"#NAME?"}},"TD07"]
["2. CDA Document Author Details"]
["CDAR-DF-011","HPI-I","C",1,"Mark the test N/A if Healthcare Provider Identifiers for providers (HPI-I) are omitted as per requirement CDA-RS 29 (a).\n\nPass the test if the value defined by the following XPATH is rendered in the clinical document:\n/ClinicalDocument/author/assignedAuthor/assignedPerson/ext:asEntityIdentifier[@classCode='IDENT']/ext:id[@assigningAuthorityName='HPI-I']]\n\nElse, Fail the test.\n","The Healthcare Provider Identifier for providers (HPI-I) is rendered in the Details of the clinical document.",null,null,{"$f":"IF(G21=\"\",\"0\",IF(G21=\"Pass\",1,IF(G21=\"Fail\",0,IF(G21=\"TBD\",0,IF(G21=\"N/A\",1)))))","v":"0"},{"$f":"IF(AND(BGCol(C21)=48,G21=\"N/A\"),1,0)","v":{"$error":"#NAME?"}},"TD01"]
["CDAR-DF-012","Other Identifiers","C",1,"Mark the test N/A if Healthcare Provider Identifiers for providers are omitted as per requirement CDA-RS 29 (a).\n\nPass the test if the value defined by the following XPATH is rendered in the clinical document:\n/ClinicalDocument/author/assignedAuthor/assignedPerson/ext:asEntityIdentifier[@classCode='IDENT']/ext:id[@assigningAuthorityName!='HPI-I']]\n\nElse, Fail the test.\n","The value used by the organisation to uniquely identify the Document Author within that organisation is rendered in the Details of the clinical document.",null,null,"0",{"$f":"IF(AND(BGCol(C22)=48,G22=\"N/A\"),1,0)","v":{"$error":"#NAME?"}},"TD01"]
["CDAR-DF-013","Name","M",1,"Pass the test if the value defined by the following XPATH is rendered in the clinical document:\n/ClinicalDocument/author/assignedAuthor/assignedPerson/name\n\nElse, Fail the test.\n","The document author's Name is rendered in the Details of the clinical document.",null,null,"0",{"$f":"IF(AND(BGCol(C23)=48,G23=\"N/A\"),1,0)","v":{"$error":"#NAME?"}},"TD01"]
["CDAR-DF-014","Role\n\nNote:\nThis Details Field must also comply with requirement 020652 for displaying the stored concepts extracted from an inbound CDA document [NEHTA-2188:2015], which states that:\n\"If the healthcare software system supports displaying concepts extracted from inbound CDA documents, it SHALL display the original text, associated with each concept while maintaining the original intended semantic context. If the original text (originalText equivalent) is not available, it SHALL display the concept description instead (displayName equivalent). Where the healthcare software system displays the concept description along with the original text, it SHALL be clearly labelled accordingly so the user clearly distinguishes between the original text and the description.\"","M",null,"The value of the Document Author Role is defined by the following XPATH is rendered in the clinical document:\n/ClinicalDocument/author/assignedAuthor/code\n\n"]
[null,null,null,1,"PRECONDITION: The author's Role is described by a 'displayName' and an <originalText> element is NOT present. \n\nPass the test if the value of the 'displayName' is rendered in the clincial document. \nElse, Fail the test.\n","The value of the 'displayName' attribute is rendered for the Author Role in the Details of the clinical document.",null,null,{"$f":"IF(G25=\"\",\"0\",IF(G25=\"Pass\",1,IF(G25=\"Fail\",0,IF(G25=\"TBD\",0,IF(G25=\"N/A\",1)))))","v":"0"},{"$f":"IF(AND(BGCol(C25)=48,G25=\"N/A\"),1,0)","v":{"$error":"#NAME?"}},"TD01"]
[null,null,null,2,"PRECONDITION: The author's Role is described by an <originalText> element. \n\nPass the test if the value of the <originalText> element is rendered in the  clinical document. \nElse, Fail the test.\n\nNOTE TO TESTER:\nThe display of the value of the <originalText> element is regardless of whether or not a value is provided for the 'displayName' attribute.\n","The value of the <originalText> element is rendered for the author's Role in the Details of the clinical document.",null,null,"0",{"$f":"IF(AND(BGCol(C26)=48,G26=\"N/A\"),1,0)","v":{"$error":"#NAME?"}},"TD63"]
[null,null,null,3,"PRECONDITION: The author's Role is described by the values of both a 'displayName' attribute and an <originalText> element. \n\nPass the test if the values of the 'displayName' attribute and the <originalText> element are both rendered in the Details of the clinical document, and are clearly labelled in the rendered document to distinguished between the original text and the concept description. \nElse, Fail the test.\n\nNOTE TO TESTER:\nThe intent of this requirement is to maintain the meaning intended by the CDA document author, and to ensure that the display name is not mistaken for the original text recorded by the author.\nThe need to display the description along with the original text may arise in order to reduce risks of misinterpretation from the use of the concept by knowledge-support and decision-support protocols as well as through human interpretation.\n","The values of both the 'displayName' attribute and the <originalText> element are rendered for the author's Role in the Details of the clinical document, and they are clearly labelled so as to distinguish between the original text and the concept description.",null,null,"0",{"$f":"IF(AND(BGCol(C27)=48,G27=\"N/A\"),1,0)","v":{"$error":"#NAME?"}},"TD64"]
["CDAR-DF-015","Address","M",1,"The value defined by the following XPATH is rendered in the clinical document:\n/ClinicalDocument/author/assignedAuthor/addr\n","The testing for this field is performed in the Address Table below.\n\n",null,null,null,null,"See Address Table - Tests #1 & #8"]
["CDAR-DF-016","Communication Details","M",1,"Pass the test if the value defined by the following XPATH is rendered in the clinical document:\n/ClinicalDocument/author/assignedAuthor/telecom\n\nElse, Fail the test.\n\nNOTE TO TESTER:\nCommunications Details must conform to Requirement CDA-RS 34 (test case CDAR-RS-34).\n","The Communication Details is rendered in the Details of the clinical document.",null,null,"0",{"$f":"IF(AND(BGCol(C29)=48,G29=\"N/A\"),1,0)","v":{"$error":"#NAME?"}},"TD01"]
["CDAR-DF-017","Organisation Name","M",1,"Pass the test if the value defined by the following XPATH is rendered in the clinical document:\n/ClinicalDocument/author/assignedAuthor/assignedPerson/xt:asEmployment/ext:employerOrganization/asOrganizationPartOf/wholeOrganization/name\n\nElse, Fail the test.\n","The Organisation Name is rendered in the Details of the clinical document.",null,null,"0",{"$f":"IF(AND(BGCol(C30)=48,G30=\"N/A\"),1,0)","v":{"$error":"#NAME?"}},"TD01"]
["CDAR-DF-018","Organisation HPI-O","C",1,"Mark the test N/A if Healthcare Provider Identifiers for organisations (HPI-O) are omitted as per requirement CDA-RS 29 (a)\n\nPass the test if the value defined by the following XPATH is rendered in the clinical document:\n/ClinicalDocument/author/assignedAuthor/assignedPerson/ext:asEmployment/ext:employerOrganization/asOrganizationPartOf/wholeOrganization/ext:asEntityIdentifier[@classCode='IDENT']/ext:id[@assigningAuthorityName='HPI-O']\n\nElse, Fail the test.\n","The Organisation HPI-O is rendered in the Details of the clinical document.",null,null,"0",{"$f":"IF(AND(BGCol(C31)=48,G31=\"N/A\"),1,0)","v":{"$error":"#NAME?"}},"TD01"]
["CDAR-DF-019","Department Name","M",1,"Pass the test if the value defined by the following XPATH is rendered in the clinical document:\n/ClinicalDocument/author/assignedAuthor/assignedPerson/ext:asEmployment/ext:employerOrganization/name\n\nElse, Fail the test.\n","The Department Name is rendered in the Details of the clinical document.",null,null,"0",{"$f":"IF(AND(BGCol(C32)=48,G32=\"N/A\"),1,0)","v":{"$error":"#NAME?"}},"TD01"]
["CDAR-DF-020","Department HPI-O","C",1,"Mark the test N/A if Healthcare Provider Identifiers for organisations (HPI-O) are omitted as per requirement CDA-RS 29 (a).\n\nPass the test if the value defined by the following XPATH is rendered in the clinical document:\n/ClinicalDocument/author/assignedAuthor/assignedPerson/ext:asEmployment/ext:employerOrganization/ext:asEntityIdentifier[@classCode='IDENT']/ext:id[@assigningAuthorityName='HPI-O']\n\nElse, Fail the test\n","The Department HPI-O is rendered in the Details of the clinical document.",null,null,"0",{"$f":"IF(AND(BGCol(C33)=48,G33=\"N/A\"),1,0)","v":{"$error":"#NAME?"}},"TD01"]
["3. Encounter Details"]
["CDAR-DF-021","Encounter Period","M",1,"Pass the test if the value defined by the following XPATH is rendered in the clinical document:\n/ClinicalDocument/componentOf/encompassingEncounter/effectiveTime\n\nElse, Fail the test.\n","The Encounter Period is rendered in the Details of the clinical document.",null,null,{"$f":"IF(G35=\"\",\"0\",IF(G35=\"Pass\",1,IF(G35=\"Fail\",0,IF(G35=\"TBD\",0,IF(G35=\"N/A\",1)))))","v":"0"},{"$f":"IF(AND(BGCol(C35)=48,G35=\"N/A\"),1,0)","v":{"$error":"#NAME?"}},"TD07"]
[null,null,null,2,"PRECONDITION: The document being rendered is a Discharge Summary.\n\nPass the test if the value defined by the following XPATH is rendered in the clinical document as text that is semantically equivalent to the value of the 'nullFlavor':\n/ClinicalDocument/componentOf/encompassingEncounter/effectiveTime/@nullFlavor\n\nElse, Fail the test.\n\nNOTE TO TESTER:\na) An appropriate 'nullFlavor' is relevant for the Encounter Effective Period for both Discharge Summary and Event Summary clinical documents [NEHTA-1273:2013] -  NEHTA_1273_2013_Common-ContinuityofCare_FAQNullableFieldsGuidance_v1.1\nb) The valid values for a 'nullFlavor' are listed in [NEHTA-1136:2010] - Data Types in NEHTA Specifications.\n","The value of the Encounter Period is rendered in the Details of the clinical document as text that is semantically equivalent to the value of the related 'nullFlavor'.",null,null,{"$f":"IF(G36=\"\",\"0\",IF(G36=\"Pass\",1,IF(G36=\"Fail\",0,IF(G36=\"TBD\",0,IF(G36=\"N/A\",1)))))","v":"0"},{"$f":"IF(AND(BGCol(C36)=48,G36=\"N/A\"),1,0)","v":{"$error":"#NAME?"}},"TD09\n(Discharge Summary)"]
[null,null,null,3,"PRECONDITION: The document being rendered is an Event Summary.\n\nPass the test if the value defined by the following XPATH is rendered in the clinical document as text that is semantically equivalent to the value of the 'nullFlavor':\n/ClinicalDocument/componentOf/encompassingEncounter/effectiveTime/@nullFlavor\n\nElse, Fail the test.\n\nNOTE TO TESTER:\na) An appropriate 'nullFlavor' is relevant for the Encounter Effective Period for both Discharge Summary and Event Summary clinical documents [NEHTA-1273:2013] -  NEHTA_1273_2013_Common-ContinuityofCare_FAQNullableFieldsGuidance_v1.1\nb) The valid values for a 'nullFlavor' are listed in [NEHTA-1136:2010] - Data Types in NEHTA Specifications.","The value of the Encounter Period is rendered in the Details of the clinical document as text that is semantically equivalent to the value of the related 'nullFlavor'.",null,null,"0",{"$f":"IF(AND(BGCol(C37)=48,G37=\"N/A\"),1,0)","v":{"$error":"#NAME?"}},"TD13\n(Event Summary)"]
["CDAR-DF-022","Separation Mode\n\nNote:\nThis Details Field must also comply with requirement 020652 for displaying the stored concepts extracted from an inbound CDA document [NEHTA-2188:2015], which states that:\n\"If the healthcare software system supports displaying concepts extracted from inbound CDA documents, it SHALL display the original text, associated with each concept while maintaining the original intended semantic context. If the original text (originalText equivalent) is not available, it SHALL display the concept description instead (displayName equivalent). Where the healthcare software system displays the concept description along with the original text, it SHALL be clearly labelled accordingly so the user clearly distinguishes between the original text and the description.\"","M",null,"The value of 'Separation Mode' is defined by the following XPATH:\n/ClinicalDocument/componentOf/encompassingEncounter/dischargeDispositionCode\n"]
[null,null,null,null,"The following tests are where the Separation Mode is defined by the value of the 'code' attribute."]
[null,null,null,1,"PRECONDITION: The Separation Mode is described by a 'displayName' and an <originalText> element is NOT present. \n\nPass the test if the value of the 'displayName' is rendered in the clincial document. \nElse, Fail the test.\n","The value of the 'displayName' attribute is rendered for the Separation Mode in the Details of the clinical document.",null,null,{"$f":"IF(G40=\"\",\"0\",IF(G40=\"Pass\",1,IF(G40=\"Fail\",0,IF(G40=\"TBD\",0,IF(G40=\"N/A\",1)))))","v":"0"},{"$f":"IF(AND(BGCol(C40)=48,G40=\"N/A\"),1,0)","v":{"$error":"#NAME?"}},"TD07"]
[null,null,null,2,"PRECONDITION: The Separation Mode is described by an <originalText> element. \n\nPass the test if the value of the <originalText> element is rendered in the  clinical document. \nElse, Fail the test.\n\nNOTE TO TESTER:\nThe display of the value of the <originalText> element is regardless of whether or not a value is provided for the 'displayName' attribute.\n","The value of the <originalText> element is rendered for the Separation Mode in the Details of the clinical document.",null,null,{"$f":"IF(G41=\"\",\"0\",IF(G41=\"Pass\",1,IF(G41=\"Fail\",0,IF(G41=\"TBD\",0,IF(G41=\"N/A\",1)))))","v":"0"},{"$f":"IF(AND(BGCol(C41)=48,G41=\"N/A\"),1,0)","v":{"$error":"#NAME?"}},"TD09"]
[null,null,null,3,"PRECONDITION: The Separation Mode is described by the values of both a 'displayName' attribute and an <originalText> element. \n\nPass the test if the values of the 'displayName' attribute and the <originalText> element are both rendered in the Details of the clinical document, and are clearly labelled in the rendered document to distinguished between the original text and the concept description. \nElse, Fail the test.\n\nNOTE TO TESTER:\nThe intent of this requirement is to maintain the meaning intended by the CDA document author, and to ensure that the display name is not mistaken for the original text recorded by the author.\nThe need to display the description along with the original text may arise in order to reduce risks of misinterpretation from the use of the concept by knowledge-support and decision-support protocols as well as through human interpretation.\n","The values of both the 'displayName' attribute and the <originalText> element are rendered for the Separation Mode in the Details of the clinical document, and they are clearly labelled so as to distinguish between the original text and the concept description.",null,null,"0",{"$f":"IF(AND(BGCol(C42)=48,G42=\"N/A\"),1,0)","v":{"$error":"#NAME?"}},"TD09"]
[null,null,null,null,"The following tests are where the Separation Mode is defined by a 'nullFlavor'.\ni.e. /ClinicalDocument/componentOf/encompassingEncounter/dischargeDispositionCode/@nullFlavor\n"]
[null,null,null,4,"PRECONDITION: Separation Mode is defined by a 'nullFlavor', but an <originalText> element is NOT present.\n\nPass the test if the value rendered for the Separation Mode is semantically equivalent to the coded value of the related 'nullFlavor'.\nElse, Fail the test.\n\nNOTE TO TESTER:\na) An appropriate 'nullFlavor' is relevant for the Separation Mode in a Discharge Summary.\nb) The valid values for a 'nullFlavor' are listed in [NEHTA-1136:2010] - Data Types in NEHTA Specifications.\n","The value of the Separation Mode is rendered in the Details of the clinical document as text that is semantically equivalent to the value of the related 'nullFlavor'.",null,null,"0",{"$f":"IF(AND(BGCol(C44)=48,G44=\"N/A\"),1,0)","v":{"$error":"#NAME?"}},"TD67"]
[null,null,null,5,"PRECONDITION: Separation Mode is defined by a 'nullFlavor', and an <originalText> element is present.\n\nPass the test if the value of the <originalText> is rendered in the clinical document.\nElse, Fail the test.\n\nNOTE TO TESTER:\na) An appropriate 'nullFlavor' is relevant for the Separation Mode in a Discharge Summary.\nb) The valid values for a 'nullFlavor' are listed in [NEHTA-1136:2010] - Data Types in NEHTA Specifications.","The value of the Separation Mode is rendered in the Details of the clinical document as the text that is contained within the <originalText> element.",null,null,"0",{"$f":"IF(AND(BGCol(C45)=48,G45=\"N/A\"),1,0)","v":{"$error":"#NAME?"}},"TD68"]
["4. Facility Details"]
["   4a. Facility where specified within CDA Implementation Guide for document type."]
["CDAR-DF-023","HPI-O","C",1,"Mark the test N/A if Healthcare Provider Identifiers for organisations (HPI-O) are omitted as per requirement CDA-RS 29 (a).\n\nPass the test if the value defined by the following XPATH is rendered in the clinical document:\n/ClinicalDocument/componentOf/encompassingEncounter/location/healthCareFacility/serviceProviderOrganization/asOrganizationPartOf/wholeOrganization/ext:asEntityIdentifier[@classCode='IDENT']/ext:id[@assigningAuthorityName='HPI-O']\n\nElse, Fail the test.\n","The healthcare facility HPI-O is rendered in the Details of the clinical document.",null,null,{"$f":"IF(G48=\"\",\"0\",IF(G48=\"Pass\",1,IF(G48=\"Fail\",0,IF(G48=\"TBD\",0,IF(G48=\"N/A\",1)))))","v":"0"},{"$f":"IF(AND(BGCol(C48)=48,G48=\"N/A\"),1,0)","v":{"$error":"#NAME?"}},"TD09"]
["CDAR-DF-024","Other Identifiers","C",1,"Mark the test N/A if Healthcare Provider Identifiers for organisations (local identifiers) are omitted as per requirement CDA-RS 29 (a).\n\nPass the test if the value defined by the following XPATH is rendered in the clinical document:\n/ClinicalDocument/componentOf/encompassingEncounter/location/healthCareFacility/serviceProviderOrganization/asOrganizationPartOf/wholeOrganization/ext:asEntityIdentifier[@classCode='IDENT']/ext:id[@assigningAuthorityName!='HPI-O']\n\nElse, Fail the test.\n","The non-HPI-O identifier value used by the organisation is rendered in the Details of the clinical document.",null,null,{"$f":"IF(G49=\"\",\"0\",IF(G49=\"Pass\",1,IF(G49=\"Fail\",0,IF(G49=\"TBD\",0,IF(G49=\"N/A\",1)))))","v":"0"},{"$f":"IF(AND(BGCol(C49)=48,G49=\"N/A\"),1,0)","v":{"$error":"#NAME?"}},"TD09"]
["CDAR-DF-025","Name","M",1,"Pass the test if the value defined by the following XPATH is rendered in the clinical document:\n/ClinicalDocument/componentOf/encompassingEncounter/location/healthCareFacility/serviceProviderOrganization/asOrganizationPartOf/wholeOrganization/name\n\nElse, Fail the test.\n","The healthcare facility Name is rendered in the Details of the clinical document.",null,null,{"$f":"IF(G50=\"\",\"0\",IF(G50=\"Pass\",1,IF(G50=\"Fail\",0,IF(G50=\"TBD\",0,IF(G50=\"N/A\",1)))))","v":"0"},{"$f":"IF(AND(BGCol(C50)=48,G50=\"N/A\"),1,0)","v":{"$error":"#NAME?"}},"TD09"]
["CDAR-DF-026","Address","M",1,"Pass the test if the value defined by the following XPATH is rendered in the clinical document:\n/ClinicalDocument/componentOf/encompassingEncounter/location/healthCareFacility/serviceProviderOrganization/asOrganizationPartOf/wholeOrganization/addr\n\nElse, Fail the test.\n","The healthcare facility Address is rendered in the Details of the clinical document.",null,null,{"$f":"IF(G51=\"\",\"0\",IF(G51=\"Pass\",1,IF(G51=\"Fail\",0,IF(G51=\"TBD\",0,IF(G51=\"N/A\",1)))))","v":"0"},{"$f":"IF(AND(BGCol(C51)=48,G51=\"N/A\"),1,0)","v":{"$error":"#NAME?"}},"TD09"]
["CDAR-DF-027","Communication Details","M",1,"Pass the test if the value defined by the following XPATH is rendered in the clinical document:\n/ClinicalDocument/componentOf/encompassingEncounter/location/healthCareFacility/serviceProviderOrganization/asOrganizationPartOf/wholeOrganization/telecom\n\nElse, Fail the test.\n\nNOTE TO TESTER:\nCommunications Details must conform to Requirement CDA-RS 34 (test case CDAR-RS-34).\n","The healthcare facility Communication Details is rendered in the Details of the clinical document.",null,null,{"$f":"IF(G52=\"\",\"0\",IF(G52=\"Pass\",1,IF(G52=\"Fail\",0,IF(G52=\"TBD\",0,IF(G52=\"N/A\",1)))))","v":"0"},{"$f":"IF(AND(BGCol(C52)=48,G52=\"N/A\"),1,0)","v":{"$error":"#NAME?"}},"TD09"]
[null,null,null,null,"Note: Health Care Facility is not specified in the CDA Implementation Guide for Event Summary document type, however additional content data may be coded, and if so it needs to be rendered. "]
["   4b. Facility where not specified within CDA Implementation Guide for document type."]
["CDAR-DF-028","HPI-O","C",1,"Mark the test N/A if Healthcare Provider Identifiers for organisations (HPI-O) are omitted as per requirement CDA-RS 29 (a).\n\nPass the test if the value defined by the following XPATH is rendered in the clinical document:\n/ClinicalDocument/componentOf/encompassingEncounter/location/healthCareFacility/serviceProviderOrganization/asOrganizationPartOf/wholeOrganization/ext:asEntityIdentifier[@classCode='IDENT']/ext:id[@assigningAuthorityName='HPI-O']\n\nElse, Fail the test.\n","The healthcare facility HPI-O is rendered in the Details of the clinical document.",null,null,{"$f":"IF(G55=\"\",\"0\",IF(G55=\"Pass\",1,IF(G55=\"Fail\",0,IF(G55=\"TBD\",0,IF(G55=\"N/A\",1)))))","v":"0"},{"$f":"IF(AND(BGCol(C55)=48,G55=\"N/A\"),1,0)","v":{"$error":"#NAME?"}},"TD19"]
["CDAR-DF-029","Other Identifiers","C",1,"Mark the test N/A if Healthcare Provider Identifiers for organisations (local identifiers) are omitted as per requirement CDA-RS 29 (a).\n\nPass the test if the value defined by the following XPATH is rendered in the clinical document:\n/ClinicalDocument/componentOf/encompassingEncounter/location/healthCareFacility/serviceProviderOrganization/asOrganizationPartOf/wholeOrganization/ext:asEntityIdentifier[@classCode='IDENT']/ext:id[@assigningAuthorityName!='HPI-O']\n\nElse, Fail the test.\n","The non-HPI-O identifier value used by the organisation is rendered in the Details of the clinical document.",null,null,{"$f":"IF(G56=\"\",\"0\",IF(G56=\"Pass\",1,IF(G56=\"Fail\",0,IF(G56=\"TBD\",0,IF(G56=\"N/A\",1)))))","v":"0"},{"$f":"IF(AND(BGCol(C56)=48,G56=\"N/A\"),1,0)","v":{"$error":"#NAME?"}},"TD19"]
["CDAR-DF-030","Name","M",1,"Pass the test if the value defined by the following XPATH is rendered in the clinical document:\n/ClinicalDocument/componentOf/encompassingEncounter/location/healthCareFacility/serviceProviderOrganization/asOrganizationPartOf/wholeOrganization/name\n\nElse, Fail the test.\n","The healthcare facility Name is rendered in the Details of the clinical document.",null,null,{"$f":"IF(G57=\"\",\"0\",IF(G57=\"Pass\",1,IF(G57=\"Fail\",0,IF(G57=\"TBD\",0,IF(G57=\"N/A\",1)))))","v":"0"},{"$f":"IF(AND(BGCol(C57)=48,G57=\"N/A\"),1,0)","v":{"$error":"#NAME?"}},"TD19"]
["CDAR-DF-031","Address","M",1,"Pass the test if the value defined by the following XPATH is rendered in the clinical document:\n/ClinicalDocument/componentOf/encompassingEncounter/location/healthCareFacility/serviceProviderOrganization/asOrganizationPartOf/wholeOrganization/addr\n\nElse, Fail the test.\n","The healthcare facility Address is rendered in the Details of the clinical document.",null,null,{"$f":"IF(G58=\"\",\"0\",IF(G58=\"Pass\",1,IF(G58=\"Fail\",0,IF(G58=\"TBD\",0,IF(G58=\"N/A\",1)))))","v":"0"},{"$f":"IF(AND(BGCol(C58)=48,G58=\"N/A\"),1,0)","v":{"$error":"#NAME?"}},"TD19"]
["CDAR-DF-032","Communication Details","M",1,"Pass the test if the value defined by the following XPATH is rendered in the clinical document:\n/ClinicalDocument/componentOf/encompassingEncounter/location/healthCareFacility/serviceProviderOrganization/asOrganizationPartOf/wholeOrganization/telecom\n\nElse, Fail the test.\n\nNOTE TO TESTER:\nCommunications Details must conform to Requirement CDA-RS 34 (test case CDAR-RS-34).\n","The healthcare facility Communication Details is rendered in the Details of the clinical document.",null,null,{"$f":"IF(G59=\"\",\"0\",IF(G59=\"Pass\",1,IF(G59=\"Fail\",0,IF(G59=\"TBD\",0,IF(G59=\"N/A\",1)))))","v":"0"},{"$f":"IF(AND(BGCol(C59)=48,G59=\"N/A\"),1,0)","v":{"$error":"#NAME?"}},"TD19"]
["5. Organisational Logo"]
["CDAR-DF-033","Organisational Logo","M",1,"Pass the test if the value defined by the following XPATH is rendered in the clinical document:\n/ClinicalDocument/component/structuredBody/component/section/entry/observationMedia[@ID='LOGO']\n\nElse, Fail the test.\n","The Organisational Logo is rendered in the Details of the clinical document.",null,null,{"$f":"IF(G61=\"\",\"0\",IF(G61=\"Pass\",1,IF(G61=\"Fail\",0,IF(G61=\"TBD\",0,IF(G61=\"N/A\",1)))))","v":"0"},{"$f":"IF(AND(BGCol(C61)=48,G61=\"N/A\"),1,0)","v":{"$error":"#NAME?"}},"TD02"]
["6. Patient Details"]
["CDAR-DF-034","IHI","M",1,"Pass the test if the value defined by the following XPATH is rendered in the clinical document:\n/ClinicalDocument/recordTarget/patientRole/patient/ext:asEntityIdentifier[@classCode='IDENT']/ext:id[@assigningAuthorityName='IHI']\n\nElse, Fail the test.\n","The Healthcare Identifier for individuals (IHI) of the patient is rendered in the Details of the clinical document.",null,null,{"$f":"IF(G63=\"\",\"0\",IF(G63=\"Pass\",1,IF(G63=\"Fail\",0,IF(G63=\"TBD\",0,IF(G63=\"N/A\",1)))))","v":"0"},{"$f":"IF(AND(BGCol(C63)=48,G63=\"N/A\"),1,0)","v":{"$error":"#NAME?"}},"TD03"]
["CDAR-DF-035","Other Identifiers","C",1,"Mark the test N/A if local identifiers for patients are omitted as per requirement CDA-RS 29 (a).\n\nPass the test if the value defined by the following XPATH is rendered in the clinical document:\n/ClinicalDocument/recordTarget/patientRole/patient/ext:asEntityIdentifier[@classCode='IDENT']/ext:id[@assigningAuthorityName!='IHI']\n\nElse, Fail the test.\n","The local identifier value used by an organisation to uniquely identify the Patient within that organisation is rendered in the Details of the clinical document.",null,null,"0",{"$f":"IF(AND(BGCol(C64)=48,G64=\"N/A\"),1,0)","v":{"$error":"#NAME?"}},"TD04"]
["CDAR-DF-036","Name","M",1,"Pass the step if the value defined by the following XPATH is rendered in the clinical document:\n/ClinicalDocument/recordTarget/patientRole/patient/name\n\nElse, Fail the step.\n","The Patient's Name is rendered in the Details of the clinical document.",null,null,"0",{"$f":"IF(AND(BGCol(C65)=48,G65=\"N/A\"),1,0)","v":{"$error":"#NAME?"}},"TD03"]
[null,null,null,2,"PRECONDITION: The patient name is defined by a 'nullFlavor' of \"UNK\".\n\nPass the step if the value defined by the following XPATH is rendered in the clinical document as text that is semantically equivalent to the value of the 'nullFlavor':\n/ClinicalDocument/recordTarget/patientRole/patient/name/familyName/@nullFlavor=\"UNK\"\n\nElse, Fail the step.\n\nNOTE TO TESTER:\nWhere the 'nullFlavor' of \"UNK\" is used the related rendered value should be semantically equivalent to \"Unknown\".\n","A Name of \"Unknown\", or text that is semantically equivalent to the related value of the 'nullFlavor', is rendered in the Details of the clinical document.",null,null,"0",{"$f":"IF(AND(BGCol(C66)=48,G66=\"N/A\"),1,0)","v":{"$error":"#NAME?"}},"TD24"]
[null,null,null,3,"PRECONDITION: The patient name is defined by a 'nullFlavor' of \"MSK\".\n\nPass the step if the value defined by the following XPATH is rendered in the clinical document as text that is semantically equivalent to the value of the 'nullFlavor':\n/ClinicalDocument/recordTarget/patientRole/patient/name/familyName/@nullFlavor=\"MSK\"\n\nElse, Fail the step.\n\nNOTE TO TESTER:\nWhere the 'nullFlavor' of \"MSK\" is used the related rendered value should be semantically equivalent to \"Masked\" or \"Not disclosed for privacy reasons\", etc.\n","A Name of \"Masked\", \"Not disclosed for privacy reasons\", or text that is semantically equivalent to the related value of the 'nullFlavor', is rendered in the Details of the clinical document.",null,null,"0",{"$f":"IF(AND(BGCol(C67)=48,G67=\"N/A\"),1,0)","v":{"$error":"#NAME?"}},"TD23"]
["CDAR-DF-037","Sex","M",1,"Pass the test if the value defined by the following XPATH is rendered in the clinical document:\n/ClinicalDocument/recordTarget/patientRole/patient/administrativeGenderCode\n\nElse, Fail the test.\n","The patient's Sex is rendered in the Details of the clinical document.",null,null,"0",{"$f":"IF(AND(BGCol(C68)=48,G68=\"N/A\"),1,0)","v":{"$error":"#NAME?"}},"TD03"]
["CDAR-DF-038","Date of Birth","M",1,"Pass the test if the value defined by the following XPATH is rendered in the clinical document:\n/ClinicalDocument/recordTarget/patientRole/patient/birthTime\n\nElse, Fail the test.\n","The patient's Date of Birth is rendered in the Details of the clinical document.",null,null,"0",{"$f":"IF(AND(BGCol(C69)=48,G69=\"N/A\"),1,0)","v":{"$error":"#NAME?"}},"TD03"]
["CDAR-DF-039","Deceased Indicator","M",1,"PRECONDITION: The clinical document has a 'deceased indicator' set to 'true'.\n\nPass the test if the value defined by the following XPATH is rendered in the clinical document as an indication that the patient is deceased:\n/ClinicalDocument/recordTarget/patientRole/patient/ext:deceasedInd\n\nElse, Fail the test.\n","Appropriate information is rendered in the Details of the clinical document to indicate that the patient is deceased.",null,null,"0",{"$f":"IF(AND(BGCol(C70)=48,G70=\"N/A\"),1,0)","v":{"$error":"#NAME?"}},"TD01"]
["CDAR-DF-040","Deceased Time","M",1,"Pass the test if the value defined by the following XPATH is rendered in the clinical document:\n/ClinicalDocument/recordTarget/patientRole/patient/ext:deceasedTime\n\nElse, Fail the test.\n","The data , and time if provided, that the patient has deceased is rendered in the Details of the clinical document.",null,null,"0",{"$f":"IF(AND(BGCol(C71)=48,G71=\"N/A\"),1,0)","v":{"$error":"#NAME?"}},"TD01"]
["CDAR-DF-041","Address","M",1,"The value defined by the following XPATH is rendered in the clinical document:\n/ClinicalDocument/recordTarget/patientRole/addr\n","The testing for this field is performed in the Address Table below.\n\n",null,null,null,null,"Refer to Address table\nbelow - Tests #2, #4, #6, #7 & #9\n"]
["CDAR-DF-042","Communication Details","M",1,"Pass the test if the value defined by the following XPATH is rendered in the clinical document:\n/ClinicalDocument/recordTarget/patientRole/telecom\n\nElse, Fail the test.\n\nNOTE TO TESTER:\nCommunications Details must conform to Requirement CDA-RS 34 (test case CDAR-RS-34).\n","The Communication Details of the Patient are rendered in the Details of the clinical document.",null,null,"0",{"$f":"IF(AND(BGCol(C73)=48,G73=\"N/A\"),1,0)","v":{"$error":"#NAME?"}},"TD01"]
["7. Recipient Details"]
["   7a. Recipient where specified within CDA Implementation Guide for document type."]
["CDAR-DF-043","HPI-I","C",1,"Mark the test N/A if Healthcare Provider Identifiers for providers (HPI-I) are omitted as per requirement CDA-RS 29 (a).\n\nPass the test if the value defined by the following XPATH is rendered in the clinical document:\n/ClinicalDocument/informationRecipient/intendedRecipient/informationRecipient/ext:asEntityIdentifier[@classCode='IDENT']/ext:id[@assigningAuthorityName='HPI-I']\n\nElse, Fail the test.\n","The Healthcare Provider Identifier for providers (HPI-I) of the Recipient is rendered in the Details of the clinical document.",null,null,{"$f":"IF(G76=\"\",\"0\",IF(G76=\"Pass\",1,IF(G76=\"Fail\",0,IF(G76=\"TBD\",0,IF(G76=\"N/A\",1)))))","v":"0"},{"$f":"IF(AND(BGCol(C76)=48,G76=\"N/A\"),1,0)","v":{"$error":"#NAME?"}},"TD10"]
["CDAR-DF-044","Other Identifiers","C",1,"Mark the test N/A if Healthcare Provider Identifiers for providers are omitted as per requirement CDA-RS 29 (a).\n\nPass the test if the value defined by the following XPATH is rendered in the clinical document:\n/ClinicalDocument/informationRecipient/intendedRecipient/informationRecipient/ext:asEntityIdentifier[@classCode='IDENT']/ext:id[@assigningAuthorityName!='HPI-I']\n\nElse, Fail the test.\n","The value used by the Recipient's organisation to uniquely identify the Recipient within that organisation is rendered in the Details of the clinical document.",null,null,"0",{"$f":"IF(AND(BGCol(C77)=48,G77=\"N/A\"),1,0)","v":{"$error":"#NAME?"}},"TD10"]
["CDAR-DF-045","Name","M",1,"Pass the test if the value defined by the following XPATH is rendered in the clinical document:\n/ClinicalDocument/informationRecipient/intendedRecipient/informationRecipient/name\n\nElse, Fail the test.\n","The Name of the Recipient is rendered in the Details of the clinical document.",null,null,"0",{"$f":"IF(AND(BGCol(C78)=48,G78=\"N/A\"),1,0)","v":{"$error":"#NAME?"}},"TD10"]
["CDAR-DF-046","Occupation\n\nNote:\nThis Details Field must also comply with requirement 020652 for displaying the stored concepts extracted from an inbound CDA document [NEHTA-2188:2015], which states that:\n\"If the healthcare software system supports displaying concepts extracted from inbound CDA documents, it SHALL display the original text, associated with each concept while maintaining the original intended semantic context. If the original text (originalText equivalent) is not available, it SHALL display the concept description instead (displayName equivalent). Where the healthcare software system displays the concept description along with the original text, it SHALL be clearly labelled accordingly so the user clearly distinguishes between the original text and the description.\"","M",null,"The value of the Recipient's Occupation is defined by the following XPATH is rendered in the clinical document:\n/ClinicalDocument/informationRecipient/intendedRecipient/informationRecipient/ext:asEmployment/ext:jobCode\n"]
[null,null,null,1,"PRECONDITION: The recipient's Occupation is described by a 'displayName' and an <originalText> element is NOT present. \n\nPass the test if the value of the 'displayName' is rendered in the clincial document. \nElse, Fail the test.\n","The value of the 'displayName' attribute is rendered for the recipient's Occupation in the Details of the clinical document.",null,null,{"$f":"IF(G80=\"\",\"0\",IF(G80=\"Pass\",1,IF(G80=\"Fail\",0,IF(G80=\"TBD\",0,IF(G80=\"N/A\",1)))))","v":"0"},{"$f":"IF(AND(BGCol(C80)=48,G80=\"N/A\"),1,0)","v":{"$error":"#NAME?"}},"TD10"]
[null,null,null,2,"PRECONDITION: The recipient's Occupation is described by an <originalText> element. \n\nPass the test if the value of the <originalText> element is rendered in the  clinical document. \nElse, Fail the test.\n\nNOTE TO TESTER:\nThe display of the value of the <originalText> element is regardless of whether or not a value is provided for the 'displayName' attribute.\n","The value of the <originalText> element is rendered for the recipient's Occupation in the Details of the clinical document.",null,null,"0",{"$f":"IF(AND(BGCol(C81)=48,G81=\"N/A\"),1,0)","v":{"$error":"#NAME?"}},"TD65"]
[null,null,null,3,"PRECONDITION: The recipient's Occupation is described by the values of both a 'displayName' attribute and an <originalText> element. \n\nPass the test if the values of the 'displayName' attribute and the <originalText> element are both rendered in the Details of the clinical document, and are clearly labelled in the rendered document to distinguished between the original text and the concept description. \nElse, Fail the test.\n\nNOTE TO TESTER:\nThe intent of this requirement is to maintain the meaning intended by the CDA document author, and to ensure that the display name is not mistaken for the original text recorded by the author.\nThe need to display the description along with the original text may arise in order to reduce risks of misinterpretation from the use of the concept by knowledge-support and decision-support protocols as well as through human interpretation. \n","The values of both the 'displayName' attribute and the <originalText> element are rendered for the recipient's Occupation in the Details of the clinical document, and they are clearly labelled so as to distinguish between the original text and the concept description.",null,null,"0",{"$f":"IF(AND(BGCol(C82)=48,G82=\"N/A\"),1,0)","v":{"$error":"#NAME?"}},"TD66"]
["CDAR-DF-047","Qualifications","M",1,"Pass the test if the value defined by the following XPATH is rendered in the clinical document:\n/ClinicalDocument/informationRecipient/intendedRecipient/informationRecipient/ext:asQualifications/ext:code/originalText\n\nElse, Fail the test.\n","The Qualifications of the Recipient are rendered in the Details of the clinical document.",null,null,"0",{"$f":"IF(AND(BGCol(C83)=48,G83=\"N/A\"),1,0)","v":{"$error":"#NAME?"}},"TD10"]
["CDAR-DF-048","Address","M",1,"The value defined by the following XPATH is rendered in the clinical document:\n/ClinicalDocument/informationRecipient/intendedRecipient/addr\n","The testing for this field is performed in the Address Table below.\n\n",null,null,null,null,"Refer to Address table\nbelow - Test #3 & #5\n"]
["CDAR-DF-049","Communication Details","M",1,"Pass the test if the value defined by the following XPATH is rendered in the clinical document:\n/ClinicalDocument/informationRecipient/intendedRecipient/telecom\n\nElse, Fail the test.\n\nNOTE TO TESTER:\nCommunications Details must conform to Requirement CDA-RS 34 (test case CDAR-RS-34).\n","The Communication Details of the Recipient are rendered in the Details of the clinical document.",null,null,"0",{"$f":"IF(AND(BGCol(C85)=48,G85=\"N/A\"),1,0)","v":{"$error":"#NAME?"}},"TD10"]
["CDAR-DF-050","Organisation Name","M",1,"Pass the test if the value defined by the following XPATH is rendered in the clinical document:\n/ClinicalDocument/informationRecipient/intendedRecipient/receivedOrganization/name\n\nElse, Fail the test.\n","The Organisation Name of the organisation that employs the Recipient is rendered in the Details of the clinical document.",null,null,"0",{"$f":"IF(AND(BGCol(C86)=48,G86=\"N/A\"),1,0)","v":{"$error":"#NAME?"}},"TD10"]
["CDAR-DF-051","Organisation HPI-O","C",1,"Mark the test N/A if Healthcare Provider Identifiers for organisations (HPI-O) are omitted as per requirement CDA-RS 29 (a).\n\nPass the test if the value defined by the following XPATH is rendered in the clinical document:\n/ClinicalDocument/informationRecipient/intendedRecipient/receivedOrganization/ext:asEntityIdentifier[@classCode='IDENT']/ext:id[@assigningAuthorityName='HPI-O']\n\nElse, Fail the test.\n","The Organisation HPI-O of the organisation that employs the Recipient is rendered in the Details of the clinical document.",null,null,"0",{"$f":"IF(AND(BGCol(C87)=48,G87=\"N/A\"),1,0)","v":{"$error":"#NAME?"}},"TD10"]
[null,null,null,null,"Note: Information recipient is not specified in the CDA Implementation Guide for Event Summary document type, however additional content data may be coded, and if so it needs to be rendered. "]
["   7b. Recipient where not specified within CDA Implementation Guide for document type."]
["CDAR-DF-052","HPI-I","C",1,"Mark the test N/A if Healthcare Provider Identifiers for providers (HPI-I) are omitted as per requirement CDA-RS 29 (a).\n\nPass the test if the value defined by the following XPATH is rendered in the clinical document:\n/ClinicalDocument/informationRecipient/intendedRecipient/informationRecipient/ext:asEntityIdentifier[@classCode='IDENT']/ext:id[@assigningAuthorityName='HPI-I']\n\nElse, Fail the test.\n","The Healthcare Provider Identifier for providers (HPI-I) of the Recipient is rendered in the Details of the clinical document.",null,null,{"$f":"IF(G90=\"\",\"0\",IF(G90=\"Pass\",1,IF(G90=\"Fail\",0,IF(G90=\"TBD\",0,IF(G90=\"N/A\",1)))))","v":"0"},{"$f":"IF(AND(BGCol(C90)=48,G90=\"N/A\"),1,0)","v":{"$error":"#NAME?"}},"TD19"]
["CDAR-DF-053","Other Identifiers","C",1,"Mark the test N/A if Healthcare Provider Identifiers for providers are omitted as per requirement CDA-RS 29 (a).\n\nPass the test if the value defined by the following XPATH is rendered in the clinical document:\n/ClinicalDocument/informationRecipient/intendedRecipient/informationRecipient/ext:asEntityIdentifier[@classCode='IDENT']/ext:id[@assigningAuthorityName!='HPI-I']\n\nElse, Fail the test.\n","The value used by the Recipient's organisation to uniquely identify the Recipient within that organisation is rendered in the Details of the clinical document.",null,null,"0",{"$f":"IF(AND(BGCol(C91)=48,G91=\"N/A\"),1,0)","v":{"$error":"#NAME?"}},"TD19"]
["CDAR-DF-054","Name","M",1,"Pass the test if the value defined by the following XPATH is rendered in the clinical document:\n/ClinicalDocument/informationRecipient/intendedRecipient/informationRecipient/name\n\nElse, Fail the test.\n","The Name of the Recipient is rendered in the Details of the clinical document.",null,null,"0",{"$f":"IF(AND(BGCol(C92)=48,G92=\"N/A\"),1,0)","v":{"$error":"#NAME?"}},"TD19"]
["CDAR-DF-055","Occupation","M",1,"Pass the test if the value defined by the following XPATH is rendered in the clinical document:\n/ClinicalDocument/informationRecipient/intendedRecipient/informationRecipient/ext:asEmployment/ext:jobCode\n\nElse, Fail the test.\n","The Recipient's Occupation is rendered in the Details of the clinical document.",null,null,"0",{"$f":"IF(AND(BGCol(C93)=48,G93=\"N/A\"),1,0)","v":{"$error":"#NAME?"}},"TD19"]
["CDAR-DF-056","Qualifications","M",1,"Pass the test if the value defined by the following XPATH is rendered in the clinical document:\n/ClinicalDocument/informationRecipient/intendedRecipient/informationRecipient/ext:asQualifications/ext:code/originalText\n\nElse, Fail the test.\n","The Qualifications of the Recipient are rendered in the Details of the clinical document.",null,null,"0",{"$f":"IF(AND(BGCol(C94)=48,G94=\"N/A\"),1,0)","v":{"$error":"#NAME?"}},"TD19"]
["CDAR-DF-057","Address","M",1,"The value defined by the following XPATH is rendered in the clinical document:\n/ClinicalDocument/informationRecipient/intendedRecipient/addr\n","The testing for this field is performed in the Address Table below.\n\n",null,null,null,null,"Refer to Address table\nbelow - Test #3 & #5\n"]
["CDAR-DF-058","Communication Details","M",1,"Pass the test if the value defined by the following XPATH is rendered in the clinical document:\n/ClinicalDocument/informationRecipient/intendedRecipient/telecom\n\nElse, Fail the test.\n\nNOTE TO TESTER:\nCommunications Details must conform to Requirement CDA-RS 34 (test case CDAR-RS-34).\n","The Communication Details of the Recipient are rendered in the Details of the clinical document.",null,null,{"$f":"IF(G96=\"\",\"0\",IF(G96=\"Pass\",1,IF(G96=\"Fail\",0,IF(G96=\"TBD\",0,IF(G96=\"N/A\",1)))))","v":"0"},{"$f":"IF(AND(BGCol(C96)=48,G96=\"N/A\"),1,0)","v":{"$error":"#NAME?"}},"TD19"]
["CDAR-DF-059","Organisation Name","M",1,"Pass the test if the value defined by the following XPATH is rendered in the clinical document:\n/ClinicalDocument/informationRecipient/intendedRecipient/receivedOrganization/name\n\nElse, Fail the test.\n","The Organisation Name of the organisation that employs the Recipient is rendered in the Details of the clinical document.",null,null,"0",{"$f":"IF(AND(BGCol(C97)=48,G97=\"N/A\"),1,0)","v":{"$error":"#NAME?"}},"TD19"]
["CDAR-DF-060","Organisation HPI-O","C",1,"Mark the test N/A if Healthcare Provider Identifiers for organisations (HPI-O) are omitted as per requirement CDA-RS 29 (a).\n\nPass the test if the value defined by the following XPATH is rendered in the clinical document:\n/ClinicalDocument/informationRecipient/intendedRecipient/receivedOrganization/ext:asEntityIdentifier[@classCode='IDENT']/ext:id[@assigningAuthorityName='HPI-O']\n\nElse, Fail the test.\n","The Organisation HPI-O of the organisation that employs the Recipient is rendered in the Details of the clinical document.",null,null,"0",{"$f":"IF(AND(BGCol(C98)=48,G98=\"N/A\"),1,0)","v":{"$error":"#NAME?"}},"TD19"]
["8. Participant Details\n",null,null,null,"The ability to render the Participant depends on the type of CDA document, as the type of participant varies with each type, as such each type of clinical document, and each type of participant is to be tested."]
["     8a. Discharge Summary with Participant Type = Nominated Primary Healthcare Provider"]
["CDAR-DF-061","HPI-I","C",1,"Mark the test N/A if Healthcare Provider Identifiers for providers (HPI-I) are omitted as per requirement CDA-RS 29 (a).\n\nPass the test if the value defined by the following XPATH is rendered in the clinical document:\n/ClinicalDocument/participant/associatedEntity/associatedPerson/ext:asEntityIdentifier[@classCode='IDENT']/ext:id[@assigningAuthorityName='HPI-I']\n\nElse, Fail the test.\n","The Healthcare Provider Identifier for providers (HPI-I) of the Participant is rendered in the Details of the clinical document.",null,null,{"$f":"IF(G101=\"\",\"0\",IF(G101=\"Pass\",1,IF(G101=\"Fail\",0,IF(G101=\"TBD\",0,IF(G101=\"N/A\",1)))))","v":"0"},{"$f":"IF(AND(BGCol(C101)=48,G101=\"N/A\"),1,0)","v":{"$error":"#NAME?"}},"TD07"]
["CDAR-DF-062","Other Identifiers","C",1,"Mark the test N/A if Healthcare Provider Identifiers for providers (local identifiers) are omitted as per requirement CDA-RS 29 (a).\n\nPass the test if the value defined by the following XPATH is rendered in the clinical document:\n/ClinicalDocument/participant/associatedEntity/associatedPerson/ext:asEntityIdentifier[@classCode='IDENT']/ext:id[@assigningAuthorityName!='HPI-I']\n\nElse, Fail the test.","The value used by the Participant's organisation to uniquely identify the Participant within that organisation is rendered in the Details of the clinical document.",null,null,"0",{"$f":"IF(AND(BGCol(C102)=48,G102=\"N/A\"),1,0)","v":{"$error":"#NAME?"}},"TD07"]
["CDAR-DF-063","Name","M",1,"Pass the test if the value defined by the following XPATH is rendered in the clinical document:\n/ClinicalDocument/participant/associatedEntity/associatedPerson/name\n\nElse, Fail the test.\n","The Name of the Participant is rendered in the Details of the clinical document.",null,null,"0",{"$f":"IF(AND(BGCol(C103)=48,G103=\"N/A\"),1,0)","v":{"$error":"#NAME?"}},"TD07"]
["CDAR-DF-064","Occupation","M",1,"Pass the test if the value defined by the following XPATH is rendered in the clinical document:\n/ClinicalDocument/participant/associatedEntity/associatedPerson/ext:asEmployment/ext:jobCode\n\nElse, Fail the test.\n","The Occupation of the Participant is rendered in the Details of the clinical document.",null,null,"0",{"$f":"IF(AND(BGCol(C104)=48,G104=\"N/A\"),1,0)","v":{"$error":"#NAME?"}},"TD07"]
["CDAR-DF-065","Qualifications","M",1,"Pass the test if the value defined by the following XPATH is rendered in the clinical document:\n/ClinicalDocument/participant/associatedEntity/associatedPerson/ext:asQualifications/ext:code/originalText\n\nElse, Fail the test.\n","The Qualifications of the Participant are rendered in the Details of the clinical document.",null,null,"0",{"$f":"IF(AND(BGCol(C105)=48,G105=\"N/A\"),1,0)","v":{"$error":"#NAME?"}},"TD07"]
["CDAR-DF-066","Address","M",1,"Pass the test if the value defined by the following XPATH is rendered in the clinical document:\n/ClinicalDocument/participant/associatedEntity/addr\n\nElse, Fail the test.\n","The Address of the Participant is rendered in the Details of the clinical document.",null,null,"0",{"$f":"IF(AND(BGCol(C106)=48,G106=\"N/A\"),1,0)","v":{"$error":"#NAME?"}},"TD07"]
["CDAR-DF-067","Communication Details","M",1,"Pass the test if the value defined by the following XPATH is rendered in the clinical document:\n/ClinicalDocument/participant/associatedEntity/telecom\n\nElse, Fail the test.\n\nNOTE TO TESTER:\nCommunications Details must conform to Requirement CDA-RS 34 (test case CDAR-RS-34).\n","The Communication Details of the Participant are rendered in the Details of the clinical document.",null,null,"0",{"$f":"IF(AND(BGCol(C107)=48,G107=\"N/A\"),1,0)","v":{"$error":"#NAME?"}},"TD07"]
["CDAR-DF-068","Organisation Name","M",1,"Pass the test if the value defined by the following XPATH is rendered in the clinical document:\n/ClinicalDocument/participant/associatedEntity/associatedPerson/ext:asEmployment/ext:employerOrganization/asOrganizationPartOf/wholeOrganization/name\n\nElse, Fail the test.\n","The Organisation Name of the organisation that employs the Participant is rendered in the Details of the clinical document.",null,null,"0",{"$f":"IF(AND(BGCol(C108)=48,G108=\"N/A\"),1,0)","v":{"$error":"#NAME?"}},"TD07"]
["CDAR-DF-069","Organisation HPI-O","C",1,"Mark the test N/A if Healthcare Provider Identifiers for organisations (HPI-O) are omitted as per requirement CDA-RS 29 (a).\n\nPass the test if the value defined by the following XPATH is rendered in the clinical document:\n/ClinicalDocument/participant/associatedEntity/associatedPerson/ext:asEmployment/ext:employerOrganization/asOrganizationPartOf/wholeOrganization/ext:asEntityIdentifier[@classCode='IDENT']/ext:id[@assigningAuthorityName='HPI-O']\n\nElse, Fail the test.","The Organisation HPI-O of the organisation that employs the Participant is rendered in the Details of the clinical document.",null,null,"0",{"$f":"IF(AND(BGCol(C109)=48,G109=\"N/A\"),1,0)","v":{"$error":"#NAME?"}},"TD07"]
["     8b. Discharge Summary with Participant Type = Other Participant (with HPI-O)"]
["CDAR-DF-070","HPI-I","C",1,"Mark the test N/A if Healthcare Provider Identifiers for providers (HPI-I) are omitted as per requirement CDA-RS 29 (a).\n\nPass the test if the value defined by the following XPATH is rendered in the clinical document:\n/ClinicalDocument/participant/associatedEntity/associatedPerson/ext:asEntityIdentifier[@classCode='IDENT']/ext:id[@assigningAuthorityName='HPI-I']\n\nElse, Fail the test.\n","The Healthcare Provider Identifier for providers (HPI-I) of the Participant is rendered in the Details of the clinical document.",null,null,{"$f":"IF(G111=\"\",\"0\",IF(G111=\"Pass\",1,IF(G111=\"Fail\",0,IF(G111=\"TBD\",0,IF(G111=\"N/A\",1)))))","v":"0"},{"$f":"IF(AND(BGCol(C111)=48,G111=\"N/A\"),1,0)","v":{"$error":"#NAME?"}},"TD07"]
["CDAR-DF-071","Other Identifiers","C",1,"Mark the test N/A if Healthcare Provider Identifiers for providers (local identifiers) are omitted as per requirement CDA-RS 29 (a).\n\nPass the test if the value defined by the following XPATH is rendered in the clinical document:\n/ClinicalDocument/participant/associatedEntity/associatedPerson/ext:asEntityIdentifier[@classCode='IDENT']/ext:id[@assigningAuthorityName!='HPI-I']\n\nElse, Fail the test.","The value used by the Participant's organisation to uniquely identify the Participant within that organisation is rendered in the Details of the clinical document.",null,null,"0",{"$f":"IF(AND(BGCol(C112)=48,G112=\"N/A\"),1,0)","v":{"$error":"#NAME?"}},"TD07"]
["CDAR-DF-072","Name","M",1,"Pass the test if the value defined by the following XPATH is rendered in the clinical document:\n/ClinicalDocument/participant/associatedEntity/associatedPerson/name\n\nElse, Fail the test.\n","The Name of the Participant is rendered in the Details of the clinical document.",null,null,"0",{"$f":"IF(AND(BGCol(C113)=48,G113=\"N/A\"),1,0)","v":{"$error":"#NAME?"}},"TD07"]
["CDAR-DF-073","Occupation","M",1,"Pass the test if the value defined by the following XPATH is rendered in the clinical document:\n/ClinicalDocument/participant/associatedEntity/associatedPerson/ext:asEmployment/ext:jobCode\n\nElse, Fail the test.\n","The Occupation of the Participant is rendered in the Details of the clinical document.",null,null,"0",{"$f":"IF(AND(BGCol(C114)=48,G114=\"N/A\"),1,0)","v":{"$error":"#NAME?"}},"TD07"]
["CDAR-DF-074","Qualifications","M",1,"Pass the test if the value defined by the following XPATH is rendered in the clinical document:\n/ClinicalDocument/participant/associatedEntity/associatedPerson/ext:asQualifications/ext:code/originalText\n\nElse, Fail the test.\n","The Qualifications of the Participant are rendered in the Details of the clinical document.",null,null,"0",{"$f":"IF(AND(BGCol(C115)=48,G115=\"N/A\"),1,0)","v":{"$error":"#NAME?"}},"TD07"]
["CDAR-DF-075","Address","M",1,"Pass the test if the value defined by the following XPATH is rendered in the clinical document:\n/ClinicalDocument/participant/associatedEntity/addr\n\nElse, Fail the test.\n","The Address of the Participant is rendered in the Details of the clinical document.",null,null,"0",{"$f":"IF(AND(BGCol(C116)=48,G116=\"N/A\"),1,0)","v":{"$error":"#NAME?"}},"TD07"]
["CDAR-DF-076","Communication Details","M",1,"Pass the test if the value defined by the following XPATH is rendered in the clinical document:\n/ClinicalDocument/participant/associatedEntity/telecom\n\nElse, Fail the test.\n\nNOTE TO TESTER:\nCommunications Details must conform to Requirement CDA-RS 34 (test case CDAR-RS-34).\n","The Communication Details of the Participant are rendered in the Details of the clinical document.",null,null,"0",{"$f":"IF(AND(BGCol(C117)=48,G117=\"N/A\"),1,0)","v":{"$error":"#NAME?"}},"TD07"]
["CDAR-DF-077","Organisation Name","M",1,"Pass the test if the value defined by the following XPATH is rendered in the clinical document:\n/ClinicalDocument/participant/associatedEntity/associatedPerson/ext:asEmployment/ext:employerOrganization/asOrganizationPartOf/wholeOrganization/name\n\nElse, Fail the test.\n","The Organisation Name of the organisation that employs the Participant is rendered in the Details of the clinical document.",null,null,"0",{"$f":"IF(AND(BGCol(C118)=48,G118=\"N/A\"),1,0)","v":{"$error":"#NAME?"}},"TD07"]
["CDAR-DF-078","Organisation HPI-O","C",1,"Mark the test N/A if Healthcare Provider Identifiers for organisations (HPI-O) are omitted as per requirement CDA-RS 29 (a).\n\nPass the test if the value defined by the following XPATH is rendered in the clinical document:\n/ClinicalDocument/participant/associatedEntity/associatedPerson/ext:asEmployment/ext:employerOrganization/asOrganizationPartOf/wholeOrganization/ext:asEntityIdentifier[@classCode='IDENT']/ext:id[@assigningAuthorityName='HPI-O']\n\nElse, Fail the test.\n","The Organisation HPI-O of the organisation that employs the Participant is rendered in the Details of the clinical document.",null,null,"0",{"$f":"IF(AND(BGCol(C119)=48,G119=\"N/A\"),1,0)","v":{"$error":"#NAME?"}},"TD07"]
["     8c. Discharge Summary with Participant Type = Other Participant (non-HPI-O)"]
["CDAR-DF-079","Name","M",1,"Pass the test if the value defined by the following XPATH is rendered in the clinical document:\n/ClinicalDocument/participant/associatedEntity/associatedPerson/name\n\nElse, Fail the test.\n","The Name of the Participant is rendered in the Details of the clinical document.",null,null,{"$f":"IF(G121=\"\",\"0\",IF(G121=\"Pass\",1,IF(G121=\"Fail\",0,IF(G121=\"TBD\",0,IF(G121=\"N/A\",1)))))","v":"0"},{"$f":"IF(AND(BGCol(C121)=48,G121=\"N/A\"),1,0)","v":{"$error":"#NAME?"}},"TD07"]
["CDAR-DF-080","Address","M",1,"Pass the test if the value defined by the following XPATH is rendered in the clinical document:\n/ClinicalDocument/participant/associatedEntity/addr\n\nElse, Fail the test.\n","The Address of the Participant is rendered in the Details of the clinical document.",null,null,"0",{"$f":"IF(AND(BGCol(C122)=48,G122=\"N/A\"),1,0)","v":{"$error":"#NAME?"}},"TD07"]
["CDAR-DF-081","Communication Details","M",1,"Pass the test if the value defined by the following XPATH is rendered in the clinical document:\n/ClinicalDocument/participant/associatedEntity/telecom\n\nElse, Fail the test.\n\nNOTE TO TESTER:\nCommunications Details must conform to Requirement CDA-RS 34 (test case CDAR-RS-34).\n","The Communication Details of the Participant are rendered in the Details of the clinical document.",null,null,"0",{"$f":"IF(AND(BGCol(C123)=48,G123=\"N/A\"),1,0)","v":{"$error":"#NAME?"}},"TD07"]
["     8d. eReferral with Participant Type = Referee"]
["CDAR-DF-082","HPI-I","C",1,"Mark the test N/A if Healthcare Provider Identifiers for providers (HPI-I) are omitted as per requirement CDA-RS 29 (a).\n\nPass the test if the value defined by the following XPATH is rendered in the clinical document:\n/ClinicalDocument/participant/associatedEntity/associatedPerson/ext:asEntityIdentifier[@classCode='IDENT']/ext:id[@assigningAuthorityName='HPI-I']\n\nElse, Fail the test.\n","The Healthcare Provider Identifier for providers (HPI-I) of the Participant is rendered in the Details of the clinical document.",null,null,{"$f":"IF(G125=\"\",\"0\",IF(G125=\"Pass\",1,IF(G125=\"Fail\",0,IF(G125=\"TBD\",0,IF(G125=\"N/A\",1)))))","v":"0"},{"$f":"IF(AND(BGCol(C125)=48,G125=\"N/A\"),1,0)","v":{"$error":"#NAME?"}},"TD08"]
["CDAR-DF-083","Other Identifiers","C",1,"Mark the test N/A if Healthcare Provider Identifiers for providers (local identifiers) are omitted as per requirement CDA-RS 29 (a).\n\nPass the test if the value defined by the following XPATH is rendered in the clinical document:\n/ClinicalDocument/participant/associatedEntity/associatedPerson/ext:asEntityIdentifier[@classCode='IDENT']/ext:id[@assigningAuthorityName!='HPI-I']\n\nElse, Fail the test.\n","The value used by the Participant's organisation to uniquely identify the Participant within that organisation is rendered in the Details of the clinical document.",null,null,"0",{"$f":"IF(AND(BGCol(C126)=48,G126=\"N/A\"),1,0)","v":{"$error":"#NAME?"}},"TD08"]
["CDAR-DF-084","Name","M",1,"Pass the test if the value defined by the following XPATH is rendered in the clinical document:\n/ClinicalDocument/participant/associatedEntity/associatedPerson/name\n\nElse, Fail the test.\n","The Name of the Participant is rendered in the Details of the clinical document.",null,null,"0",{"$f":"IF(AND(BGCol(C127)=48,G127=\"N/A\"),1,0)","v":{"$error":"#NAME?"}},"TD08"]
["CDAR-DF-085","Occupation","M",1,"Pass the test if the value defined by the following XPATH is rendered in the clinical document:\n/ClinicalDocument/participant/associatedEntity/associatedPerson/ext:asEmployment/ext:jobCode\n\nElse, Fail the test.\n","The Occupation of the Participant is rendered in the Details of the clinical document.",null,null,"0",{"$f":"IF(AND(BGCol(C128)=48,G128=\"N/A\"),1,0)","v":{"$error":"#NAME?"}},"TD08"]
["CDAR-DF-086","Qualifications","M",1,"Pass the test if the value defined by the following XPATH is rendered in the clinical document:\n/ClinicalDocument/participant/associatedEntity/associatedPerson/ext:asQualifications/ext:code/originalText\n\nElse, Fail the test.\n","The Qualifications of the Participant are rendered in the Details of the clinical document.",null,null,"0",{"$f":"IF(AND(BGCol(C129)=48,G129=\"N/A\"),1,0)","v":{"$error":"#NAME?"}},"TD08"]
["CDAR-DF-087","Address","M",1,"Pass the test if the value defined by the following XPATH is rendered in the clinical document:\n/ClinicalDocument/participant/associatedEntity/addr\n\nElse, Fail the test.\n","The Address of the Participant is rendered in the Details of the clinical document.",null,null,"0",{"$f":"IF(AND(BGCol(C130)=48,G130=\"N/A\"),1,0)","v":{"$error":"#NAME?"}},"TD08"]
["CDAR-DF-088","Communication Details","M",1,"Pass the test if the value defined by the following XPATH is rendered in the clinical document:\n/ClinicalDocument/participant/associatedEntity/telecom\n\nElse, Fail the test.\n\nNOTE TO TESTER:\nCommunications Details must conform to Requirement CDA-RS 34 (test case CDAR-RS-34).\n","The Communication Details of the Participant are rendered in the Details of the clinical document.",null,null,"0",{"$f":"IF(AND(BGCol(C131)=48,G131=\"N/A\"),1,0)","v":{"$error":"#NAME?"}},"TD08"]
["CDAR-DF-089","Organisation Name","M",1,"Pass the test if the value defined by the following XPATH is rendered in the clinical document:\n/ClinicalDocument/participant/associatedEntity/associatedPerson/ext:asEmployment/ext:employerOrganization/asOrganizationPartOf/wholeOrganization/name\n\nElse, Fail the test.\n","The Organisation Name of the organisation that employs the Participant is rendered in the Details of the clinical document.",null,null,"0",{"$f":"IF(AND(BGCol(C132)=48,G132=\"N/A\"),1,0)","v":{"$error":"#NAME?"}},"TD08"]
["CDAR-DF-090","Organisation HPI-O","C",1,"Mark the test N/A if Healthcare Provider Identifiers for organisations (HPI-O) are omitted as per requirement CDA-RS 29 (a).\n\nPass the test if the value defined by the following XPATH is rendered in the clinical document:\n/ClinicalDocument/participant/associatedEntity/associatedPerson/ext:asEmployment/ext:employerOrganization/asOrganizationPartOf/wholeOrganization/ext:asEntityIdentifier[@classCode='IDENT']/ext:id[@assigningAuthorityName='HPI-O']\n\nElse, Fail the test.\n","The Organisation HPI-O of the organisation that employs the Participant is rendered in the Details of the clinical document.",null,null,"0",{"$f":"IF(AND(BGCol(C133)=48,G133=\"N/A\"),1,0)","v":{"$error":"#NAME?"}},"TD08"]
["     8e. eReferral with Participant Type = Patient's Nominated Contact"]
["CDAR-DF-091","HPI-I","C",1,"Mark the test N/A if Healthcare Provider Identifiers for providers (HPI-I) are omitted as per requirement CDA-RS 29 (a).\n\nPass the test if the value defined by the following XPATH is rendered in the clinical document:\n/ClinicalDocument/participant/associatedEntity/associatedPerson/ext:asEntityIdentifier[@classCode='IDENT']/ext:id[@assigningAuthorityName='HPI-I']\n\nElse, Fail the test.\n","The Healthcare Provider Identifier for providers (HPI-I) of the Participant is rendered in the Details of the clinical document.",null,null,{"$f":"IF(G135=\"\",\"0\",IF(G135=\"Pass\",1,IF(G135=\"Fail\",0,IF(G135=\"TBD\",0,IF(G135=\"N/A\",1)))))","v":"0"},{"$f":"IF(AND(BGCol(C135)=48,G135=\"N/A\"),1,0)","v":{"$error":"#NAME?"}},"TD08"]
["CDAR-DF-092","Other Identifiers","C",1,"Mark the test N/A if Healthcare Provider Identifiers for providers (local identifiers) are omitted as per requirement CDA-RS 29 (a).\n\nPass the test if the value defined by the following XPATH is rendered in the clinical document:\n/ClinicalDocument/participant/associatedEntity/associatedPerson/ext:asEntityIdentifier[@classCode='IDENT']/ext:id[@assigningAuthorityName!='HPI-I']\n\nElse, Fail the test.\n","The value used by the Participant's organisation to uniquely identify the Participant within that organisation is rendered in the Details of the clinical document.",null,null,"0",{"$f":"IF(AND(BGCol(C136)=48,G136=\"N/A\"),1,0)","v":{"$error":"#NAME?"}},"TD08"]
["CDAR-DF-093","Name","M",1,"Pass the test if the value defined by the following XPATH is rendered in the clinical document:\n/ClinicalDocument/participant/associatedEntity/associatedPerson/name\n\nElse, Fail the test.\n","The Name of the Participant is rendered in the Details of the clinical document.",null,null,"0",{"$f":"IF(AND(BGCol(C137)=48,G137=\"N/A\"),1,0)","v":{"$error":"#NAME?"}},"TD08"]
["CDAR-DF-094","Address","M",1,"Pass the test if the value defined by the following XPATH is rendered in the clinical document:\n/ClinicalDocument/participant/associatedEntity/addr\n\nElse, Fail the test.\n","The Address of the Participant is rendered in the Details of the clinical document.",null,null,"0",{"$f":"IF(AND(BGCol(C138)=48,G138=\"N/A\"),1,0)","v":{"$error":"#NAME?"}},"TD08"]
["CDAR-DF-095","Communication Details","M",1,"Pass the test if the value defined by the following XPATH is rendered in the clinical document:\n/ClinicalDocument/participant/associatedEntity/telecom\n\nElse, fail the test.\n\nNOTE TO TESTER:\nCommunications Details must conform to Requirement CDA-RS 34 (test case CDAR-RS-34).\n","The Communication Details of the Participant are rendered in the Details of the clinical document.",null,null,"0",{"$f":"IF(AND(BGCol(C139)=48,G139=\"N/A\"),1,0)","v":{"$error":"#NAME?"}},"TD08"]
["     8f. eReferral with Participant Type = Usual G.P."]
["CDAR-DF-096","HPI-I","C",1,"Mark the test N/A if Healthcare Provider Identifiers for providers (HPI-I) are omitted as per requirement CDA-RS 29 (a).\n\nPass the test if the value defined by the following XPATH is rendered in the clinical document:\n/ClinicalDocument/participant/associatedEntity/associatedPerson/ext:asEntityIdentifier[@classCode='IDENT']/ext:id[@assigningAuthorityName='HPI-I']\n\nElse, Fail the test.\n","The Healthcare Provider Identifier for providers (HPI-I) of the Participant is rendered in the Details of the clinical document.",null,null,{"$f":"IF(G141=\"\",\"0\",IF(G141=\"Pass\",1,IF(G141=\"Fail\",0,IF(G141=\"TBD\",0,IF(G141=\"N/A\",1)))))","v":"0"},{"$f":"IF(AND(BGCol(C141)=48,G141=\"N/A\"),1,0)","v":{"$error":"#NAME?"}},"TD08"]
["CDAR-DF-097","Other Identifiers","C",1,"Mark the test N/A if Healthcare Provider Identifiers for providers (local identifiers) are omitted as per requirement CDA-RS 29 (a).\n\nPass the test if the value defined by the following XPATH is rendered in the clinical document:\n/ClinicalDocument/participant/associatedEntity/associatedPerson/ext:asEntityIdentifier[@classCode='IDENT']/ext:id[@assigningAuthorityName!='HPI-I']\n\nElse, Fail the test.\n","The value used by the Participant's organisation to uniquely identify the Participant within that organisation is rendered in the Details of the clinical document.",null,null,"0",{"$f":"IF(AND(BGCol(C142)=48,G142=\"N/A\"),1,0)","v":{"$error":"#NAME?"}},"TD08"]
["CDAR-DF-098","Name","M",1,"Pass the test if the value defined by the following XPATH is rendered in the clinical document:\n/ClinicalDocument/participant/associatedEntity/associatedPerson/name\n\nElse, Fail the test.\n","The Name of the Participant is rendered in the Details of the clinical document.",null,null,"0",{"$f":"IF(AND(BGCol(C143)=48,G143=\"N/A\"),1,0)","v":{"$error":"#NAME?"}},"TD08"]
["CDAR-DF-099","Address","M",1,"Pass the test if the value defined by the following XPATH is rendered in the clinical document:\n/ClinicalDocument/participant/associatedEntity/addr\n\nElse, Fail the test.\n","The Address of the Participant is rendered in the Details of the clinical document.",null,null,"0",{"$f":"IF(AND(BGCol(C144)=48,G144=\"N/A\"),1,0)","v":{"$error":"#NAME?"}},"TD08"]
["CDAR-DF-100","Communication Details","M",1,"Pass the test if the value defined by the following XPATH is rendered in the clinical document:\n/ClinicalDocument/participant/associatedEntity/telecom\n\nElse, Fail the test.\n\nNOTE TO TESTER:\nCommunications Details must conform to Requirement CDA-RS 34 (test case CDAR-RS-34).\n","The Communication Details of the Participant are rendered in the Details of the clinical document.",null,null,"0",{"$f":"IF(AND(BGCol(C145)=48,G145=\"N/A\"),1,0)","v":{"$error":"#NAME?"}},"TD08"]
["CDAR-DF-101","Organisation Name","M",1,"Pass the test if the value defined by the following XPATH is rendered in the clinical document:\n/ClinicalDocument/participant/associatedEntity/associatedPerson/ext:asEmployment/ext:employerOrganization/asOrganizationPartOf/wholeOrganization/name\n\nElse, Fail the test.\n","The Organisation Name of the organisation that employs the Participant is rendered in the Details of the clinical document.",null,null,"0",{"$f":"IF(AND(BGCol(C146)=48,G146=\"N/A\"),1,0)","v":{"$error":"#NAME?"}},"TD08"]
["CDAR-DF-102","Organisation HPI-O","C",1,"Mark the test N/A if Healthcare Provider Identifiers for organisations (HPI-O) are omitted as per requirement CDA-RS 29 (a).\n\nPass the test if the value defined by the following XPATH is rendered in the clinical document:\n/ClinicalDocument/participant/associatedEntity/associatedPerson/ext:asEmployment/ext:employerOrganization/asOrganizationPartOf/wholeOrganization/ext:asEntityIdentifier[@classCode='IDENT']/ext:id[@assigningAuthorityName='HPI-O']\n\nElse, Fail the test.\n","The Organisation HPI-O of the organisation that employs the Participant is rendered in the Details of the clinical document.",null,null,"0",{"$f":"IF(AND(BGCol(C147)=48,G147=\"N/A\"),1,0)","v":{"$error":"#NAME?"}},"TD08"]
["     8g. Specialist Letter with Participant Type = Referrer"]
["CDAR-DF-103","HPI-I","C",1,"Mark the test N/A if Healthcare Provider Identifiers for providers (HPI-I) are omitted as per requirement CDA-RS 29 (a).\n\nPass the test if the value defined by the following XPATH is rendered in the clinical document:\n/ClinicalDocument/participant/associatedEntity/associatedPerson/ext:asEntityIdentifier[@classCode='IDENT']/ext:id[@assigningAuthorityName='HPI-I']\n\nElse, Fail the test.\n","The Healthcare Provider Identifier for providers (HPI-I) of the Participant is rendered in the Details of the clinical document.",null,null,{"$f":"IF(G149=\"\",\"0\",IF(G149=\"Pass\",1,IF(G149=\"Fail\",0,IF(G149=\"TBD\",0,IF(G149=\"N/A\",1)))))","v":"0"},{"$f":"IF(AND(BGCol(C149)=48,G149=\"N/A\"),1,0)","v":{"$error":"#NAME?"}},"TD42"]
["CDAR-DF-104","Other Identifiers","C",1,"Mark the test N/A if Healthcare Provider Identifiers for providers (local identifiers) are omitted as per requirement CDA-RS 29 (a).\n\nPass the test if the value defined by the following XPATH is rendered in the clinical document:\n/ClinicalDocument/participant/associatedEntity/associatedPerson/ext:asEntityIdentifier[@classCode='IDENT']/ext:id[@assigningAuthorityName!='HPI-I']\n\nElse, Fail the test.\n","The value used by the Participant's organisation to uniquely identify the Participant within that organisation is rendered in the Details of the clinical document.",null,null,"0",{"$f":"IF(AND(BGCol(C150)=48,G150=\"N/A\"),1,0)","v":{"$error":"#NAME?"}},"TD42"]
["CDAR-DF-105","Name","M",1,"Pass the test if the value defined by the following XPATH is rendered in the clinical document:\n/ClinicalDocument/participant/associatedEntity/associatedPerson/name\n\nElse, Fail the test.\n","The Name of the Participant is rendered in the Details of the clinical document.",null,null,"0",{"$f":"IF(AND(BGCol(C151)=48,G151=\"N/A\"),1,0)","v":{"$error":"#NAME?"}},"TD42"]
["CDAR-DF-106","Occupation","M",1,"Pass the test if the value defined by the following XPATH is rendered in the clinical document:\n/ClinicalDocument/participant/associatedEntity/associatedPerson/ext:asEmployment/ext:jobCode\n\nElse, Fail the test.\n","The Occupation of the Participant is rendered in the Details of the clinical document.",null,null,"0",{"$f":"IF(AND(BGCol(C152)=48,G152=\"N/A\"),1,0)","v":{"$error":"#NAME?"}},"TD42"]
["CDAR-DF-107","Qualifications","M",1,"Pass the test if the value defined by the following XPATH is rendered in the clinical document:\n/ClinicalDocument/participant/associatedEntity/associatedPerson/ext:asQualifications/ext:code/originalText\n\nElse, Fail the test.\n","The Qualifications of the Participant are rendered in the Details of the clinical document.",null,null,"0",{"$f":"IF(AND(BGCol(C153)=48,G153=\"N/A\"),1,0)","v":{"$error":"#NAME?"}},"TD42"]
["CDAR-DF-108","Address","M",1,"Pass the test if the value defined by the following XPATH is rendered in the clinical document:\n/ClinicalDocument/participant/associatedEntity/addr\n\nElse, Fail the test.\n","The Address of the Participant is rendered in the Details of the clinical document.",null,null,"0",{"$f":"IF(AND(BGCol(C154)=48,G154=\"N/A\"),1,0)","v":{"$error":"#NAME?"}},"TD42"]
["CDAR-DF-109","Communication Details","M",1,"Pass the test if the value defined by the following XPATH is rendered in the clinical document:\n/ClinicalDocument/participant/associatedEntity/telecom\n\nElse, Fail the test.\n\nNOTE TO TESTER:\nCommunications Details must conform to Requirement CDA-RS 34 (test case CDAR-RS-34).\n","The Communication Details of the Participant are rendered in the Details of the clinical document.",null,null,"0",{"$f":"IF(AND(BGCol(C155)=48,G155=\"N/A\"),1,0)","v":{"$error":"#NAME?"}},"TD42"]
["CDAR-DF-110","Organisation Name","M",1,"Pass the test if the value defined by the following XPATH is rendered in the clinical document:\n/ClinicalDocument/participant/associatedEntity/associatedPerson/ext:asEmployment/ext:employerOrganization/asOrganizationPartOf/wholeOrganization/name\n\nElse, Fail the test.\n","The Organisation Name of the organisation that employs the Participant is rendered in the Details of the clinical document.",null,null,"0",{"$f":"IF(AND(BGCol(C156)=48,G156=\"N/A\"),1,0)","v":{"$error":"#NAME?"}},"TD42"]
["CDAR-DF-111","Organisation HPI-O","C",1,"Mark the test N/A if Healthcare Provider Identifiers for organisations (HPI-O) are omitted as per requirement CDA-RS 29 (a).\n\nPass the test if the value defined by the following XPATH is rendered in the clinical document:\n/ClinicalDocument/participant/associatedEntity/associatedPerson/ext:asEmployment/ext:employerOrganization/asOrganizationPartOf/wholeOrganization/ext:asEntityIdentifier[@classCode='IDENT']/ext:id[@assigningAuthorityName='HPI-O']\n\nElse, Fail the test.\n","The Organisation HPI-O of the organisation that employs the Participant is rendered in the Details of the clinical document.",null,null,"0",{"$f":"IF(AND(BGCol(C157)=48,G157=\"N/A\"),1,0)","v":{"$error":"#NAME?"}},"TD42"]
["     8h. Specialist Letter with Participant Type = Usual G.P."]
["CDAR-DF-112","HPI-I","C",1,"Mark the test N/A if Healthcare Provider Identifiers for providers (HPI-I) are omitted as per requirement CDA-RS 29 (a).\n\nPass the test if the value defined by the following XPATH is rendered in the clinical document:\n/ClinicalDocument/participant/associatedEntity/associatedPerson/ext:asEntityIdentifier[@classCode='IDENT']/ext:id[@assigningAuthorityName='HPI-I']\n\nElse, Fail the test.\n","The Healthcare Provider Identifier for providers (HPI-I) of the Participant is rendered in the Details of the clinical document.",null,null,{"$f":"IF(G159=\"\",\"0\",IF(G159=\"Pass\",1,IF(G159=\"Fail\",0,IF(G159=\"TBD\",0,IF(G159=\"N/A\",1)))))","v":"0"},{"$f":"IF(AND(BGCol(C159)=48,G159=\"N/A\"),1,0)","v":{"$error":"#NAME?"}},"TD42"]
["CDAR-DF-113","Other Identifiers","C",1,"Mark the test N/A if Healthcare Provider Identifiers for providers (local identifiers) are omitted as per requirement CDA-RS 29 (a).\n\nPass the test if the value defined by the following XPATH is rendered in the clinical document:\n/ClinicalDocument/participant/associatedEntity/associatedPerson/ext:asEntityIdentifier[@classCode='IDENT']/ext:id[@assigningAuthorityName!='HPI-I']\n\nElse, Fail the test.\n","The value used by the Participant's organisation to uniquely identify the Participant within that organisation is rendered in the Details of the clinical document.",null,null,"0",{"$f":"IF(AND(BGCol(C160)=48,G160=\"N/A\"),1,0)","v":{"$error":"#NAME?"}},"TD42"]
["CDAR-DF-114","Name","M",1,"Pass the test if the value defined by the following XPATH is rendered in the clinical document:\n/ClinicalDocument/participant/associatedEntity/associatedPerson/name\n\nElse, Fail the test.\n","The Name of the Participant is rendered in the Details of the clinical document.",null,null,"0",{"$f":"IF(AND(BGCol(C161)=48,G161=\"N/A\"),1,0)","v":{"$error":"#NAME?"}},"TD42"]
["CDAR-DF-115","Occupation","M",1,"Pass the test if the value defined by the following XPATH is rendered in the clinical document:\n/ClinicalDocument/participant/associatedEntity/associatedPerson/ext:asEmployment/ext:jobCode\n\nElse, Fail the test.\n","The Occupation of the Participant is rendered in the Details of the clinical document.",null,null,"0",{"$f":"IF(AND(BGCol(C162)=48,G162=\"N/A\"),1,0)","v":{"$error":"#NAME?"}},"TD42"]
["CDAR-DF-116","Qualifications","M",1,"Pass the test if the value defined by the following XPATH is rendered in the clinical document:\n/ClinicalDocument/participant/associatedEntity/associatedPerson/ext:asQualifications/ext:code/originalText\n\nElse, Fail the test.\n","The Qualifications of the Participant are rendered in the Details of the clinical document.",null,null,"0",{"$f":"IF(AND(BGCol(C163)=48,G163=\"N/A\"),1,0)","v":{"$error":"#NAME?"}},"TD42"]
["CDAR-DF-117","Address","M",1,"Pass the test if the value defined by the following XPATH is rendered in the clinical document:\n/ClinicalDocument/participant/associatedEntity/addr\n\nElse, Fail the test.\n","The Address of the Participant is rendered in the Details of the clinical document.",null,null,"0",{"$f":"IF(AND(BGCol(C164)=48,G164=\"N/A\"),1,0)","v":{"$error":"#NAME?"}},"TD42"]
["CDAR-DF-118","Communication Details","M",1,"Pass the test if the value defined by the following XPATH is rendered in the clinical document:\n/ClinicalDocument/participant/associatedEntity/telecom\n\nElse, Fail the test.\n\nNOTE TO TESTER:\nCommunications Details must conform to Requirement CDA-RS 34 (test case CDAR-RS-34).\n","The Communication Details of the Participant are rendered in the Details of the clinical document.",null,null,"0",{"$f":"IF(AND(BGCol(C165)=48,G165=\"N/A\"),1,0)","v":{"$error":"#NAME?"}},"TD42"]
["CDAR-DF-119","Organisation Name","M",1,"Pass the test if the value defined by the following XPATH is rendered in the clinical document:\n/ClinicalDocument/participant/associatedEntity/associatedPerson/ext:asEmployment/ext:employerOrganization/asOrganizationPartOf/wholeOrganization/name\n\nElse, Fail the test.\n","The Organisation Name of the organisation that employs the Participant is rendered in the Details of the clinical document.",null,null,"0",{"$f":"IF(AND(BGCol(C166)=48,G166=\"N/A\"),1,0)","v":{"$error":"#NAME?"}},"TD42"]
["CDAR-DF-120","Organisation HPI-O","C",1,"Mark the test N/A if Healthcare Provider Identifiers for organisations (HPI-O) are omitted as per requirement CDA-RS 29 (a).\n\nPass the test if the value defined by the following XPATH is rendered in the clinical document:\n/ClinicalDocument/participant/associatedEntity/associatedPerson/ext:asEmployment/ext:employerOrganization/asOrganizationPartOf/wholeOrganization/ext:asEntityIdentifier[@classCode='IDENT']/ext:id[@assigningAuthorityName='HPI-O']\n\nElse, Fail the test.\n","The Organisation HPI-O of the organisation that employs the Participant is rendered in the Details of the clinical document.",null,null,"0",{"$f":"IF(AND(BGCol(C167)=48,G167=\"N/A\"),1,0)","v":{"$error":"#NAME?"}},"TD42"]
["     8i. Pathology Report with Participant Type = Requester"]
["CDAR-DF-121","HPI-I","C",1,"Mark the test N/A if Healthcare Provider Identifiers for providers (HPI-I) are omitted as per requirement CDA-RS 29 (a).\n\nPass the test if the value defined by the following XPATH is rendered in the clinical document:\n/ClinicalDocument/participant/associatedEntity/associatedPerson/ext:asEntityIdentifier[@classCode='IDENT']/ext:id[@assigningAuthorityName='HPI-I']\n\nElse, Fail the test.\n","The Healthcare Provider Identifier for providers (HPI-I) of the Participant is rendered in the Details of the clinical document.",null,null,{"$f":"IF(G169=\"\",\"0\",IF(G169=\"Pass\",1,IF(G169=\"Fail\",0,IF(G169=\"TBD\",0,IF(G169=\"N/A\",1)))))","v":"0"},{"$f":"IF(AND(BGCol(C169)=48,G169=\"N/A\"),1,0)","v":{"$error":"#NAME?"}},"TD48"]
["CDAR-DF-122","Other Identifiers","C",1,"Mark the test N/A if Healthcare Provider Identifiers for providers (local identifiers) are omitted as per requirement CDA-RS 29 (a).\n\nPass the test if the value defined by the following XPATH is rendered in the clinical document:\n/ClinicalDocument/participant/associatedEntity/associatedPerson/ext:asEntityIdentifier[@classCode='IDENT']/ext:id[@assigningAuthorityName!='HPI-I']\n\nElse, Fail the test.\n","The value used by the Participant's organisation to uniquely identify the Participant within that organisation is rendered in the Details of the clinical document.",null,null,"0",{"$f":"IF(AND(BGCol(C170)=48,G170=\"N/A\"),1,0)","v":{"$error":"#NAME?"}},"TD48"]
["CDAR-DF-123","Name","M",1,"Pass the test if the value defined by the following XPATH is rendered in the clinical document:\n/ClinicalDocument/participant/associatedEntity/associatedPerson/name\n\nElse, Fail the test.\n","The Name of the Participant is rendered in the Details of the clinical document.",null,null,"0",{"$f":"IF(AND(BGCol(C171)=48,G171=\"N/A\"),1,0)","v":{"$error":"#NAME?"}},"TD48"]
["CDAR-DF-124","Occupation","M",1,"Pass the test if the value defined by the following XPATH is rendered in the clinical document:\n/ClinicalDocument/participant/associatedEntity/associatedPerson/ext:asEmployment/ext:jobCode\n\nElse, Fail the test.\n","The Occupation of the Participant is rendered in the Details of the clinical document.",null,null,"0",{"$f":"IF(AND(BGCol(C172)=48,G172=\"N/A\"),1,0)","v":{"$error":"#NAME?"}},"TD48"]
["CDAR-DF-125","Qualifications","M",1,"Pass the test if the value defined by the following XPATH is rendered in the clinical document:\n/ClinicalDocument/participant/associatedEntity/associatedPerson/ext:asQualifications/ext:code/originalText\n\nElse, Fail the test.\n","The Qualifications of the Participant are rendered in the Details of the clinical document.",null,null,"0",{"$f":"IF(AND(BGCol(C173)=48,G173=\"N/A\"),1,0)","v":{"$error":"#NAME?"}},"TD48"]
["CDAR-DF-126","Address","M",1,"Pass the test if the value defined by the following XPATH is rendered in the clinical document:\n/ClinicalDocument/participant/associatedEntity/addr\n\nElse, Fail the test.\n","The Address of the Participant is rendered in the Details of the clinical document.",null,null,"0",{"$f":"IF(AND(BGCol(C174)=48,G174=\"N/A\"),1,0)","v":{"$error":"#NAME?"}},"TD48"]
["CDAR-DF-127","Communication Details","M",1,"Pass the test if the value defined by the following XPATH is rendered in the clinical document:\n/ClinicalDocument/participant/associatedEntity/telecom\n\nElse, Fail the test.\n\nNOTE TO TESTER:\nCommunications Details must conform to Requirement CDA-RS 34 (test case CDAR-RS-34).\n","The Communication Details of the Participant are rendered in the Details of the clinical document.",null,null,"0",{"$f":"IF(AND(BGCol(C175)=48,G175=\"N/A\"),1,0)","v":{"$error":"#NAME?"}},"TD48"]
["CDAR-DF-128","Organisation Name","M",1,"Pass the test if the value defined by the following XPATH is rendered in the clinical document:\n/ClinicalDocument/participant/associatedEntity/associatedPerson/ext:asEmployment/ext:employerOrganization/asOrganizationPartOf/wholeOrganization/name\n\nElse, Fail the test.\n","The Organisation Name of the organisation that employs the Participant is rendered in the Details of the clinical document.",null,null,"0",{"$f":"IF(AND(BGCol(C176)=48,G176=\"N/A\"),1,0)","v":{"$error":"#NAME?"}},"TD48"]
["CDAR-DF-129","Organisation HPI-O","C",1,"Mark the test N/A if Healthcare Provider Identifiers for organisations (HPI-O) are omitted as per requirement CDA-RS 29 (a).\n\nPass the test if the value defined by the following XPATH is rendered in the clinical document:\n/ClinicalDocument/participant/associatedEntity/associatedPerson/ext:asEmployment/ext:employerOrganization/asOrganizationPartOf/wholeOrganization/ext:asEntityIdentifier[@classCode='IDENT']/ext:id[@assigningAuthorityName='HPI-O']\n\nElse, Fail the test.\n","The Organisation HPI-O of the organisation that employs the Participant is rendered in the Details of the clinical document.",null,null,"0",{"$f":"IF(AND(BGCol(C177)=48,G177=\"N/A\"),1,0)","v":{"$error":"#NAME?"}},"TD48"]
["     8j. Diagnostic Imaging Report with Participant Type = Requester"]
["CDAR-DF-130","HPI-I","C",1,"Mark the test N/A if Healthcare Provider Identifiers for providers (HPI-I) are omitted as per requirement CDA-RS 29 (a).\n\nPass the test if the value defined by the following XPATH is rendered in the clinical document:\n/ClinicalDocument/participant/associatedEntity/associatedPerson/ext:asEntityIdentifier[@classCode='IDENT']/ext:id[@assigningAuthorityName='HPI-I']\n\nElse, Fail the test.\n","The Healthcare Provider Identifier for providers (HPI-I) of the Participant is rendered in the Details of the clinical document.",null,null,{"$f":"IF(G179=\"\",\"0\",IF(G179=\"Pass\",1,IF(G179=\"Fail\",0,IF(G179=\"TBD\",0,IF(G179=\"N/A\",1)))))","v":"0"},{"$f":"IF(AND(BGCol(C179)=48,G179=\"N/A\"),1,0)","v":{"$error":"#NAME?"}},"TD50"]
["CDAR-DF-131","Other Identifiers","C",1,"Mark the test N/A if Healthcare Provider Identifiers for providers (local identifiers) are omitted as per requirement CDA-RS 29 (a).\n\nPass the test if the value defined by the following XPATH is rendered in the clinical document:\n/ClinicalDocument/participant/associatedEntity/associatedPerson/ext:asEntityIdentifier[@classCode='IDENT']/ext:id[@assigningAuthorityName!='HPI-I']\n\nElse, Fail the test.\n","The value used by the Participant's organisation to uniquely identify the Participant within that organisation is rendered in the Details of the clinical document.",null,null,"0",{"$f":"IF(AND(BGCol(C180)=48,G180=\"N/A\"),1,0)","v":{"$error":"#NAME?"}},"TD50"]
["CDAR-DF-132","Name","M",1,"Pass the test if the value defined by the following XPATH is rendered in the clinical document:\n/ClinicalDocument/participant/associatedEntity/associatedPerson/name\n\nElse, Fail the test.\n","The Name of the Participant is rendered in the Details of the clinical document.",null,null,"0",{"$f":"IF(AND(BGCol(C181)=48,G181=\"N/A\"),1,0)","v":{"$error":"#NAME?"}},"TD50"]
["CDAR-DF-133","Occupation","M",1,"Pass the test if the value defined by the following XPATH is rendered in the clinical document:\n/ClinicalDocument/participant/associatedEntity/associatedPerson/ext:asEmployment/ext:jobCode\n\nElse, Fail the test.\n","The Occupation of the Participant is rendered in the Details of the clinical document.",null,null,"0",{"$f":"IF(AND(BGCol(C182)=48,G182=\"N/A\"),1,0)","v":{"$error":"#NAME?"}},"TD50"]
["CDAR-DF-134","Qualifications","M",1,"Pass the test if the value defined by the following XPATH is rendered in the clinical document:\n/ClinicalDocument/participant/associatedEntity/associatedPerson/ext:asQualifications/ext:code/originalText\n\nElse, Fail the test.\n","The Qualifications of the Participant are rendered in the Details of the clinical document.",null,null,"0",{"$f":"IF(AND(BGCol(C183)=48,G183=\"N/A\"),1,0)","v":{"$error":"#NAME?"}},"TD50"]
["CDAR-DF-135","Address","M",1,"Pass the test if the value defined by the following XPATH is rendered in the clinical document:\n/ClinicalDocument/participant/associatedEntity/addr\n\nElse, Fail the test.\n","The Address of the Participant is rendered in the Details of the clinical document.",null,null,"0",{"$f":"IF(AND(BGCol(C184)=48,G184=\"N/A\"),1,0)","v":{"$error":"#NAME?"}},"TD50"]
["CDAR-DF-136","Communication Details","M",1,"Pass the test if the value defined by the following XPATH is rendered in the clinical document:\n/ClinicalDocument/participant/associatedEntity/telecom\n\nElse, Fail the test.\n\nNOTE TO TESTER:\nCommunications Details must conform to Requirement CDA-RS 34 (test case CDAR-RS-34).\n","The Communication Details of the Participant are rendered in the Details of the clinical document.",null,null,"0",{"$f":"IF(AND(BGCol(C185)=48,G185=\"N/A\"),1,0)","v":{"$error":"#NAME?"}},"TD50"]
["CDAR-DF-137","Organisation Name","M",1,"Pass the test if the value defined by the following XPATH is rendered in the clinical document:\n/ClinicalDocument/participant/associatedEntity/associatedPerson/ext:asEmployment/ext:employerOrganization/asOrganizationPartOf/wholeOrganization/name\n\nElse, Fail the test.\n","The Organisation Name of the organisation that employs the Participant is rendered in the Details of the clinical document.",null,null,"0",{"$f":"IF(AND(BGCol(C186)=48,G186=\"N/A\"),1,0)","v":{"$error":"#NAME?"}},"TD50"]
["CDAR-DF-138","Organisation HPI-O","C",1,"Mark the test N/A if Healthcare Provider Identifiers for organisations (HPI-O) are omitted as per requirement CDA-RS 29 (a).\n\nPass the test if the value defined by the following XPATH is rendered in the clinical document:\n/ClinicalDocument/participant/associatedEntity/associatedPerson/ext:asEmployment/ext:employerOrganization/asOrganizationPartOf/wholeOrganization/ext:asEntityIdentifier[@classCode='IDENT']/ext:id[@assigningAuthorityName='HPI-O']\n\nElse, Fail the test.\n","The Organisation HPI-O of the organisation that employs the Participant is rendered in the Details of the clinical document.",null,null,"0",{"$f":"IF(AND(BGCol(C187)=48,G187=\"N/A\"),1,0)","v":{"$error":"#NAME?"}},"TD50"]
["     8k. Event Summary with Participant Type (Usual GP)\n",null,null,null,"Note: Participant is not specified in the CDA Implementation Guide for Event Summary document type, however additional content data may be coded, and if so it needs to be rendered. "]
["CDAR-DF-139","HPI-I","C",1,"Mark the test N/A if Healthcare Provider Identifiers for providers (HPI-I) are omitted as per requirement CDA-RS 29 (a).\n\nPass the test if the value defined by the following XPATH is rendered in the clinical document:\n/ClinicalDocument/participant/associatedEntity/associatedPerson/ext:asEntityIdentifier[@classCode='IDENT']/ext:id[@assigningAuthorityName='HPI-I']\n\nElse, Fail the test.\n","The Healthcare Provider Identifier for providers (HPI-I) of the Participant is rendered in the Details of the clinical document.",null,null,{"$f":"IF(G189=\"\",\"0\",IF(G189=\"Pass\",1,IF(G189=\"Fail\",0,IF(G189=\"TBD\",0,IF(G189=\"N/A\",1)))))","v":"0"},{"$f":"IF(AND(BGCol(C189)=48,G189=\"N/A\"),1,0)","v":{"$error":"#NAME?"}},"TD19"]
["CDAR-DF-140","Other Identifiers","C",1,"Mark the test N/A if Healthcare Provider Identifiers for providers (local identifiers) are omitted as per requirement CDA-RS 29 (a).\n\nPass the test if the value defined by the following XPATH is rendered in the clinical document:\n/ClinicalDocument/participant/associatedEntity/associatedPerson/ext:asEntityIdentifier[@classCode='IDENT']/ext:id[@assigningAuthorityName!='HPI-I']\n\nElse, Fail the test.\n","The value used by the Participant's organisation to uniquely identify the Participant within that organisation is rendered in the Details of the clinical document.",null,null,"0",{"$f":"IF(AND(BGCol(C190)=48,G190=\"N/A\"),1,0)","v":{"$error":"#NAME?"}},"TD19"]
["CDAR-DF-141","Name","M",1,"Pass the test if the value defined by the following XPATH is rendered in the clinical document:\n/ClinicalDocument/participant/associatedEntity/associatedPerson/name\n\nElse, Fail the test.\n","The Name of the Participant is rendered in the Details of the clinical document.",null,null,"0",{"$f":"IF(AND(BGCol(C191)=48,G191=\"N/A\"),1,0)","v":{"$error":"#NAME?"}},"TD19"]
["CDAR-DF-142","Occupation","M",1,"Pass the test if the value defined by the following XPATH is rendered in the clinical document:\n/ClinicalDocument/participant/associatedEntity/associatedPerson/ext:asEmployment/ext:jobCode\n\nElse, Fail the test.\n","The Occupation of the Participant is rendered in the Details of the clinical document.",null,null,"0",{"$f":"IF(AND(BGCol(C192)=48,G192=\"N/A\"),1,0)","v":{"$error":"#NAME?"}},"TD19"]
["CDAR-DF-143","Qualifications","M",1,"Pass the test if the value defined by the following XPATH is rendered in the clinical document:\n/ClinicalDocument/participant/associatedEntity/associatedPerson/ext:asQualifications/ext:code/originalText\n\nElse, Fail the test.\n","The Qualifications of the Participant are rendered in the Details of the clinical document.",null,null,"0",{"$f":"IF(AND(BGCol(C193)=48,G193=\"N/A\"),1,0)","v":{"$error":"#NAME?"}},"TD19"]
["CDAR-DF-144","Address","M",1,"Pass the test if the value defined by the following XPATH is rendered in the clinical document:\n/ClinicalDocument/participant/associatedEntity/addr\n\nElse, Fail the test.\n","The Address of the Participant is rendered in the Details of the clinical document.",null,null,"0",{"$f":"IF(AND(BGCol(C194)=48,G194=\"N/A\"),1,0)","v":{"$error":"#NAME?"}},"TD19"]
["CDAR-DF-145","Communication Details","M",1,"Pass the test if the value defined by the following XPATH is rendered in the clinical document:\n/ClinicalDocument/participant/associatedEntity/telecom\n\nElse, Fail the test.\n\nNOTE TO TESTER:\nCommunications Details must conform to Requirement CDA-RS 34 (test case CDAR-RS-34).\n","The Communication Details of the Participant are rendered in the Details of the clinical document.",null,null,"0",{"$f":"IF(AND(BGCol(C195)=48,G195=\"N/A\"),1,0)","v":{"$error":"#NAME?"}},"TD19"]
["CDAR-DF-146","Organisation Name","M",1,"Pass the test if the value defined by the following XPATH is rendered in the clinical document:\n/ClinicalDocument/participant/associatedEntity/associatedPerson/ext:asEmployment/ext:employerOrganization/asOrganizationPartOf/wholeOrganization/name\n\nElse, Fail the test.\n","The Organisation Name of the organisation that employs the Participant is rendered in the Details of the clinical document.",null,null,"0",{"$f":"IF(AND(BGCol(C196)=48,G196=\"N/A\"),1,0)","v":{"$error":"#NAME?"}},"TD19"]
["CDAR-DF-147","Organisation HPI-O","C",1,"Mark the test N/A if Healthcare Provider Identifiers for organisations (HPI-O) are omitted as per requirement CDA-RS 29 (a).\n\nPass the test if the value defined by the following XPATH is rendered in the clinical document:\n/ClinicalDocument/participant/associatedEntity/associatedPerson/ext:asEmployment/ext:employerOrganization/asOrganizationPartOf/wholeOrganization/ext:asEntityIdentifier[@classCode='IDENT']/ext:id[@assigningAuthorityName='HPI-O']\n\nElse, Fail the test.\n","The Organisation HPI-O of the organisation that employs the Participant is rendered in the Details of the clinical document.",null,null,"0",{"$f":"IF(AND(BGCol(C197)=48,G197=\"N/A\"),1,0)","v":{"$error":"#NAME?"}},"TD19"]
["END: The Details table"]
[]
["START: Address table"]
["1. Australian Post Office Box Delivery Address",null,null,null,null,null,null,null,null,null,"This address is in the SUBJECT OF CARE section:\n/ClinicalDocument/recordTarget/patientRole/\n"]
["CDAR-DF-148","Australian Postal Delivery Type","M",1,"Pass the test if the value defined by the following XPATH is rendered in the clinical document:\nXPATH: addr/deliveryAddressLine\n\nElse, Fail the test.\n\n","The Delivery Type of the Australian Postal Address is rendered in the Details of the clinical document.",null,null,{"$f":"IF(G202=\"\",\"0\",IF(G202=\"Pass\",1,IF(G202=\"Fail\",0,IF(G202=\"TBD\",0,IF(G202=\"N/A\",1)))))","v":"0"},{"$f":"IF(AND(BGCol(C202)=48,G202=\"N/A\"),1,0)","v":{"$error":"#NAME?"}},"TD06\n(Subject of Care)"]
["CDAR-DF-149","Australian Postal Delivery Number","M",1,"Pass the test if the value defined by the following XPATH is rendered in the clinical document:\nXPATH: addr/deliveryAddressLine\n\nElse, Fail the test.\n","The Delivery Number of the Australian Postal Address is rendered in the Details of the clinical document.",null,null,"0",{"$f":"IF(AND(BGCol(C203)=48,G203=\"N/A\"),1,0)","v":{"$error":"#NAME?"}},"TD06\n(Subject of Care)"]
["CDAR-DF-150","Australian Suburb/Town/Locality","M",1,"the test if the value defined by the following XPATH is rendered in the clinical document:\nXPATH: addr/city\n\nElse, Fail the test.\n","The Locality of the Australian Postal Address is rendered in the Details of the clinical document.",null,null,"0",{"$f":"IF(AND(BGCol(C204)=48,G204=\"N/A\"),1,0)","v":{"$error":"#NAME?"}},"TD06\n(Subject of Care)"]
["CDAR-DF-151","Australian State/Territory","M",1,"Pass the test if the value defined by the following XPATH is rendered in the clinical document:\nXPATH: addr/state\n\nElse, Fail the test.\n","The State or Territory of the Australian Postal Address is rendered in the Details of the clinical document.",null,null,"0",{"$f":"IF(AND(BGCol(C205)=48,G205=\"N/A\"),1,0)","v":{"$error":"#NAME?"}},"TD06\n(Subject of Care)"]
["CDAR-DF-152","Australian Postcode","M",1,"Pass the test if the value defined by the following XPATH is rendered in the clinical document:\nXPATH: addr/postalCode\n\nElse, Fail the test.\n","The Postcode of the Australian Postal Address is rendered in the Details of the clinical document.",null,null,"0",{"$f":"IF(AND(BGCol(C206)=48,G206=\"N/A\"),1,0)","v":{"$error":"#NAME?"}},"TD06\n(Subject of Care)"]
["CDAR-DF-153","Australian Delivery Point Identifier","M",1,"Pass the test if the value defined by the following XPATH is rendered in the clinical document:\nXPATH: addr/additionalLocator\n\nElse, Fail the test.\n","The Delivery Point of the Australian Postal Address is rendered in the Details of the clinical document.",null,null,"0",{"$f":"IF(AND(BGCol(C207)=48,G207=\"N/A\"),1,0)","v":{"$error":"#NAME?"}},"TD06\n(Subject of Care)"]
["2. Australian Residential Apartment Address",null,null,null,null,null,null,null,null,null,"This address is in the SUBJECT OF CARE section:\n/ClinicalDocument/recordTarget/patientRole/\n"]
["CDAR-DF-154","Australian Unit Type","M",1,"Pass the test if the value defined by the following XPATH is rendered in the clinical document:\nXPATH: addr/unitType\n\nElse, Fail the test.\n","The Unit Type of the Australian Residential Apartment Address is rendered in the Details of the clinical document.",null,null,{"$f":"IF(G209=\"\",\"0\",IF(G209=\"Pass\",1,IF(G209=\"Fail\",0,IF(G209=\"TBD\",0,IF(G209=\"N/A\",1)))))","v":"0"},{"$f":"IF(AND(BGCol(C209)=48,G209=\"N/A\"),1,0)","v":{"$error":"#NAME?"}},"TD07\n(Subject of Care)"]
["CDAR-DF-155","Australian Level Type (additionalLocator)","M",1,"Pass the test if the value defined by the following XPATH is rendered in the clinical document:\nXPATH: addr/additionalLocator\n\nElse, Fail the test.\n","The Level Type of the Australian Residential Apartment Address is rendered in the Details of the clinical document.",null,null,"0",{"$f":"IF(AND(BGCol(C210)=48,G210=\"N/A\"),1,0)","v":{"$error":"#NAME?"}},"TD07\n(Subject of Care)"]
["CDAR-DF-156","Australian Level Number (additionalLocator)","M",1,"Pass the test if the value defined by the following XPATH is rendered in the clinical document:\nXPATH: addr/additionalLocator\n\nElse, Fail the test.\n\n","The Level Number of the Australian Residential Apartment Address is rendered in the Details of the clinical document.",null,null,"0",{"$f":"IF(AND(BGCol(C211)=48,G211=\"N/A\"),1,0)","v":{"$error":"#NAME?"}},"TD07\n(Subject of Care)"]
["CDAR-DF-157","Australian Unit Number","M",1,"Pass the test if the value defined by the following XPATH is rendered in the clinical document:\nXPATH: addr/unitId\n\nElse, Fail the test.\n","The Unit Number of the Australian Residential Apartment Address is rendered in the Details of the clinical document.",null,null,"0",{"$f":"IF(AND(BGCol(C212)=48,G212=\"N/A\"),1,0)","v":{"$error":"#NAME?"}},"TD07\n(Subject of Care)"]
["CDAR-DF-158","Australian Street Number","M",1,"Pass the test if the value defined by the following XPATH is rendered in the clinical document:\nXPATH: addr/houseNumber\n\nElse, Fail the test.\n","The Street Number of the Australian Residential Apartment Address is rendered in the Details of the clinical document.",null,null,"0",{"$f":"IF(AND(BGCol(C213)=48,G213=\"N/A\"),1,0)","v":{"$error":"#NAME?"}},"TD07\n(Subject of Care)"]
["CDAR-DF-159","Australian Street Name","M",1,"Pass the test if the value defined by the following XPATH is rendered in the clinical document:\nXPATH: addr/streetName\n\nElse, Fail the test.\n","The Street Name of the Australian Residential Apartment Address is rendered in the Details of the clinical document.",null,null,"0",{"$f":"IF(AND(BGCol(C214)=48,G214=\"N/A\"),1,0)","v":{"$error":"#NAME?"}},"TD07\n(Subject of Care)"]
["CDAR-DF-160","Australian Street Type","M",1,"Pass the test if the value defined by the following XPATH is rendered in the clinical document:\nXPATH: addr/streetNameType\n\nElse, Fail the test.\n","The Street Type of the Australian Residential Apartment Address is rendered in the Details of the clinical document.",null,null,"0",{"$f":"IF(AND(BGCol(C215)=48,G215=\"N/A\"),1,0)","v":{"$error":"#NAME?"}},"TD07\n(Subject of Care)"]
["CDAR-DF-161","Australian Suburb/Town/Locality","M",1,"Pass the test if the value defined by the following XPATH is rendered in the clinical document:\nXPATH: addr/city\n\nElse, Fail the test.\n","The Locality of the Australian Residential Apartment Address is rendered in the Details of the clinical document.",null,null,"0",{"$f":"IF(AND(BGCol(C216)=48,G216=\"N/A\"),1,0)","v":{"$error":"#NAME?"}},"TD07\n(Subject of Care)"]
["CDAR-DF-162","Australian State/Territory","M",1,"Pass the test if the value defined by the following XPATH is rendered in the clinical document:\nXPATH: addr/state\n\nElse, Fail the test.\n","The State or Territory of the Australian Residential Apartment Address is rendered in the Details of the clinical document.",null,null,"0",{"$f":"IF(AND(BGCol(C217)=48,G217=\"N/A\"),1,0)","v":{"$error":"#NAME?"}},"TD07\n(Subject of Care)"]
["CDAR-DF-163","Australian Postcode","M",1,"Pass the test if the value defined by the following XPATH is rendered in the clinical document:\nXPATH: addr/postalCode\n\nElse, Fail the test.\n","The Postcode of the Australian Residential Apartment Address is rendered in the Details of the clinical document.",null,null,{"$f":"IF(G218=\"\",\"0\",IF(G218=\"Pass\",1,IF(G218=\"Fail\",0,IF(G218=\"TBD\",0,IF(G218=\"N/A\",1)))))","v":"0"},{"$f":"IF(AND(BGCol(C218)=48,G218=\"N/A\"),1,0)","v":{"$error":"#NAME?"}},"TD07\n(Subject of Care)"]
["CDAR-DF-164","Australian Address Site Name","M",1,"Pass the test if the value defined by the following XPATH is rendered in the clinical document:\nXPATH: addr/additionalLocator\n\nElse, Fail the test.\n","The Site Name of the Australian Residential Apartment Address is rendered in the Details of the clinical document.",null,null,{"$f":"IF(G219=\"\",\"0\",IF(G219=\"Pass\",1,IF(G219=\"Fail\",0,IF(G219=\"TBD\",0,IF(G219=\"N/A\",1)))))","v":"0"},{"$f":"IF(AND(BGCol(C219)=48,G219=\"N/A\"),1,0)","v":{"$error":"#NAME?"}},"TD07\n(Subject of Care)"]
["3. Australian Street Address",null,null,null,null,null,null,null,null,null,"This address is in the INFORMATION RECIPIENT section:\n/ClinicalDocument/informationRecipient/intendedRecipient/"]
["CDAR-DF-165","Australian Street Number","M",1,"Pass the test if the value defined by the following XPATH is rendered in the clinical document:\nXPATH: addr/houseNumber\n\nElse, Fail the test.\n","The Street Number of the Australian Street Address is rendered in the Details of the clinical document.",null,null,{"$f":"IF(G221=\"\",\"0\",IF(G221=\"Pass\",1,IF(G221=\"Fail\",0,IF(G221=\"TBD\",0,IF(G221=\"N/A\",1)))))","v":"0"},{"$f":"IF(AND(BGCol(C221)=48,G221=\"N/A\"),1,0)","v":{"$error":"#NAME?"}},"TD07\n(Information Recipient)"]
["CDAR-DF-166","Australian Street Name","M",1,"Pass the test if the value defined by the following XPATH is rendered in the clinical document:\nXPATH: addr/streetName\n\nElse, Fail the test.\n","The Street Name of the Australian Street Address is rendered in the Details of the clinical document.",null,null,"0",{"$f":"IF(AND(BGCol(C222)=48,G222=\"N/A\"),1,0)","v":{"$error":"#NAME?"}},"TD07\n(Information Recipient)"]
["CDAR-DF-167","Australian Street Type","M",1,"Pass the test if the value defined by the following XPATH is rendered in the clinical document:\nXPATH: addr/streetNameType\n\nElse, Fail the test.\n","The Street Type of the Australian Street Address is rendered in the Details of the clinical document.",null,null,"0",{"$f":"IF(AND(BGCol(C223)=48,G223=\"N/A\"),1,0)","v":{"$error":"#NAME?"}},"TD07\n(Information Recipient)"]
["CDAR-DF-168","Australian Street Suffix","M",1,"Pass the test if the value defined by the following XPATH is rendered in the clinical document:\nXPATH: addr/direction\n\nElse, Fail the test\n","The Street Suffix of the Australian Street Address is rendered in the Details of the clinical document.",null,null,"0",{"$f":"IF(AND(BGCol(C224)=48,G224=\"N/A\"),1,0)","v":{"$error":"#NAME?"}},"TD07\n(Information Recipient)"]
["CDAR-DF-169","Australian Suburb/Town/Locality","M",1,"Pass the test if the value defined by the following XPATH is rendered in the clinical document:\nXPATH: addr/city\n\nElse, Fail the test.\n","The Locality of the Australian Street Address is rendered in the Details of the clinical document.",null,null,"0",{"$f":"IF(AND(BGCol(C225)=48,G225=\"N/A\"),1,0)","v":{"$error":"#NAME?"}},"TD07\n(Information Recipient)"]
["CDAR-DF-170","Australian State/Territory","M",1,"Pass the test if the value defined by the following XPATH is rendered in the clinical document:\nXPATH: addr/state\n\nElse, Fail the test.\n","The State or Territory of the Australian Street Address is rendered in the Details of the clinical document.",null,null,"0",{"$f":"IF(AND(BGCol(C226)=48,G226=\"N/A\"),1,0)","v":{"$error":"#NAME?"}},"TD07\n(Information Recipient)"]
["CDAR-DF-171","Australian Postcode","M",1,"Pass the test if the value defined by the following XPATH is rendered in the clinical document:\nXPATH: addr/postalCode\n\nElse, Fail the test.\n","The Postcode of the Australian Street Address is rendered in the Details of the clinical document.",null,null,"0",{"$f":"IF(AND(BGCol(C227)=48,G227=\"N/A\"),1,0)","v":{"$error":"#NAME?"}},"TD07\n(Information Recipient)"]
["4. International Address",null,null,null,null,null,null,null,null,null,"This address is in the SUBJECT OF CARE section:\n/ClinicalDocument/recordTarget/patientRole/"]
["CDAR-DF-172","International Address Line\n","M",1,"Pass the test if the value defined by the following XPATH is rendered in the clinical document:\nXPATH: addr/streetAddressLine\n\nElse, Fail the test.\n","The Address Line of the International Address is rendered in the Details of the clinical document.",null,null,{"$f":"IF(G229=\"\",\"0\",IF(G229=\"Pass\",1,IF(G229=\"Fail\",0,IF(G229=\"TBD\",0,IF(G229=\"N/A\",1)))))","v":"0"},{"$f":"IF(AND(BGCol(C229)=48,G229=\"N/A\"),1,0)","v":{"$error":"#NAME?"}},"TD07\n(Subject of Care)"]
["CDAR-DF-173","International State/Province","M",1,"Pass the test if the value defined by the following XPATH is rendered in the clinical document:\nXPATH: addr/state\n\nElse, Fail the test.\n","The State or Province of the International Address is rendered in the Details of the clinical document.",null,null,"0",{"$f":"IF(AND(BGCol(C230)=48,G230=\"N/A\"),1,0)","v":{"$error":"#NAME?"}},"TD07\n(Subject of Care)"]
["CDAR-DF-174","International Postcode","M",1,"Pass the test if the value defined by the following XPATH is rendered in the clinical document:\nXPATH: addr/postalCode\n\nElse, Fail the test.\n","The Postcode of the International Address is rendered in the Details of the clinical document.",null,null,"0",{"$f":"IF(AND(BGCol(C231)=48,G231=\"N/A\"),1,0)","v":{"$error":"#NAME?"}},"TD07\n(Subject of Care)"]
["CDAR-DF-175","Country","M",1,"Pass the test if the value defined by the following XPATH is rendered in the clinical document:\nXPATH: addr/country\n\nElse, Fail the test.\n","The Country of the International Address is rendered in the Details of the clinical document.",null,null,"0",{"$f":"IF(AND(BGCol(C232)=48,G232=\"N/A\"),1,0)","v":{"$error":"#NAME?"}},"TD07\n(Subject of Care)"]
["5. Australian LOT Number Address",null,null,null,null,null,null,null,null,null,"This address is in the INFORMATION RECIPIENT section:\n/ClinicalDocument/informationRecipient/intendedRecipient/"]
["CDAR-DF-176","Australian Lot Number","M",1,"Pass the test if the value defined by the following XPATH is rendered in the clinical document:\nXPATH: addr/additionalLocator\n\nElse, Fail the test.\n","The Lot Number of the Australian LOT Number Address is rendered in the Details of the clinical document.",null,null,{"$f":"IF(G234=\"\",\"0\",IF(G234=\"Pass\",1,IF(G234=\"Fail\",0,IF(G234=\"TBD\",0,IF(G234=\"N/A\",1)))))","v":"0"},{"$f":"IF(AND(BGCol(C234)=48,G234=\"N/A\"),1,0)","v":{"$error":"#NAME?"}},"TD07\n(Information Recipient)"]
["CDAR-DF-177","Australian Street Name","M",1,"Pass the test if the value defined by the following XPATH is rendered in the clinical document:\nXPATH: addr/streetName\n\nElse, Fail the test.\n","The Street Name of the Australian LOT Number Address is rendered in the Details of the clinical document.",null,null,"0",{"$f":"IF(AND(BGCol(C235)=48,G235=\"N/A\"),1,0)","v":{"$error":"#NAME?"}},"TD07\n(Information Recipient)"]
["CDAR-DF-178","Australian Street Type","M",1,"Pass the test if the value defined by the following XPATH is rendered in the clinical document:\nXPATH: addr/streetNameType\n\nElse, Fail the test.\n","The Street Type of the Australian LOT Number Address is rendered in the Details of the clinical document.",null,null,"0",{"$f":"IF(AND(BGCol(C236)=48,G236=\"N/A\"),1,0)","v":{"$error":"#NAME?"}},"TD07\n(Information Recipient)"]
["CDAR-DF-179","Australian Street Suffix","M",1,"Pass the test if the value defined by the following XPATH is rendered in the clinical document:\nXPATH: addr/direction\n\nElse, Fail the test.\n","The Street Suffix of the Australian LOT Number Address is rendered in the Details of the clinical document.",null,null,"0",{"$f":"IF(AND(BGCol(C237)=48,G237=\"N/A\"),1,0)","v":{"$error":"#NAME?"}},"TD07\n(Information Recipient)"]
["CDAR-DF-180","Australian Suburb/Town/Locality","M",1,"Pass the test if the value defined by the following XPATH is rendered in the clinical document:\nXPATH: addr/city\n\nElse, Fail the test.\n","The Locality of the Australian LOT Number Address is rendered in the Details of the clinical document.",null,null,"0",{"$f":"IF(AND(BGCol(C238)=48,G238=\"N/A\"),1,0)","v":{"$error":"#NAME?"}},"TD07\n(Information Recipient)"]
["CDAR-DF-181","Australian State/Territory","M",1,"Pass the test if the value defined by the following XPATH is rendered in the clinical document:\nXPATH: addr/state\n\nElse, Fail the test.\n","The State or Territory of the Australian LOT Number Address is rendered in the Details of the clinical document.",null,null,"0",{"$f":"IF(AND(BGCol(C239)=48,G239=\"N/A\"),1,0)","v":{"$error":"#NAME?"}},"TD07\n(Information Recipient)"]
["CDAR-DF-182","Australian Postcode","M",1,"Pass the test if the value defined by the following XPATH is rendered in the clinical document:\nXPATH: addr/postalCode\n\nElse, Fail the test.\n","The Postcode of the Australian LOT Number Address is rendered in the Details of the clinical document.",null,null,"0",{"$f":"IF(AND(BGCol(C240)=48,G240=\"N/A\"),1,0)","v":{"$error":"#NAME?"}},"TD07\n(Information Recipient)"]
["6. Unstructured Australian Address",null,null,null,null,null,null,null,null,null,"This address is in the SUBJECT OF CARE section:\n/ClinicalDocument/recordTarget/patientRole/"]
["CDAR-DF-183","Unstructured Australian Address Line","M",1,"Pass the test if the value defined by the following XPATH is rendered in the clinical document:\nXPATH: addr/streetAddressLine\n\nElse, Fail the test.\n","The Address Line of the Unstructured Australian Address is rendered in the Details of the clinical document.",null,null,{"$f":"IF(G242=\"\",\"0\",IF(G242=\"Pass\",1,IF(G242=\"Fail\",0,IF(G242=\"TBD\",0,IF(G242=\"N/A\",1)))))","v":"0"},{"$f":"IF(AND(BGCol(C242)=48,G242=\"N/A\"),1,0)","v":{"$error":"#NAME?"}},"TD07\n(Subject of Care)"]
["CDAR-DF-184","Australian Suburb/Town/Locality","M",1,"Pass the test if the value defined by the following XPATH is rendered in the clinical document:\nXPATH: addr/city\n\nElse, Fail the test.\n","The Locality of the Unstructured Australian Address is rendered in the Details of the clinical document.",null,null,{"$f":"IF(G243=\"\",\"0\",IF(G243=\"Pass\",1,IF(G243=\"Fail\",0,IF(G243=\"TBD\",0,IF(G243=\"N/A\",1)))))","v":"0"},{"$f":"IF(AND(BGCol(C243)=48,G243=\"N/A\"),1,0)","v":{"$error":"#NAME?"}},"TD07\n(Subject of Care)"]
["CDAR-DF-185","Australian State/Territory","M",1,"Pass the test if the value defined by the following XPATH is rendered in the clinical document:\nXPATH: addr/state\n\nElse, Fail the test.\n","The State or Territory of the Unstructured Australian Address is rendered in the Details of the clinical document.",null,null,{"$f":"IF(G244=\"\",\"0\",IF(G244=\"Pass\",1,IF(G244=\"Fail\",0,IF(G244=\"TBD\",0,IF(G244=\"N/A\",1)))))","v":"0"},{"$f":"IF(AND(BGCol(C244)=48,G244=\"N/A\"),1,0)","v":{"$error":"#NAME?"}},"TD07\n(Subject of Care)"]
["CDAR-DF-186","Australian Postcode","M",1,"Pass the test if the value defined by the following XPATH is rendered in the clinical document:\nXPATH: addr/postalCode\n\nElse, Fail the test.\n","The Postcode of the Unstructured Australian Address is rendered in the Details of the clinical document.",null,null,{"$f":"IF(G245=\"\",\"0\",IF(G245=\"Pass\",1,IF(G245=\"Fail\",0,IF(G245=\"TBD\",0,IF(G245=\"N/A\",1)))))","v":"0"},{"$f":"IF(AND(BGCol(C245)=48,G245=\"N/A\"),1,0)","v":{"$error":"#NAME?"}},"TD07\n(Subject of Care)"]
["7. Unknown Address",null,null,null,null,null,null,null,null,null,"This address is in the SUBJECT OF CARE section:\n/ClinicalDocument/recordTarget/patientRole/"]
["CDAR-DF-187","Address unknown","M",1,"Pass the test if the value defined by the following XPATH is rendered in the clinical document as text that is semantically equivalent to the value of the 'nullFlavor':\nXPATH: addr/@nullFlavor, where @nullFlavor=\"UNK\"\n\nElse, Fail the test.\n\nNOTE TO TESTER:\nThis will only be provided for SUBJECT OF CARE.\nThe rendered information should be compatible with the value of the 'nullFlavor', e.g. \"Unknown\", \"Address unknown\", etc.\n","An address of \"Unknown\", \"Address unknown\", or text that is semantically equivalent to the related value of the 'nullFlavor', is rendered in the Details of the clinical document.",null,null,{"$f":"IF(G247=\"\",\"0\",IF(G247=\"Pass\",1,IF(G247=\"Fail\",0,IF(G247=\"TBD\",0,IF(G247=\"N/A\",1)))))","v":"0"},{"$f":"IF(AND(BGCol(C247)=48,G247=\"N/A\"),1,0)","v":{"$error":"#NAME?"}},"TD01\n(Subject of Care)"]
["8. No Fixed Address",null,null,null,null,null,null,null,null,null,"This address is in the AUTHOR section:\n/ClinicalDocument/author/assignedAuthor/"]
["CDAR-DF-188","No Fixed Address Indicator","M",1,"Pass the test if the value defined by the following XPATH is rendered in the clinical document as text that is semantically equivalent to the value of the 'nullFlavor':\nXPATH: addr/@nullFlavor, where @nullFlavor=\"NA\".\n\nElse, Fail the test.\n\nNOTE TO TESTER:\nThe rendered information should be compatible with the value of the 'nullFlavor', e.g. \"No fixed address\", etc.\n\n","An address of \"No fixed address\", or text that is semantically equivalent to the related value of the 'nullFlavor', is rendered in the Details of the clinical document.",null,null,{"$f":"IF(G249=\"\",\"0\",IF(G249=\"Pass\",1,IF(G249=\"Fail\",0,IF(G249=\"TBD\",0,IF(G249=\"N/A\",1)))))","v":"0"},{"$f":"IF(AND(BGCol(C249)=48,G249=\"N/A\"),1,0)","v":{"$error":"#NAME?"}},"TD01\n(Author)"]
["9. Masked Address",null,null,null,null,null,null,null,null,null,"This address is in the SUBJECT OF CARE section:\n/ClinicalDocument/recordTarget/patientRole/"]
["CDAR-DF-189","Address masked","M",1,"Pass the test if the value defined by the following XPATH is rendered in the clinical document as text that is semantically equivalent to the value of the 'nullFlavor':\nXPATH: addr/@nullFlavor, where @nullFlavor=\"MSK\"\n\nElse, Fail the test.\n\nNOTE TO TESTER:\nThis will only be provided for SUBJECT OF CARE.\nThe rendered information should be compatible with the value of the 'nullFlavor', e.g. \"Masked\", \"Not disclosed for privacy reasons\", etc.\n","An address of \"Masked\" or \"Not disclosed for privacy reasons\", or text that is semantically equivalent to the related value of the 'nullFlavor', is rendered in the Details of the clinical document.",null,null,{"$f":"IF(G251=\"\",\"0\",IF(G251=\"Pass\",1,IF(G251=\"Fail\",0,IF(G251=\"TBD\",0,IF(G251=\"N/A\",1)))))","v":"0"},{"$f":"IF(AND(BGCol(C251)=48,G251=\"N/A\"),1,0)","v":{"$error":"#NAME?"}},"TD01\n(Subject of Care)"]
["END: Address table"]
[]
["START: Communications table",null,null,null,null,null,null,null,null,null,"This Details Field is in the SUBJECT OF CARE section:\n/ClinicalDocument/recordTarget/patientRole/telecom"]
["CDAR-DF-190","Communications not provided","M",1,"Pass the test if the value defined by the following XPATH is rendered in the clinical document as text that is semantically equivalent to the value of the 'nullFlavor':\n/ClinicalDocument/recordTarget/patientRole/telecom/@nullFlavor, where @nullFlavor=NASK\".\n\nElse, Fail the test.\n\nNOTE TO TESTER:\nWhere the 'nullFlavor' of \"NASK\" is used  the related value rendered should be semantically equivalent to \"Not asked\".","The value of the Communication Details is rendered in the Details of the clinical document as \"Not asked\", or text that is semantically equivalent.",null,null,{"$f":"IF(G255=\"\",\"0\",IF(G255=\"Pass\",1,IF(G255=\"Fail\",0,IF(G255=\"TBD\",0,IF(G255=\"N/A\",1)))))","v":"0"},{"$f":"IF(AND(BGCol(C255)=48,G255=\"N/A\"),1,0)","v":{"$error":"#NAME?"}},"TD02\n(Subject of Care)"]
["CDAR-DF-191","Communications unknown","M",1,"Pass the test if the value defined by the following XPATH is rendered in the clinical document as text that is semantically equivalent to the value of the 'nullFlavor':\n/ClinicalDocument/recordTarget/patientRole/telecom/@nullFlavor, where @nullFlavor=\"UNK\".\n\nElse, Fail the test.\n\nNOTE TO TESTER:\nWhere the 'nullFlavor' of \"UNK\" is used the related rendered value should be semantically equivalent to \"Unknown\".\n","The value of the Communication Details is rendered in the Details of the clinical document as \"Unknown\", or text that is semantically equivalent.",null,null,"0",{"$f":"IF(AND(BGCol(C256)=48,G256=\"N/A\"),1,0)","v":{"$error":"#NAME?"}},"TD08\n(Subject of Care)"]
["CDAR-DF-192","Communications masked","M",1,"Pass the test if the value defined by the following XPATH is rendered in the clinical document as text that is semantically equivalent to the value of the 'nullFlavor':\n/ClinicalDocument/recordTarget/patientRole/telecom/@nullFlavor, where @nullFlavor=\"MSK\".\n\nElse, Fail the test.\n\nNOTE TO TESTER:\nWhere the 'nullFlavor' of \"MSK\" is used the related rendered value should be semantically equivalent to \"Masked\" or \"Not disclosed for privacy reasons\", etc.\n","The value of the Communication Details is rendered in the Details of the clinical document as \"Masked\" or \"Not disclosed for privacy reasons\", or text that is semantically equivalent.",null,null,"0",{"$f":"IF(AND(BGCol(C257)=48,G257=\"N/A\"),1,0)","v":{"$error":"#NAME?"}},"TD06\n(Subject of Care)\n"]
["END: Communications table"]
[]
[]
[null,null,null,null,null,null,"TBD","Total Steps",{"$f":"SUM(I262:I263)","v":200}]
[null,null,null,null,null,null,"Fail","Tests Not Started, Failed or TBD",{"$f":"COUNTIF(I1:I259,\"0\")","v":200}]
[null,null,null,null,null,null,"N/A","Tests Passed or N/A",{"$f":"COUNTIF(I2:I260,\"1\")","v":0}]
[null,null,null,null,null,null,"Pass","%Passed or N/A",{"$f":"SUM(I263/I261)","v":0}]

{"sheet":"1. TD","index":5,"n_rows":49,"n_cols":3,"rows_kept":49,"cut":false,"hidden":false,"merged":[[0,0,0,1],[1,0,1,1]]}
["Test Set:",null,"CDAR & CDAR Details Fields - REQUIRED TEST DATA"]
["Test Data Information:",null,"NEHTA test data to apply the CDA Rendering test cases can be obtained from the My Health Record SVT environment.\n\nTO ACCESS NEHTA My Health Record TEST DATA, USE:\n● Patient 1 - Ludwig HOBBS  IHI: 8003608333345684  Medicare Card: 2950345681  IRN: 1  Sex: Male  DOB: 26/04/1995  Address: 76 Hung CCT, Deakin, ACT, 2600\n"]
["TEST DATA ID","DOCUMENT TYPE","DOCUMENT ID"]
["TD01","Shared Health Summary","2.25.171179578679234381181246097927212189722"]
["TD02","Shared Health Summary","2.25.224662478405662530836112853894710866313"]
["TD03","Shared Health Summary","2.25.214104401435317543113775629578199430127"]
["TD04","Shared Health Summary","2.25.45769010896071076293527467332160804287"]
["TD05","Shared Health Summary","2.25.128111299098765120150880378408742089876"]
["TD06","Shared Health Summary","2.25.67603340561116508089228965631404699545"]
["TD07","Discharge Summary","2.25.303229844140258684743232284372699078600"]
["TD08","eReferral","2.25.79283706197744144593588469767626629490"]
["TD09","Discharge Summary","2.25.125537207378785532663443629533293504793"]
["TD10","eReferral","2.25.325510126254645824265606681363592969807"]
["TD11","Shared Health Summary","2.25.185107501485515644726493559501360045959"]
["TD13","Event Summary","2.25.216582727013436106230342212586637779738"]
["TD15","Event Summary","2.25.238947023213383703044869869681102442732"]
["TD16","Event Summary","2.25.241831832791724797679126838491824477056"]
["TD19","Event Summary","2.25.74267441309942548329891340247889151647"]
["TD23","Shared Health Summary","2.25.223556020616575578076258930326998882488"]
["TD24","Shared Health Summary","2.25.258205599981895428980124608223596552404"]
["TD25","Shared Health Summary (3A)","2.25.70259737678673637424705785898381329668"]
["TD26","Shared Health Summary (3B)","2.25.220133040255969620229446514908725655640"]
["TD27","Event Summary (3A)","2.25.299096042107531786311208148757919687907"]
["TD28","Event Summary (3B)","2.25.109263077253551224919805324986807903412"]
["TD29","Discharge Summary (1A)","2.25.289805994727702316508730743362669587884"]
["TD30","Discharge Summary (1B)","2.25.13929299710584828252912497121917738731"]
["TD31","Discharge Summary (2)","2.25.75456777684846900225938590294973896228"]
["TD32","Discharge Summary (3A)","2.25.145471555501085037609099349488345384322"]
["TD33","Discharge Summary (3B)","2.25.2901024286160278674212653534727152893"]
["TD34","eReferral (1A)","2.25.85467078514114919015355674561923266017"]
["TD35","eReferral (1B)","2.25.161522210743568605456662838031652850727"]
["TD36","eReferral (2)","2.25.316803034469623678607068128738790052803"]
["TD37","eReferral (3A)","2.25.256980466503790541926200062509906132862"]
["TD38","eReferral (3B)","2.25.248699760377257764518518290417907204466"]
["TD39","Specialist Letter (1A)","2.25.16220701065703647680859261039665331185"]
["TD40","Specialist Letter (1B)","2.25.298468271598632484219866495043032593628"]
["TD41","Specialist Letter (2)","2.25.314649595536528755970089126294238596745"]
["TD42","Specialist Letter (3A)","2.25.233708874638958273170916308290381617504"]
["TD43","Specialist Letter (3B)","2.25.40866648314842116211296182077543043461"]
["TD44","Pathology Report (3A)","2.25.96217440940998965264057154701525979465"]
["TD46","Diagnostic Imaging Report (3A)","2.25.205217579409206797302410192442260359525"]
["TD48","Pathology Report ","2.25.54608793302667647866013959867077829436"]
["TD50","Diagnostic Imaging Report","2.25.114389814939583660486968034808322157619"]
["TD63","Shared Health Summary","2.25.68387589757998382255502816395718459752              "]
["TD64","Shared Health Summary","2.25.138701509390189271432159260080150038667           "]
["TD65","eReferral","2.25.13624633561226969082585403534084264196                    "]
["TD66","eReferral","2.25.327586410956441675745856912122192150984                         "]
["TD67","Discharge Summary","2.25.171352680627168177993214797685668359462                                                              "]
["TD68","Discharge Summary","2.25.271521231805143559519305067124105136385                           "]

{"sheet":"2. CDAR P2P","index":6,"n_rows":25,"n_cols":11,"rows_kept":25,"cut":false,"hidden":false,"merged":[[13,0,16,0],[13,1,16,1],[17,0,18,0],[17,1,18,1],[0,3,0,5],[1,3,3,5],[9,1,9,4],[10,0,12,0],[10,1,12,1]]}
["Test Set:","CDA Rendering Systems - P2P Context Requirements",null,"TEST DATA INFORMATION",null,null,"Software name: version:\n"]
["Derivation:","1. NEHTA-1199:2012 Clinical Documents - CDA Rendering Specification v1.0",null,"NEHTA test data to apply the P2P CDA Rendering test cases can be obtained by contacting help@nehta.gov.au.\n\n\n",null,null,"Software supplier:"]
["Test Set Objective:","To verify the correct rendering of CDA documents specific to the P2P context (i.e. received directly from another healthcare software system and not able to be uploaded to the My Health Record system).\n",null,null,null,null,"Tester:"]
["Prerequisites:","Access to NEHTA's test data that supports the CDA rendering test cases for the P2P context. \nThis can be obtained by contacting help@nehta.gov.au",null,null,null,null,"Date:"]
[]
["THIS HEADER CAN BE COLLAPSED BY CLICKING THE '-' SYMBOL ON THE LEFT."]
["TEST CASE ID","CONFORMANCE REQUIREMENT","PRIORITY\n(Mandatory, Optional, Conditional)\n","STEP NO.","TEST STEP","EXPECTED RESULT","TEST RESULT","TESTER COMMENTS","CALC.","MANDATORY AND N/A","NEHTA TEST DATA"]
["Clinical Documentation - CDA Rendering Specification"]
["START: Rendering systems - Requirements resolved in P2P Context."]
[null,"The following group of tests apply to Section 4.2.2 of the CDA Rendering Specification [NEHTA-1199:2012].\nThese address general conformance requirements for behaviour and responsibilities of the rendering system, independent of the contents of the clinical document."]
["CDAR-RS-060-P2P","CDA-RS 60\nRendering Systems SHALL ensure they are able to present HTML, PDF, RTF and Plain Text document attachments. Such attachments are not displayed in-line as part of the narrative, but become visible when the user chooses the appropriate interface option to prompt their display (e.g. an HTML link in a web browser to be selected).","M",1,"Where the clinical document includes an attachment which is a HTML document:\n\nPass the step if:\na) the value of the <caption> element which is contained within a <renderMultiMedia> element where the object of the 'referencedObject' attribute is a HTML document, is displayed in the clinical document as a selectable link at the point where the object is referenced, and\nb) the referenced object becomes visible when the link is selected.\nElse, Fail the test.\n","The value of the <caption> element which is contained within a <renderMultiMedia> element, is displayed as a selectable link at  the point where the related image is referenced, and referenced document is displayed when the attachment link is selected.",null,null,{"$f":"IF(G11=\"Pass\",1,IF(G11=\"N/A\",1,0))","v":0},{"$f":"IF(AND(BGCol(C11)=48,G11=\"N/A\"),1,0)","v":{"$error":"#NAME?"}},"P2PTD01"]
[null,null,null,2,"Where the clinical document includes an attachment which is a RTF document:\n\nPass the step if:\na) the value of the <caption> element which is contained within a <renderMultiMedia> element where the object of the 'referencedObject' attribute is a RTF document, is displayed in the clinical document as a selectable link at the point where the object is referenced, and\nb) the referenced object becomes visible when the link is selected.\nElse, Fail the test.\n","The value of the <caption> element which is contained within a <renderMultiMedia> element, is displayed as a selectable link at  the point where the related image is referenced, and referenced document is displayed when the attachment link is selected.",null,null,0,{"$f":"IF(AND(BGCol(C12)=48,G12=\"N/A\"),1,0)","v":{"$error":"#NAME?"}},"P2PTD03"]
[null,null,null,3,"Where the clinical document includes an attachment which is a Plain Text document:\n\nPass the step if:\na) the value of the <caption> element which is contained within a <renderMultiMedia> element where the object of the 'referencedObject' attribute is a Plain Text document, is displayed in the clinical document as a selectable link at the point where the object is referenced, and\nb) the referenced object becomes visible when the link is selected.\nElse, Fail the test.\n","The value of the <caption> element which is contained within a <renderMultiMedia> element, is displayed as a selectable link at  the point where the related image is referenced, and referenced document is displayed when the attachment link is selected.",null,null,0,{"$f":"IF(AND(BGCol(C13)=48,G13=\"N/A\"),1,0)","v":{"$error":"#NAME?"}},"P2PTD05"]
["CDAR-RS-061-P2P","CDA-RS 61\nLarge images:\n\na. Rendering Systems SHALL clearly mark all images that are too large (to process or display) as unavailable on the system.\nb. Rendering Systems SHALL allow these images to be exported for display through some other mechanism.\nc. Rendering Systems SHALL document this mechanism.","M",null,"NOTE: If the rendering system is able to display large images (more than 10MB) then the mark the following steps N/A.\nElse, execute the following steps.\n",null,null,null,null,null,"N/A"]
[null,null,null,1,"Pass the step if the rendering system clearly indicates that the image is too large to be processed or displayed on the rendering system.\nElse, Fail the step.\n","The rendering system clearly marks the image as unavailable on the rendering system.",null,null,{"$f":"IF(G15=\"Pass\",1,IF(G15=\"N/A\",1,0))","v":0},{"$f":"IF(AND(BGCol(C15)=48,G15=\"N/A\"),1,0)","v":{"$error":"#NAME?"}},"P2PTD06"]
[null,null,null,2,"Pass the step if the rendering system allows the image to be exported to another system of mechanism for display.\nElse, Fail the step.\n","The image is able to be exported to another system of mechanism for display.",null,null,0,{"$f":"IF(AND(BGCol(C16)=48,G16=\"N/A\"),1,0)","v":{"$error":"#NAME?"}},"N/A"]
[null,null,null,3,"Pass the step where the process or mechanism by which a large image is exported for display is documented.\nElse, Fail the step.\n","Documentation exists for the process or mechanism by which a large image is exported for display.",null,null,0,{"$f":"IF(AND(BGCol(C17)=48,G17=\"N/A\"),1,0)","v":{"$error":"#NAME?"}},"N/A"]
["CDAR-RS-062-P2P","CDA-RS 62\nRendering Systems MAY support additional attachment types not required in this specification.","O",null,"If conformance to this requirement is not being asserted then mark the associated Test Results for each step as 'N/A'.\n\nIt is not possible to test all file types that may be used as an attachment in this Conformance Test Specification where the clinical document is provided in a P2P context. However, this test will assess the rendering where the attachment is a CDA package. \n\nA rendering system may display this attachment type as in-line with the primary CDA document, or as a selectable link at the point where the object is referenced, with the object becoming visible when the link is selected.\n",null,null,null,null,null,"N/A"]
[null,null,null,1,"Pass the step if:\na) the value of the <caption> element which is contained within a <renderMultiMedia> element where the object of the 'referencedObject' attribute is a CDA package document, is displayed in the clinical document as a selectable link at the point where the object is referenced, and\nb) the referenced object becomes visible when the link is selected, or\nc) the attachment is displayed in-line within the rendered document.\nElse, Fail the test.\n","The value of the <caption> element which is contained within a <renderMultiMedia> element, is displayed as a selectable link at the point where the related document is referenced, and the referenced document is displayed when the attachment link is selected, or the attachment is displayed in-line within the rendered document.",null,null,{"$f":"IF(G19=\"Pass\",1,IF(G19=\"N/A\",1,0))","v":0},{"$f":"IF(AND(BGCol(C19)=48,G19=\"N/A\"),1,0)","v":{"$error":"#NAME?"}},"P2PCDAPackage"]
["END: Rendering systems - Requirements resolved in P2P Context."]
[]
[null,null,null,null,null,null,"TBD","Total Steps",{"$f":"SUM(I23:I24)","v":7}]
[null,null,null,null,null,null,"Fail","Tests Not Started, Failed or TBD",{"$f":"COUNTIF(I1:I19,\"0\")","v":7}]
[null,null,null,null,null,null,"N/A","Tests Passed or N/A",{"$f":"COUNTIF(I1:I19,\"1\")","v":0}]
[null,null,null,null,null,null,"Pass","%Passed or N/A",{"$f":"SUM(I24/I22)","v":0}]

{"sheet":"2. TD","index":7,"n_rows":8,"n_cols":3,"rows_kept":8,"cut":false,"hidden":false,"merged":[[0,0,0,1],[1,0,1,1]]}
["Test Set:",null,"CDAR within P2P context - REQUIRED TEST DATA"]
["Test Data Information:",null,"Provider-to-Provider (P2P) Document Delivery does not restrict the types and size of documents that are allowed to be exchanged, and as such may be outside the scope of the My Health Record repository. Test data for P2P context specific test cases cannot be accessed from the My Health Record SVT environment.\n\nNEHTA test data to apply the CDA Rendering for P2P specific test cases can be obtained by contacting help@nehta.gov.au."]
["TEST DATA ID","DOCUMENT TYPE","DOCUMENT ID"]
["P2PTD01","Shared Health Summary","N/A"]
["P2PTD03","Shared Health Summary","N/A"]
["P2PTD05","Shared Health Summary","N/A"]
["P2PTD06","Shared Health Summary","N/A"]
["P2PCDAPackage","eReferral","N/A"]

{"sheet":"3. PR","index":8,"n_rows":22,"n_cols":11,"rows_kept":22,"cut":false,"hidden":false,"merged":[[0,3,0,5],[1,3,3,5],[9,0,10,0],[9,1,10,1],[11,0,12,0],[11,1,12,1]]}
["Test Set:","CDA Rendering Systems - Pathology Report",null,"TEST DATA INFORMATION",null,null,"Software name: version:\n"]
["Derivation:","1. NEHTA-1979:2015 eHealth Pathology Report - PCEHR Conformance Profile v1.0.1",null,"TO ACCESS NEHTA My Health Record TEST DATA, USE:\n● Patient A -  Ludwig HOBBS  IHI: 8003608333345684  Medicare Card: 2950345681  IRN: 1  Sex: Male  DOB: 26/04/1995  Address: 76 Hung CCT, Deakin, ACT, 2600\n\n   Refer to the '3. TD' worksheet for details of the documents in this record.\n\nIF NEHTA TEST DATA CANNOT BE USED TO TEST, PLEASE CREATE YOUR OWN.",null,null,"Software supplier:"]
["Test Set Objective:","To verify the correct rendering of requirements specific to Pathology Reports.",null,null,null,null,"Tester:"]
["Prerequisites:","1. Access to the My Health Record SVT (System Vendor Test) environment.\n2. Access to NEHTA's test data in the SVT that supports the CDA rendering test cases in the My Health Record context. \nIf unable to access the My Health Record SVT environment, contact help@nehta.gov.au",null,null,null,null,"Date:"]
[]
["THIS HEADER CAN BE COLLAPSED BY CLICKING THE '-' SYMBOL ON THE LEFT."]
["TEST CASE ID","CONFORMANCE REQUIREMENT","PRIORITY\n(Mandatory, Optional, Conditional)","STEP NO.","TEST STEP","EXPECTED RESULT","TEST RESULT","TESTER COMMENTS","CALC.","MANDATORY AND N/A","NEHTA TEST DATA"]
["eHealth Pathology Report - PCEHR Conformance Profile [NEHTA-1979:2015]"]
["START:   Conformance requirements for consumers of eHealth Pathology Reports"]
["PR-024858","024858\nDisplay the requester’s order identifier (if available)\n\nThe software SHALL display the requester's order identifier (if available) when the CDA document is rendered.\n\nNOTE: If the Requester's order identifier is known, it is recorded in the extension attribute of the inFulfillmentOf/Order/id data element.  \n","M",1,"PREREQUISITE: The requester's order identifier has been provided in the Pathology Report as a HPI-O Based Local Order Identifier.\n\nPass the Step if the requester's order identifier is displayed in the rendered document.\nElse, Fail the Step\n\nNOTE TO TESTER:\nThe use of a HPI-O Based Local Order Identifiers is documented in the Pathology Report CDA Implementation Guide.","The value of requester's order identifier is displayed in the rendered document.",null,null,{"$f":"IF(G10=\"Pass\",1,IF(G10=\"N/A\",1,0))","v":0},{"$f":"IF(AND(BGCol(C10)=48,G10=\"N/A\"),1,0)","v":{"$error":"#NAME?"}},"TD21"]
[null,null,null,2,"PREREQUISITE: The requester's order identifier has been provided in the Pathology Report as a non-HPI-O Based Local Order Identifier.\n\nPass the Step if the requester's order identifier is displayed in the rendered document.\nElse, Fail the Step.\n\nNOTE TO TESTER:\nThe use of a non-HPI-O Based Local Order Identifier is documented in the related Pathology Report CDA Implementation Guide.","The value of requester's order identifier is displayed in the rendered document.",null,null,{"$f":"IF(G11=\"Pass\",1,IF(G11=\"N/A\",1,0))","v":0},{"$f":"IF(AND(BGCol(C11)=48,G11=\"N/A\"),1,0)","v":{"$error":"#NAME?"}},"TD48"]
["PR-024874","024874\nDisplay the request date and time (if available)\n\nThe software SHALL display the request date and time (if available) when the CDA document is rendered.\n\nNote: The date and time (if available) of the request is recorded in the ClinicalDocument/participant/time data element.","M",1,"PREREQUISITE: The Pathology Report contains a request where both the date and time of the request have been provided.\n\nPass the Step if both the date and time of the request are displayed in the rendered document.\nElse, Fail the Step.\n","Both the date and time of the request are displayed in the rendered document.",null,null,0,{"$f":"IF(AND(BGCol(C12)=48,G12=\"N/A\"),1,0)","v":{"$error":"#NAME?"}},"TD21"]
[null,null,null,2,"PREREQUISITE: The Pathology Report contains a request where only the date of the request have been provided.\n\nPass the Step if only the date of the request is displayed in the rendered document.\nElse, Fail the Step.\n","Only the date of the request is displayed in the rendered document.",null,null,0,{"$f":"IF(AND(BGCol(C13)=48,G13=\"N/A\"),1,0)","v":{"$error":"#NAME?"}},"TD22"]
["PR-024886","024886\nDisplay the diagnostic report PDF document in-line\n\nThe software SHOULD display the diagnostic report PDF attachment in-line with the CDA document.\n\nNOTE:  This requirement has the effect of overriding CDA Rendering Specification [NEHTA-1199:2012] requirement CDA-RS 60, which applies to clinical document rendering systems and disallows in-line rendering of attachments.\n","O",1,"Mark the Test N/A if the rendering system does not support the in-line display of attached PDF documents.\n\nPass the Test if the attached PDF document is rendered in-line with the clinical document, such that it is displayed as a single document.\nElse, Fail the Test.","The attached PDF document is rendered in-line with the clinical document, and is displayed as a single document.",null,null,0,{"$f":"IF(AND(BGCol(C14)=48,G14=\"N/A\"),1,0)","v":{"$error":"#NAME?"}},"TD21"]
["CDAR-RS-060","CDA-RS 60\nRendering Systems SHALL ensure they are able to present HTML, PDF, RTF and Plain Text document attachments. Such attachments are not displayed in-line as part of the narrative, but become visible when the user chooses the appropriate interface option to prompt their display (e.g. an HTML link in a web browser to be selected).","C",1,"CONDITION:  The rendering systyem does not support the in-line rendering of attached PDF documents (i.e. the result of test case PR-024886 is marked as \"N/A\").\n\nPass the test if:\na) the value of the <linkHtml> element is displayed in the clinical document as a selectable link at the point where the object is referenced, and\nb) the referenced object becomes visible when the link is selected.\nElse, Fail the test.\n","The value of the <linkHtml> element is displayed in the clinical document as a selectable link at the point where the object is referenced, and the referenced document is displayed when the attachment link is selected.",null,null,0,{"$f":"IF(AND(BGCol(C15)=48,G15=\"N/A\"),1,0)","v":{"$error":"#NAME?"}},"TD21"]
["PR-025084","025084\nPrinting the PDF document\n\nIf the software supports printing and performs in -line rendering of PDF documents, then the software SHALL print both the CDA document and the attached diagnostic report PDF file when the user requests the CDA document to be printed.\n\n","C",1,"CONDITION: The rendering system supports both the printing of the clinical document and the in-line rendering of the attached PDF document.\n\nMark the test N/A where the rendering system does not support both the printing of the clinical document and the in-line rendering of the attached PDF document.\nElse,\nPrint the clinical document.\n\nWhere the clinical document is printed:\nPass the Test where both the clinical document and the attached PDF document are printed in their entirety.\nElse, Fail the Test.\n","Both the clinical document and the attached PDF document are printed in their entirety.",null,null,0,{"$f":"IF(AND(BGCol(C16)=48,G16=\"N/A\"),1,0)","v":{"$error":"#NAME?"}},"TD21"]
["END:   Conformance requirements for consumers of eHealth Pathology Reports "]
[]
[null,null,null,null,null,null,"TBD","Total Steps",{"$f":"SUM(I20:I21)","v":7}]
[null,null,null,null,null,null,"Fail","Tests Not Started, Failed or TBD",{"$f":"COUNTIF(I1:I16,\"0\")","v":7}]
[null,null,null,null,null,null,"N/A","Tests Passed or N/A",{"$f":"COUNTIF(I1:I16,\"1\")","v":0}]
[null,null,null,null,null,null,"Pass","%Passed or N/A",{"$f":"SUM(I21/I19)","v":0}]

{"sheet":"3. TD","index":9,"n_rows":6,"n_cols":3,"rows_kept":6,"cut":false,"hidden":false,"merged":[[0,0,0,1],[1,0,1,1]]}
["Test Set:",null,"Pathology Report - REQUIRED TEST DATA"]
["Test Data Information:",null,"NEHTA test data to apply the CDA Rendering test cases can be obtained from the My Health Record SVT environment.\n\nTO ACCESS NEHTA My Health Record TEST DATA, USE:\n● Patient 1 - Ludwig HOBBS  IHI: 8003608333345684  Medicare Card: 2950345681  IRN: 1  Sex: Male  DOB: 26/04/1995  Address: 76 Hung CCT, Deakin, ACT, 2600\n"]
["TEST DATA ID","DOCUMENT TYPE","DOCUMENT ID"]
["TD21","Pathology Report","2.25.273897064011721054653877702268513839195"]
["TD22","Pathology Report","2.25.75125101648280711982489184331808238781"]
["TD48","Pathology Report","2.25.54608793302667647866013959867077829436"]

{"sheet":"4. DIR","index":10,"n_rows":23,"n_cols":11,"rows_kept":23,"cut":false,"hidden":false,"merged":[[0,3,0,5],[1,3,3,5],[9,0,10,0],[9,1,10,1],[12,0,13,0],[12,1,13,1]]}
["Test Set:","CDA Rendering Systems - Diagnostic Imaging Report",null,"TEST DATA INFORMATION",null,null,"Software name: version:\n"]
["Derivation:","1. NEHTA-1978:2015 eHealth Diagnostic Imaging Report - PCEHR Conformance Profile v1.0.1",null,"TO ACCESS NEHTA My Health Record TEST DATA, USE:\n● Patient A -  Ludwig HOBBS  IHI: 8003608333345684  Medicare Card: 2950345681  IRN: 1  Sex: Male  DOB: 26/04/1995  Address: 76 Hung CCT, Deakin, ACT, 2600\n\n   Refer to the '4. TD' worksheet for details of the documents in this record.\n\nIF NEHTA TEST DATA CANNOT BE USED TO TEST, PLEASE CREATE YOUR OWN.  ",null,null,"Software supplier:"]
["Test Set Objective:","To verify the correct rendering of requirements specific to Diagnostic Imaging Reports.",null,null,null,null,"Tester:"]
["Prerequisites:","1. Access to the My Health Record SVT (System Vendor Test) environment.\n2. Access to NEHTA's test data in the SVT that supports the CDA rendering test cases in the My Health Record context. \nIf unable to access the My Health Record SVT environment, contact help@nehta.gov.au",null,null,null,null,"Date:"]
[]
["THIS HEADER CAN BE COLLAPSED BY CLICKING THE '-' SYMBOL ON THE LEFT."]
["TEST CASE ID","CONFORMANCE REQUIREMENT","PRIORITY\n(Mandatory, Optional, Conditional)","STEP NO.","TEST STEP","EXPECTED RESULT","TEST RESULT","TESTER COMMENTS","CALC.","MANDATORY AND N/A","NEHTA TEST DATA"]
["Diagnostic Imaging Report - PCEHR Conformance Profile [NEHTA-1978:2015]"]
["START:   Conformance requirements for consumers of Diagnostic Imaging Reports"]
["DIR-024858","024858\nDisplay the requester’s order identifier (if available)\n\nThe software SHALL display the requester's order identifier (if available) when the CDA document is rendered.\n\nNOTE: If the Requester's order identifier is known, it is recorded in the extension attribute of the inFulfillmentOf/Order/id data element.  \n","M",1,"PREREQUISITE: The requester's order identifier has been provided in the Diagnostic Imaging Report as a HPI-O Based Local Order Identifier.\n\nPass the Step if the requester's order identifier is displayed in the rendered document.\nElse, Fail the Step.\n\nNOTE TO TESTER:\nThe use of a HPI-O Based Local Order Identifier is documented in the related Diagnostic Imaging Report CDA Implementation Guide.","The value of requester's order identifier is displayed in the rendered document.",null,null,{"$f":"IF(G10=\"Pass\",1,IF(G10=\"N/A\",1,0))","v":0},{"$f":"IF(AND(BGCol(C10)=48,G10=\"N/A\"),1,0)","v":{"$error":"#NAME?"}},"TD50"]
[null,null,null,2,"PREREQUISITE: The requester's order identifier has been provided in the Diagnostic Imaging Report as a non-HPI-O Based Local Order Identifier.\n\nPass the Step if the requester's order identifier is displayed in the rendered document.\nElse, Fail the Step.\n\nNOTE TO TESTER:\nThe use of a non-HPI-O Based Local Order Identifier is documented in the related Diagnostic Imaging Report CDA Implementation Guide.","The value of requester's order identifier is displayed in the rendered document.",null,null,{"$f":"IF(G11=\"Pass\",1,IF(G11=\"N/A\",1,0))","v":0},{"$f":"IF(AND(BGCol(C11)=48,G11=\"N/A\"),1,0)","v":{"$error":"#NAME?"}},"TD17"]
["DIR-025174","025174\nDisplay the accession number\n\nThe software SHALL display the accession number, when the CDA document is rendered.\n\nNOTE: The accession number is recorded in the extension attribute of the inFulfillmentOf/Order/id data element that has a root attribute using the HPI-O based accession number. \n","M",1,"Pass the test if the accession number is displayed in the rendered document.\nElse, Fail the test. ","The accession number is displayed in the rendered document.",null,null,0,{"$f":"IF(AND(BGCol(C12)=48,G12=\"N/A\"),1,0)","v":{"$error":"#NAME?"}},"TD50"]
["DIR-024874","024874\nDisplay the request date and time (if available)\n\nThe software SHALL display the request date and time (if available) when the CDA document is rendered.\n\nNote: The date and time (if available) of the request is recorded in the ClinicalDocument/participant/time data element.","M",1,"PREREQUISITE: The Diagnostic Imaging Report contains a request where both the date and time of the request have been provided.\n\nPass the Step if both the date and time of the request are displayed in the rendered document.\nElse, Fail the Step.\n","Both the date and time of the request are displayed in the rendered document.",null,null,0,{"$f":"IF(AND(BGCol(C13)=48,G13=\"N/A\"),1,0)","v":{"$error":"#NAME?"}},"TD50"]
[null,null,null,2,"PREREQUISITE: The Diagnostic Imaging Report contains a request where only the date of the request has been provided.\n\nPass the Step if only the date of the request is displayed in the rendered document.\nElse, Fail the Step.\n","Only the date of the request is displayed in the rendered document.",null,null,0,{"$f":"IF(AND(BGCol(C14)=48,G14=\"N/A\"),1,0)","v":{"$error":"#NAME?"}},"TD18"]
["DIR-024886","024886\nDisplay the diagnostic report PDF document in-line\n\nThe software SHOULD display the diagnostic report PDF attachment in-line with the CDA document.\n\nNOTE: This requirement has the effect of overriding CDA Rendering Specification [NEHTA-1199:2012] requirement CDA-RS 60, which applies to clinical document rendering systems and disallows in-line rendering of attachments.\n","O",1,"Mark the Test N/A if the rendering system does not support the in-line display of attached PDF documents.\n\nPass the Test if the attached PDF document is rendered in-line with the clinical document, such that it is displayed as a single document.\nElse, Fail the Test.","The attached PDF document is rendered in-line with the clinical document, and is displayed as a single document.",null,null,0,{"$f":"IF(AND(BGCol(C15)=48,G15=\"N/A\"),1,0)","v":{"$error":"#NAME?"}},"TD50"]
["CDAR-RS-060","CDA-RS 60\nRendering Systems SHALL ensure they are able to present HTML, PDF, RTF and Plain Text document attachments. Such attachments are not displayed in-line as part of the narrative, but become visible when the user chooses the appropriate interface option to prompt their display (e.g. an HTML link in a web browser to be selected).","C",1,"CONDITION:  The rendering systyem does not support the in-line rendering of attached PDF documents (i.e. the result of test case PR-024886 is marked as \"N/A\").\n\nPass the test if:\na) the value of the <linkHtml> element is displayed in the clinical document as a selectable link at the point where the object is referenced, and\nb) the referenced object becomes visible when the link is selected.\nElse, Fail the test.\n","The value of the <linkHtml> element is displayed in the clinical document as a selectable link at the point where the object is referenced, and the referenced document is displayed when the attachment link is selected.",null,null,0,{"$f":"IF(AND(BGCol(C16)=48,G16=\"N/A\"),1,0)","v":{"$error":"#NAME?"}},"TD50"]
["DIR-025084","025084\nPrinting the PDF document\n\nIf the software supports printing and performs in -line rendering of PDF documents, then the software SHALL print both the CDA document and the attached diagnostic report PDF file when the user requests the CDA document to be printed.\n\n","C",1,"CONDITION: The rendering system supports both the printing of the clinical document and the in-line rendering of the attached PDF document.\n\nMark the test N/A where the rendering system does not support both the printing of the clinical document and the in-line rendering of the attached PDF document.\n\nPrint the clinical document.\n\nPass the Test where both the clinical document and the attached PDF document are printed in their entirety.\nElse, Fail the Test.\n","Both the clinical document and the attached PDF document are printed in their entirety.",null,null,0,{"$f":"IF(AND(BGCol(C17)=48,G17=\"N/A\"),1,0)","v":{"$error":"#NAME?"}},"TD50"]
["END:   Conformance requirements for consumers of Diagnostic Imaging Reports "]
[]
[null,null,null,null,null,null,"TBD","Total Steps",{"$f":"SUM(I21:I22)","v":8}]
[null,null,null,null,null,null,"Fail","Tests Not Started, Failed or TBD",{"$f":"COUNTIF(I2:I17,\"0\")","v":8}]
[null,null,null,null,null,null,"N/A","Tests Passed or N/A",{"$f":"COUNTIF(I2:I17,\"1\")","v":0}]
[null,null,null,null,null,null,"Pass","%Passed or N/A",{"$f":"SUM(I22/I20)","v":0}]

{"sheet":"4. TD","index":11,"n_rows":6,"n_cols":3,"rows_kept":6,"cut":false,"hidden":false,"merged":[[0,0,0,1],[1,0,1,1]]}
["Test Set:",null,"Diagnostic Imaging Report - REQUIRED TEST DATA"]
["Test Data Information:",null,"NEHTA test data to apply the CDA Rendering test cases can be obtained from the My Health Record SVT environment.\n\nTO ACCESS NEHTA My Health Record TEST DATA, USE:\n● Patient 1 - Ludwig HOBBS  IHI: 8003608333345684  Medicare Card: 2950345681  IRN: 1  Sex: Male  DOB: 26/04/1995  Address: 76 Hung CCT, Deakin, ACT, 2600\n"]
["TEST DATA ID","DOCUMENT TYPE","DOCUMENT ID"]
["TD17","Diagnostic Imaging Report","2.25.249707706807118682152640993664289226691"]
["TD18","Diagnostic Imaging Report","2.25.308394526719415630598652690064286891339"]
["TD50","Diagnostic Imaging Report","2.25.114389814939583660486968034808322157619"]

{"sheet":"References","index":12,"n_rows":36,"n_cols":5,"rows_kept":36,"cut":false,"hidden":false,"merged":[]}
[]
[]
[null,"References and Related Documents"]
[null,"#","Identifier","Date","Name"]
[null,"1 & 2","CDA Rendering (CDAR)"]
[null,null,"NEHTA-1199:2012","2012-03-07","NEHTA-1199:2012 Clinical Documents - CDA Rendering Specification v1.0"]
[null,null,"NEHTA-1850:2015","2015-04-10","NEHTA-1850:2015 Clinical Documents - Common Conformance Profile v1.6"]
[null,null,"NEHTA-1299:2012","2012-09-27","NEHTA-1299:2012 PCEHR Connecting Systems - Conformance Test Specification v1.6"]
[null,null,"NEHTA-1978:2015","2015-07-31","NEHTA-1978:2015 eHealth Diagnostic Imaging Report - PCEHR Conformance Profile v1.0.1"]
[null,null,"NEHTA-1979:2015","2015-07-31","NEHTA-1979:2015 eHealth Pathology Report - PCEHR Conformance Profile v1.0.1"]
[null,null,"NEHTA-1838:2015","2015-04-10","NEHTA-1838:2015 Shared Health Summary - PCEHR Conformance Profile v1.6"]
[null,null,"NEHTA-1844:2015","2015-04-10","NEHTA-1844:2015 Event Summary - PCEHR Conformance Profile v1.4"]
[null,null,"NEHTA-1448:2013","2013-10-09","NEHTA-1448:2013 eDischarge Summary - PCEHR Conformance Profile v1.5"]
[null,null,"NEHTA-1449:2013","2013-10-09","NEHTA-1449:2013 eReferral - PCEHR Conformance Profile v1.4"]
[null,null,"NEHTA-1800:2014","2014-09-25","NEHTA-1800:2014 Specialist Letter - PCEHR Conformance Profile v1.5"]
[null,null,"NEHTA-1912:2015","2015-02-17","NEHTA-1912:2015 eHealth Prescription Record - PCEHR Conformance Profile v1.3"]
[null,null,"NEHTA-1909:2015","2015-02-17","NEHTA-1909:2015 eHealth Dispense Record - PCEHR Conformance Profile v1.3"]
[null,null,"NEHTA-1447:2013","2013-10-09","(Personal Health Summary and Advance Care Directive Custodian Record)\nNEHTA-1447:2013 Common - Consumer Entered Information - PCEHR Conformance Profile v1.3"]
[null,null,"NEHTA-1855:2014","2014-10-27","NEHTA-1855:2014 Australian Organ Donor Register - PCEHR Conformance Profile v1.0"]
[null,null,"NEHTA-1857:2015","2015-01-28","NEHTA-1857:2015 Australian Childhood Immunisation Register - PCEHR Conformance Profile v1.0"]
[null,null,"NEHTA-1856:2014","2014-10-27","NEHTA-1856:2014 Pharmaceutical Benefits Report - PCEHR Conformance Profile v1.0"]
[null,null,"NEHTA-1858:2015","2015-01-29","NEHTA-1858:2015 Medicare DVA Benefits Report - PCEHR Conformance Profile v1.0"]
[null,null,"NEHTA-1797:2014","2014-12-31","NEHTA-1797:2014 Medicare Overview - PCEHR Conformance Profile v1.2"]
[null,null,"NEHTA-1977:2014","2014-12-31","NEHTA-1977:2014 Health Check Schedule View - PCEHR Conformance Profile v1.0"]
[null,null,"NEHTA-1976:2014","2014-12-31","NEHTA-1976:2014 Observation View - PCEHR Conformance Profile v1.0"]
[null,null,"NEHTA-1294:2012","2012-07-23","NEHTA-1294:2012 CIS Connecting to the PCEHR System - Conformance Assessment Scheme v1.1"]
[null,null,"NEHTA-1297:2012","2012-09-06","NEHTA-1297:2012 CIS Connecting to the PCEHR System - Conformance Requirements v1.5"]
[null,null,"NEHTA-2188:2015","2015-11-30","NEHTA-2188:2015 Clinical Terminology - Guidance for Use of Medical Nomenclature in Information Exchange v1.1"]
[null,null,"NEHTA-1273:2013","2013-04-04","NEHTA-1273:2013_Common-ContinuityofCare_FAQNullableFieldsGuidance_v1.1"]
[null,null,"NEHTA-1136:2010","2010-09-07","NEHTA-1136:2010 Data Types in NEHTA Specifications - A Profile of the ISO 21090 Specification v1.0"]
[null,null,"HL7CDAR2","2004-12-12","HL7 Clinical Document Architecture Release 2.0"]
[null,null,"ITU2001","2001-02-01","ITU-T E.123 Notation for national and international telephone numbers, e-mail addresses and Web addresses"]
[null,3,"Pathology Report (PR)"]
[null,null,"NEHTA-1979:2015","2015-07-31","NEHTA-1979:2015 eHealth Pathology Report - PCEHR Conformance Profile v1.0.1"]
[null,4,"Diagnostic Imaging Report (DIR)"]
[null,null,"NEHTA-1978:2015","2015-07-31","NEHTA-1978:2015 eHealth Diagnostic Imaging Report - PCEHR Conformance Profile v1.0.1"]